{"text_format":"1","workbook":"xlsx","n_sheets":9,"sheets":["INFORMACJA","ZGŁOSZENIE","Zał. 1. Obiekty","Zał. 2. Działki","ZLECENIE CERTYFIKACJI","OPIS JEDNOSTKI","PROGNOZA PRODUKCJI ROŚLINNEJ","PROGNOZA PRODUKCJI ZWIERZĘCEJ","PEŁNOMOCNICTWO"],"not_rendered":{"charts":0,"images":3,"macros":1,"external_links":1,"defined_names":91,"comments":1,"pivot_tables":0},"unopened":[],"bounds":{"document_bytes":16777216,"sheet_cells":100000,"rows_first":2000,"rows_last":500,"rows_between":2000,"halvings":0,"cell_chars":16384,"cell_head_chars":4096},"cells_cut":0,"cells_raw":0,"read":"whole","date_system":"1900"}

{"sheet":"INFORMACJA","index":0,"n_rows":14,"n_cols":14,"rows_kept":14,"cut":false,"hidden":false,"merged":[[13,1,13,15],[1,5,1,7],[1,9,1,11],[1,13,1,15],[12,1,12,15],[3,5,4,7],[3,9,3,11],[3,13,3,15],[3,1,4,3]]}
[]
[null,"Adres biura:",null,null,null,"Osoba do kontaktu (produkcja rolna):",null,null,null,"Osoba do kontaktu (pozostałe kategorie):",null,null,null,"Osoba do kontaktu (pozostałe kategorie):"]
[]
[null,"TÜV Rheinland Polska Sp. z o. o. \n(Biznes Park Wielicka II piętro)\nul. Wielicka 250\n30-663 Kraków\nT: +48 12 340 94 37\nekologia@pl.tuv.com",null,null,null,"Aleksandra Drabik\nMłodszy Specjalista ds. Wsparcia Audytów i Certyfikacji\nM:+48 697 113 492\naleksandra.drabik@tuv.com",null,null,null,"Danuta Muszyńska\nKoordynator Sprzedaży\nSystemy Zarządzania\nM:+48 725 200 656\ndanuta.muszynska@pl.tuv.com ",null,null,null,"Magdalena Abramczyk\nKoordynator Sprzedaży\nSystemy Zarządzania\nM:+48 785 882 248\nmagdalena.abramczyk@pl.tuv.com"]
[]
[]
[]
[null,"Objaśnienia dotyczące kategorii działalności",null,"Dokumenty do pobrania",null,"Program certyfikacji (warunki umowy)",null,"Ogólne warunki transakcyjne\n(warunki umowy)",null,"Regulamin certyfikacji Jednostki Certyfikującej Wyroby TRP",null,"Wykaz certyfikatów produkcji ekologicznej",null,"Wykaz aktów prawnych w rolnictwie ekologicznym"]
[null,"czytaj więcej >",null,"czytaj więcej >",null,"czytaj więcej >",null,"czytaj więcej >",null,"czytaj więcej >",null,"czytaj więcej >",null,"czytaj więcej >"]
[]
[null,"Informacje dodatkowe:"]
[]
[null,"NIP: przepisy podatkowe\n\nNie podajemy NIP:\n  ▪  osoba fizyczna nie prowadząca działalności gospodarczej lub będąca rolnikiem ryczałtowym zwolnionym  z VAT,\n  ▪  osoba prowadząca działalność gospodarczą zgłoszoną do CEiDG (firma: Sp. J.; Sp. z o. o.; itp.  lub jednoosobową działalność gospodarczą: GR, GS)  ale korzystająca ze zwolnienia z podatku VAT (nie będąca czynnym podatnikiem VAT).\n\nPodajemy pełną nazwę firmy wraz z numerem NIP:\n  ▪  osoba prowadząca działalność gospodarczą zgłoszoną do CEiDG, lub będącej rolnikiem ryczałtowym - zgłoszona jako czynny podatnik VAT, rozliczająca się z tego podatku na zasadach ogólnych.\n\nGdy na fakturze wystawionej przez TÜV Rheinland Polska znajdzie się nr NIP a Klient nie przedstawi tej faktury w ewidencji VAT, Urząd Skarbowy może wezwać obie strony do złożenia wyjaśnień. W przypadku rozbieżności danych TÜV Rheinland Polska wyśle pismo do klienta z prośbą o wyjaśnienie rozbieżności, tak aby na etapie wystawienia faktury dane te były tożsame we wszystkich bazach księgowych. W przypadku zmiany danych po wystawieniu faktury, TÜV Rheinland Polska zastrzega sobie prawo do nie przyjmowania not korygujących dot. nazwy lub dodania/usunięcia nr NIP na fakturze, ponieważ w świetle przepisów usługa świadczona była innemu podmiotowi."]
[null,"Prognoza produkcji\n\nTermin przekazania do TUV Rheinland Polska:\n▪ do 30 kwietnia bieżącego roku - rejestracja w poprzednich latach (kontynuowanie certyfikacji),\n▪ do 28 dni od daty rejestracji – rejestracja w bieżącym roku (pierwsza certyfikacja),\n▪ bezzwłocznie – aktualizacja prognozy.\nPrognoza produkcji roślinnej może zostać przekazana na wniosku o przyznanie płatności.\n\n"]

{"sheet":"ZGŁOSZENIE","index":1,"n_rows":211,"n_cols":31,"rows_kept":211,"cut":false,"hidden":false,"merged":[[147,28,168,28],[173,28,194,28],[199,24,199,27],[200,24,200,27],[196,13,196,14],[196,19,196,22],[44,24,45,24],[44,25,45,25],[44,26,45,26],[44,28,45,28],[47,28,62,28],[67,28,88,28],[93,28,114,28],[119,28,140,28],[154,19,154,22],[176,1,176,13],[179,1,179,13],[182,1,182,13],[153,1,153,13],[156,1,156,13],[159,1,159,13],[162,1,162,13],[154,1,154,18],[180,1,180,18],[66,30,88,30],[92,30,114,30],[46,30,63,30],[44,30,45,30],[118,30,140,30],[146,30,168,30],[172,30,194,30],[16,30,28,30],[186,19,186,22],[187,19,187,22],[189,19,189,22],[190,19,190,22],[192,19,192,22],[178,19,178,22],[180,19,180,22],[181,19,181,22],[158,19,158,22],[160,19,160,22],[161,19,161,22],[163,19,163,22],[164,19,164,22],[104,19,104,22],[22,1,22,22],[173,1,173,13],[158,1,158,18],[160,1,160,18],[161,1,161,18],[163,1,163,18],[164,1,164,18],[155,1,155,18],[110,1,110,18],[110,19,110,22],[112,1,112,18],[112,19,112,22],[113,1,113,18],[113,19,113,22],[129,1,129,18],[129,19,129,22],[119,1,119,13],[122,1,122,13],[125,1,125,13],[128,1,128,13],[111,1,111,13],[114,1,114,13],[116,1,117,22],[118,13,118,15],[118,16,118,18],[118,19,118,21],[120,1,120,18],[120,19,120,22],[121,1,121,18],[121,19,121,22],[123,1,123,18],[123,19,123,22],[106,1,106,18],[106,19,106,22],[107,1,107,18],[107,19,107,22],[102,1,102,13],[105,1,105,13],[109,1,109,18],[109,19,109,22],[108,1,108,13],[103,1,103,18],[103,19,103,22],[104,1,104,18],[80,1,80,18],[80,19,80,22],[81,1,81,18],[81,19,81,22],[83,1,83,18],[83,19,83,22],[84,1,84,18],[84,19,84,22],[100,1,100,18],[100,19,100,22],[93,1,93,13],[96,1,96,13],[99,1,99,13],[85,1,85,13],[88,1,88,13],[90,1,91,22],[92,13,92,15],[92,16,92,18],[92,19,92,21],[86,1,86,18],[86,19,86,22],[87,1,87,18],[87,19,87,22],[94,1,94,18],[55,1,55,13],[58,1,58,13],[60,1,60,18],[61,1,61,18],[60,19,60,22],[61,19,61,22],[68,1,68,18],[68,19,68,22],[69,1,69,18],[69,19,69,22],[67,1,67,13],[70,1,70,13],[73,1,73,13],[76,1,76,13],[79,1,79,13],[82,1,82,13],[1,1,2,22],[3,1,7,15],[3,16,6,22],[7,16,7,22],[15,1,15,22],[16,1,16,11],[16,12,16,22],[12,1,13,5],[17,1,17,11],[17,12,17,22],[18,1,18,11],[18,12,18,22],[19,1,19,11],[19,12,19,22],[20,1,20,5],[20,6,20,9],[20,10,20,17],[20,18,20,22],[21,1,21,5],[21,6,21,9],[21,10,21,17],[21,18,21,22],[23,1,23,3],[23,4,23,8],[23,9,23,13],[23,14,23,22],[24,1,24,3],[24,4,24,8],[24,9,24,13],[24,14,24,22],[26,1,26,3],[26,4,26,8],[26,9,26,13],[26,14,26,18],[26,19,26,20],[26,21,26,22],[25,1,25,3],[25,4,25,8],[25,9,25,13],[25,14,25,18],[25,19,25,20],[25,21,25,22],[27,1,27,11],[27,12,27,22],[28,1,28,11],[28,12,28,22],[29,1,29,22],[30,1,30,3],[30,4,30,8],[30,9,30,13],[30,14,30,22],[31,1,31,3],[31,4,31,8],[31,9,31,13],[31,14,31,22],[32,1,32,3],[32,4,32,8],[32,9,32,13],[32,14,32,18],[32,19,32,20],[32,21,32,22],[34,1,34,11],[34,12,34,22],[35,1,35,11],[35,12,35,22],[33,1,33,3],[33,4,33,8],[33,9,33,13],[33,14,33,18],[33,19,33,20],[33,21,33,22],[46,13,46,15],[46,16,46,18],[47,1,48,13],[50,1,50,13],[53,1,53,13],[36,1,36,22],[37,1,38,22],[39,1,39,22],[40,1,40,22],[42,1,43,22],[44,1,45,22],[46,19,46,21],[49,1,49,13],[52,1,52,13],[56,1,56,13],[59,1,59,13],[62,1,62,13],[64,1,65,22],[66,13,66,15],[66,16,66,18],[66,19,66,21],[71,1,71,18],[71,19,71,22],[72,1,72,18],[72,19,72,22],[74,1,74,18],[74,19,74,22],[75,1,75,18],[75,19,75,22],[77,1,77,18],[77,19,77,22],[78,1,78,18],[78,19,78,22],[94,19,94,22],[95,1,95,18],[95,19,95,22],[97,1,97,18],[97,19,97,22],[98,1,98,18],[98,19,98,22],[101,1,101,18],[101,19,101,22],[124,1,124,18],[124,19,124,22],[126,1,126,18],[126,19,126,22],[127,1,127,18],[127,19,127,22],[150,1,150,13],[130,1,130,18],[130,19,130,22],[132,1,132,18],[132,19,132,22],[133,1,133,18],[133,19,133,22],[135,1,135,18],[135,19,135,22],[136,1,136,18],[136,19,136,22],[131,1,131,13],[134,1,134,13],[138,19,138,22],[139,1,139,18],[139,19,139,22],[137,1,137,13],[140,1,140,13],[144,1,145,22],[146,1,146,12],[146,13,146,15],[146,16,146,18],[146,19,146,21],[151,1,151,18],[151,19,151,22],[152,1,152,18],[152,19,152,22],[149,1,149,18],[149,19,149,22],[147,1,147,13],[155,19,155,22],[157,1,157,18],[157,19,157,22],[138,1,138,18],[148,1,148,18],[148,19,148,22],[185,1,185,13],[188,1,188,13],[165,1,165,13],[168,1,168,13],[170,1,171,22],[172,1,172,12],[172,13,172,15],[172,16,172,18],[172,19,172,21],[166,1,166,18],[166,19,166,22],[167,1,167,18],[167,19,167,22],[174,1,174,18],[174,19,174,22],[175,1,175,18],[175,19,175,22],[142,1,142,22],[193,1,193,18],[193,19,193,22],[207,1,207,22],[208,1,208,22],[177,1,177,18],[177,19,177,22],[178,1,178,18],[184,1,184,18],[184,19,184,22],[191,1,191,13],[194,1,194,13],[197,1,197,22],[199,1,199,11],[199,12,199,22],[183,19,183,22],[186,1,186,18],[187,1,187,18],[189,1,189,18],[190,1,190,18],[192,1,192,18],[183,1,183,18],[181,1,181,18],[209,1,209,22],[210,1,210,22],[202,5,202,6],[202,8,202,10],[203,12,203,22],[204,1,204,22],[205,1,205,22],[206,1,206,22],[200,12,202,22],[201,2,201,3],[201,5,201,6],[201,8,201,10],[202,2,202,3]]}
[]
[null,"ZGŁOSZENIE DZIAŁALNOŚCI, O KTÓRYM MOWA W ART. 34 ROZPORZĄDZENIA PARLAMENTU EUROPEJSKIEGO I RADY (UE) 2018/848"]
[]
[null,"Na podstawie art. 34 ust. 1 rozporządzenia Parlamentu Europejskiego i Rady (UE) 2018/848 z dnia 30 maja 2018 r. w sprawie produkcji ekologicznej i znakowania produktów ekologicznych i uchylającego rozporządzenie Rady (WE) nr 834/2007 (Dz.Urz.UE.L Nr 150, str. 1) oraz na podstawie art. 17 ust. 1 ustawy z dnia 23 czerwca 2022 r. o rolnictwie ekologicznym i produkcji ekologicznej (Dz. U. 2022 r., poz. 1370)"]
[]
[]
[]
[null,null,null,null,null,null,null,null,null,null,null,null,null,null,null,null,"Potwierdzenie przyjęcia przez organ właściwy (pieczątka, data przyjęcia i podpis)"]
[]
[null,"1.Pierwsze zgłoszenie ₁    ",null,null,null,null,null,null,null,null,null,null,"2. Zmiana ₁ "]
[]
[]
[null,"3. Zmiana dotyczy sekcji: ¹",null,null,null,null,"I","II","III","IV","V","VI","VII","VIII","IX","X"]
[]
[]
[null,"Sekcja I. DANE IDENTYFIKACYJNE ZGŁASZAJĄCEGO",null,null,null,null,null,null,null,null,null,null,null,null,null,null,null,null,null,null,null,null,null,null,null,null,null,null,null,null,"Objaśnienia:"]
[null,"4. Nazwisko/nazwa pełna (w przypadku firmy lub grupy podmiotów)",null,null,null,null,null,null,null,null,null,null,"5. Pierwsze imię/nazwa skrócona (w przypadku firmy lub grupy podmiotów)",null,null,null,null,null,null,null,null,null,null,null,null,null,null,null,null,null,"Sposób podawania informacji w Sekcji I. \n\nDane Indentyfikacyjne Zgłaszającego w zakresie imienia nazwiska/nazwy. Zgodnie z definicją określoną w art. 3 pkt 13 rozporządzenia PEiR 2018/848 podmiot (czyli producent ekologiczny) oznacza osobę fizyczną lub prawną odpowiedzialną za zapewnienie zgodności z niniejszym rozporządzeniem na każdym znajdującym się pod jej kontrolą etapie produkcji, przygotowania i dystrybucji. W przypadku osób prawnych podawana jest nazwa firmy, zgodnie z dokumentem nadającym podmiotowi osobowość prawną. \n\nW przypadku osób fizycznych podawane jest imię / imiona i nazwisko jednej osoby dokonującej zgłoszenia, zgodnie z imieniem / imionami i nazwiskiem z dokumentu potwierdzającego tożsamość osoby. \n\nW Zgłoszeniu nie należy podawać: - nazw fantazyjnych lub przyjętych w celach reklamowych typu „Gospodarstwo „Tajemniczy Ogród” Jan Kowalski itp., - danych więcej niż jednej osoby, np. małżeństwa, rodzeństwa. Nieprawidłowe wskazanie w Zgłoszeniu danych osoby fizycznej lub oznaczenia podmiotu gospodarczego, może spowodować, że proces obejmowania kontrolą znacznie się przedłuży, z uwagi na konieczność sprostowania nieprawidłowo wskazanych danych zgłaszającego.\n"]
[]
[null,"6. Drugie imię / nazwa organu założycielskiego j.o.n.o.p. ₂",null,null,null,null,null,null,null,null,null,null,"7. PESEL (obowiązkowy dla osób fizycznych)"]
[]
[null,"8. NIP (obowiązkowy dla firm)",null,null,null,null,"9. REGON",null,null,null,"10. Numer identyfikacyjny nadany przez ARiMR ₃",null,null,null,null,null,null,null,"11. numer paszportu – w przypadku osób niebędących obywatelami Rzeczypospolitej Polskiej ₄"]
[]
[null,"Sekcja II. ADRES ZAMIESZKANIA LUB SIEDZIBY ZGŁASZAJĄCEGO"]
[null,"12. Państwo",null,null,"13. Województwo",null,null,null,null,"14. Powiat",null,null,null,null,"15. Gmina"]
[]
[null,"16. Kod pocztowy",null,null,"17. Poczta",null,null,null,null,"18.Miejscowość",null,null,null,null,"19. Ulica",null,null,null,null,"20. Nr domu",null,"21. Nr lokalu"]
[]
[null,"22. Telefon",null,null,null,null,null,null,null,null,null,null,"23. E-mail"]
[]
[null,"Sekcja III. ADRES DO KORESPONDENCJI\n(nie należy podawać jeżeli adres do korespondencji jest taki sam jak w sekcji II Zgłoszenia)"]
[null,"24. Państwo",null,null,"25. Województwo",null,null,null,null,"26. Powiat",null,null,null,null,"27. Gmina"]
[]
[null,"28. Kod pocztowy",null,null,"29. Poczta",null,null,null,null,"30. Miejscowość",null,null,null,null,"31. Ulica",null,null,null,null,"32. Nr domu",null,"33. Nr lokalu"]
[]
[null,"34. Telefon",null,null,null,null,null,null,null,null,null,null,"35. E-mail"]
[]
[null,"Sekcja IV. NAZWA I NUMER WYBRANEJ JEDNOSTKI CERTYFIKUJĄCEJ"]
[null,"TÜV Rheinland Polska Sp. z o.o. PL-EKO-08"]
[]
[null,"F-7/PG-BRE-03, wydanie 9 z dnia 19 kwietnia 2024 r. str. 1 z 3"]
[]
[null,null,null,null,null,null,null,null,null,null,null,null,null,null,null,null,null,null,null,null,null,null,""]
[null,"Zgłaszam do kontroli następujące kategorie działalności:¹"]
[null,null,null,null,null,null,null,null,null,null,null,null,null,null,null,null,null,null,null,null,null,null,null,null,"kategoria produktu E","kategoria produktu E i K","kategoria zlecana",null,"kategorie działalności"]
[null,"Sekcja V. PRODUKCJA",null,null,null,null,null,null,null,null,null,null,null,null,null,null,null,null,null,null,null,null,null,null,2,2,3,null,3,null,"Objaśnienia:"]
[]
[null,null,null,null,null,null,null,null,null,null,null,null,null,"ekologiczna",null,null,"zlecana ₅ ",null,null,"nieekologiczna ₆",null,null,null,null,null,null,null,null,null,null,"Produkcja w „gospodarstwie”, o którym mowa w art. 3 pkt 8 rozporządzenia (UE) 2018/848, w tym produkcja grzybów oraz zbieranie dziko rosnących roślin i grzybów.\n\n„gospodarstwo” oznacza wszystkie jednostki produkcyjne funkcjonujące pod jednolitym zarządem w celu wytwarzania żywych lub nieprzetworzonych produktów rolnych – w tym produktów pochodzących z akwakultury i pszczelarstwa – o których mowa w art. 2 ust. 1 lit. a), lub produktów wymienionych w załączniku I, innych niż olejki eteryczne i drożdże \n\nW przypadku paszy produktach dotyczy pasz nieprzetworzonych pochodzących z produkcji roślinnej, którą producent zamierza produkować i następnie wprowadzać na rynek z przeznaczeniem do karmienia zwierząt."]
[null,"36a. Nieprzetworzone rośliny i produkty roślinne",null,null,null,null,null,null,null,null,null,null,null,null,null,null,null,null,null,null,null,null,null,null,{"$f":"COUNTA(O48)","v":0},{"$f":"IF(AND(COUNTA(O48)=1,COUNTA(U48)=1),1,0)","v":0},{"$f":"COUNTA(R48)","v":0},{"$f":"COUNTA(U48)","v":0},{"$f":"IF(OR(SUM(Y48:Y64)>0,SUM(Z48:Z64)>0,SUM(AA48:AA64)>0,SUM(AB48:AB64)>0),1,0)","v":0}]
[]
[]
[null,"36b. Nasiona i inny materiał przeznaczony do reprodukcji roślin",null,null,null,null,null,null,null,null,null,null,null,null,null,null,null,null,null,null,null,null,null,null,{"$f":"COUNTA(O51)","v":0},{"$f":"IF(AND(COUNTA(O51)=1,COUNTA(U51)=1),1,0)","v":0},{"$f":"COUNTA(R51)","v":0},{"$f":"COUNTA(U51)","v":0}]
[]
[]
[null,"37. Pasze",null,null,null,null,null,null,null,null,null,null,null,null,null,null,null,null,null,null,null,null,null,null,0,0,0,{"$f":"COUNTA(U54)","v":0}]
[]
[]
[null,"38. Zwierzęta gospodarskie i nieprzetworzone produkty zwierzęce",null,null,null,null,null,null,null,null,null,null,null,null,null,null,null,null,null,null,null,null,null,null,0,0,0,{"$f":"COUNTA(U57)","v":0}]
[]
[]
[null,"39. Algi i nieprzetworzone produkty z akwakultury",null,null,null,null,null,null,null,null,null,null,null,null,null,null,null,null,null,null,null,null,null,null,0,0,0,{"$f":"COUNTA(U60)","v":0}]
[]
[]
[null,"40. Inne produkty wymienione w załączniku I do rozporządzenia 2018/848 lub nieobjęte poprzednimi kategoriami",null,null,null,null,null,null,null,null,null,null,null,null,null,null,null,null,null,null,null,null,{"$f":"T197","v":"N"},null,0,0,0,{"$f":"COUNTA(U63)","v":0}]
[]
[null,"Sekcja VI. PRZYGOTOWANIE"]
[]
[null,null,null,null,null,null,null,null,null,null,null,null,null,"ekologiczna",null,null,"zlecana ₅ ",null,null,"nieekologiczna ₆",null,null,null,null,null,null,null,null,null,null,"Przygotowanie, o którym mowa w art. 3 pkt 44 rozporządzenia (UE) 2018/848 oznacza działania polegające na konserwowaniu lub przetwarzaniu produktów ekologicznych lub produktów w okresie konwersji lub każde inne działanie, któremu poddawany jest nieprzetworzony produkt, niezmieniające produktu wyjściowego, takie jak ubój, rozbiór, czyszczenie lub młócenie jak również pakowanie, znakowanie lub wprowadzanie zmian w znakowaniu odnoszących się do produkcji ekologicznej. \n\nPrzetwarzanie oznacza każde działanie, które znacznie zmienia produkt wyjściowy, w tym ogrzewanie, wędzenie, solenie, dojrzewanie, suszenie, marynowanie, ekstrakcję, wyciskanie lub połączenie tych procesów natomiast nie obejmuje czynności związanych z pakowaniem lub znakowaniem.  \n\nDotyczy to również produkcji olejków eterycznych i drożdży.\n\nProducent ekologiczny wykonuje czynność „przygotowanie”.\n"]
[null,"41a. Nieprzetworzone rośliny i produkty roślinne",null,null,null,null,null,null,null,null,null,null,null,null,null,null,null,null,null,null,null,null,null,null,{"$f":"COUNTA(O68)","v":0},{"$f":"IF(AND(COUNTA(O68)=1,COUNTA(U68)=1),1,0)","v":0},{"$f":"COUNTA(R68)","v":0},{"$f":"COUNTA(U68)","v":0},{"$f":"IF(OR(SUM(Y68:Y89)>0,SUM(Z68:Z89)>0,SUM(AA68:AA89)>0,SUM(AB68:AB89)>0),1,0)","v":0}]
[]
[]
[null,"41b. Nasiona i inny materiał przeznaczony do reprodukcji roślin",null,null,null,null,null,null,null,null,null,null,null,null,null,null,null,null,null,null,null,null,null,null,{"$f":"COUNTA(O71)","v":0},{"$f":"IF(AND(COUNTA(O71)=1,COUNTA(U71)=1),1,0)","v":0},{"$f":"COUNTA(R71)","v":0},{"$f":"COUNTA(U71)","v":0}]
[]
[]
[null,"42. Zwierzęta gospodarskie i nieprzetworzone produkty zwierzęce",null,null,null,null,null,null,null,null,null,null,null,null,null,null,null,null,null,null,null,null,null,null,{"$f":"COUNTA(O74)","v":0},{"$f":"IF(AND(COUNTA(O74)=1,COUNTA(U74)=1),1,0)","v":0},{"$f":"COUNTA(R74)","v":0},{"$f":"COUNTA(U74)","v":0}]
[]
[]
[null,"43. Algi i nieprzetworzone produkty z akwakultury",null,null,null,null,null,null,null,null,null,null,null,null,null,null,null,null,null,null,null,null,null,null,{"$f":"COUNTA(O77)","v":0},{"$f":"IF(AND(COUNTA(O77)=1,COUNTA(U77)=1),1,0)","v":0},{"$f":"COUNTA(R77)","v":0},{"$f":"COUNTA(U77)","v":0}]
[]
[]
[null,"44. Przetworzone produkty rolne, w tym produkty akwakultury do wykorzystania jako żywność",null,null,null,null,null,null,null,null,null,null,null,null,null,null,null,null,null,null,null,null,null,null,{"$f":"COUNTA(O80)","v":0},{"$f":"IF(AND(COUNTA(O80)=1,COUNTA(U80)=1),1,0)","v":0},{"$f":"COUNTA(R80)","v":0},{"$f":"COUNTA(U80)","v":0}]
[]
[]
[null,"45. Pasze",null,null,null,null,null,null,null,null,null,null,null,null,null,null,null,null,null,null,null,null,null,null,{"$f":"COUNTA(O83)","v":0},{"$f":"IF(AND(COUNTA(O83)=1,COUNTA(U83)=1),1,0)","v":0},{"$f":"COUNTA(R83)","v":0},{"$f":"COUNTA(U83)","v":0}]
[]
[]
[null,"46. Wino",null,null,null,null,null,null,null,null,null,null,null,null,null,null,null,null,null,null,null,null,null,null,{"$f":"COUNTA(O86)","v":0},{"$f":"IF(AND(COUNTA(O86)=1,COUNTA(U86)=1),1,0)","v":0},{"$f":"COUNTA(R86)","v":0},{"$f":"COUNTA(U86)","v":0}]
[]
[]
[null,"47. Inne produkty wymienione w załączniku I do rozporządzenia 2018/848 lub nieobjęte poprzednimi kategoriami",null,null,null,null,null,null,null,null,null,null,null,null,null,null,null,null,null,null,null,null,null,null,{"$f":"COUNTA(O89)","v":0},{"$f":"IF(AND(COUNTA(O89)=1,COUNTA(U89)=1),1,0)","v":0},{"$f":"COUNTA(R89)","v":0},{"$f":"COUNTA(U89)","v":0}]
[]
[null,"Sekcja VII. DYSTRYBUCJA/WPROWADZANIE DO OBROTU"]
[]
[null,null,null,null,null,null,null,null,null,null,null,null,null,"ekologiczna",null,null,"zlecana ₅ ",null,null,"nieekologiczna ₆",null,null,null,null,null,null,null,null,null,null,"Dystrybucja produktów ekologicznych lub produktów w okresie konwersji, w tym odbiór i transport takich produktów lub wprowadzanie do obrotu zgodnie z definicją w art. 3 pkt (48) rozporządzenia (UE)\n2018/848.\n\n„wprowadzanie do obrotu” oznacza wprowadzanie na rynek zgodnie z definicją w art. 3 pkt 8. rozporządzenia (WE) nr 178/2002 \n\nUwaga! Działalność „wprowadzanie do obrotu” produktów ekologicznych lub produktów w okresie konwersji obejmuje sprzedaż hurtową, detaliczną i sprzedaż przez Internet.\n\nProducent ekologiczny dystrybuuje i/lub wprowadza do obrotu produkty ekologiczne lub produkty przetworzone, które nie są przez niego produkowane lub przygotowywane.\n"]
[null,"48a. Nieprzetworzone rośliny i produkty roślinne",null,null,null,null,null,null,null,null,null,null,null,null,null,null,null,null,null,null,null,null,null,null,{"$f":"COUNTA(O94)","v":0},{"$f":"IF(AND(COUNTA(O94)=1,COUNTA(U94)=1),1,0)","v":0},{"$f":"COUNTA(R94)","v":0},{"$f":"COUNTA(U94)","v":0},{"$f":"IF(OR(SUM(Y94:Y115)>0,SUM(Z94:Z115)>0,SUM(AA94:AA115)>0,SUM(AB94:AB115)>0),1,0)","v":0}]
[]
[]
[null,"48b. Nasiona i inny materiał przeznaczony do reprodukcji roślin",null,null,null,null,null,null,null,null,null,null,null,null,null,null,null,null,null,null,null,null,null,null,{"$f":"COUNTA(O97)","v":0},{"$f":"IF(AND(COUNTA(O97)=1,COUNTA(U97)=1),1,0)","v":0},{"$f":"COUNTA(R97)","v":0},{"$f":"COUNTA(U97)","v":0}]
[]
[]
[null,"49. Zwierzęta gospodarskie i nieprzetworzone produkty zwierzęce",null,null,null,null,null,null,null,null,null,null,null,null,null,null,null,null,null,null,null,null,null,null,{"$f":"COUNTA(O100)","v":0},{"$f":"IF(AND(COUNTA(O100)=1,COUNTA(U100)=1),1,0)","v":0},{"$f":"COUNTA(R100)","v":0},{"$f":"COUNTA(U100)","v":0}]
[]
[]
[null,"50. Algi i nieprzetworzone produkty z akwakultury",null,null,null,null,null,null,null,null,null,null,null,null,null,null,null,null,null,null,null,null,null,null,{"$f":"COUNTA(O103)","v":0},{"$f":"IF(AND(COUNTA(O103)=1,COUNTA(U103)=1),1,0)","v":0},{"$f":"COUNTA(R103)","v":0},{"$f":"COUNTA(U103)","v":0}]
[]
[]
[null,"51. Przetworzone produkty rolne, w tym produkty akwakultury do wykorzystania jako żywność",null,null,null,null,null,null,null,null,null,null,null,null,null,null,null,null,null,null,null,null,null,null,{"$f":"COUNTA(O106)","v":0},{"$f":"IF(AND(COUNTA(O106)=1,COUNTA(U106)=1),1,0)","v":0},{"$f":"COUNTA(R106)","v":0},{"$f":"COUNTA(U106)","v":0}]
[]
[]
[null,"52. Pasze",null,null,null,null,null,null,null,null,null,null,null,null,null,null,null,null,null,null,null,null,null,null,{"$f":"COUNTA(O109)","v":0},{"$f":"IF(AND(COUNTA(O109)=1,COUNTA(U109)=1),1,0)","v":0},{"$f":"COUNTA(R109)","v":0},{"$f":"COUNTA(U109)","v":0}]
[]
[]
[null,"53. Wino",null,null,null,null,null,null,null,null,null,null,null,null,null,null,null,null,null,null,null,null,null,null,{"$f":"COUNTA(O112)","v":0},{"$f":"IF(AND(COUNTA(O112)=1,COUNTA(U112)=1),1,0)","v":0},{"$f":"COUNTA(R112)","v":0},{"$f":"COUNTA(U112)","v":0}]
[]
[]
[null,"54. Inne produkty wymienione w załączniku I do rozporządzenia 2018/848 lub nieobjęte poprzednimi kategoriami",null,null,null,null,null,null,null,null,null,null,null,null,null,null,null,null,null,null,null,null,null,null,{"$f":"COUNTA(O115)","v":0},{"$f":"IF(AND(COUNTA(O115)=1,COUNTA(U115)=1),1,0)","v":0},{"$f":"COUNTA(R115)","v":0},{"$f":"COUNTA(U115)","v":0}]
[]
[null,"Sekcja VIII. PRZECHOWYWANIE"]
[]
[null,null,null,null,null,null,null,null,null,null,null,null,null,"ekologiczna",null,null,"zlecana ₅ ",null,null,"nieekologiczna ₆",null,null,null,null,null,null,null,null,null,null,"Przechowywanie produktów organicznych lub produktów w okresie konwersji.\n\nProducent ekologiczny przechowuje produkty ekologiczne lub produkty konwersji, które nie są przez niego produkowane lub przygotowywane."]
[null,"55a. Nieprzetworzone rośliny i produkty roślinne",null,null,null,null,null,null,null,null,null,null,null,null,null,null,null,null,null,null,null,null,null,null,{"$f":"COUNTA(O120)","v":0},{"$f":"IF(AND(COUNTA(O120)=1,COUNTA(U120)=1),1,0)","v":0},{"$f":"COUNTA(R120)","v":0},{"$f":"COUNTA(U120)","v":0},{"$f":"IF(OR(SUM(Y120:Y141)>0,SUM(Z120:Z141)>0,SUM(AA120:AA141)>0,SUM(AB120:AB141)>0),1,0)","v":0}]
[]
[]
[null,"55b. Nasiona i inny materiał przeznaczony do reprodukcji roślin",null,null,null,null,null,null,null,null,null,null,null,null,null,null,null,null,null,null,null,null,null,null,{"$f":"COUNTA(O123)","v":0},{"$f":"IF(AND(COUNTA(O123)=1,COUNTA(U123)=1),1,0)","v":0},{"$f":"COUNTA(R123)","v":0},{"$f":"COUNTA(U123)","v":0}]
[]
[]
[null,"56. Zwierzęta gospodarskie i nieprzetworzone produkty zwierzęce",null,null,null,null,null,null,null,null,null,null,null,null,null,null,null,null,null,null,null,null,null,null,{"$f":"COUNTA(O126)","v":0},{"$f":"IF(AND(COUNTA(O126)=1,COUNTA(U126)=1),1,0)","v":0},{"$f":"COUNTA(R126)","v":0},{"$f":"COUNTA(U126)","v":0}]
[]
[]
[null,"57. Algi i nieprzetworzone produkty z akwakultury",null,null,null,null,null,null,null,null,null,null,null,null,null,null,null,null,null,null,null,null,null,null,{"$f":"COUNTA(O129)","v":0},{"$f":"IF(AND(COUNTA(O129)=1,COUNTA(U129)=1),1,0)","v":0},{"$f":"COUNTA(R129)","v":0},{"$f":"COUNTA(U129)","v":0}]
[]
[]
[null,"58. Przetworzone produkty rolne, w tym produkty akwakultury do wykorzystania jako żywność",null,null,null,null,null,null,null,null,null,null,null,null,null,null,null,null,null,null,null,null,null,null,{"$f":"COUNTA(O132)","v":0},{"$f":"IF(AND(COUNTA(O132)=1,COUNTA(U132)=1),1,0)","v":0},{"$f":"COUNTA(R132)","v":0},{"$f":"COUNTA(U132)","v":0}]
[]
[]
[null,"59. Pasze",null,null,null,null,null,null,null,null,null,null,null,null,null,null,null,null,null,null,null,null,null,null,{"$f":"COUNTA(O135)","v":0},{"$f":"IF(AND(COUNTA(O135)=1,COUNTA(U135)=1),1,0)","v":0},{"$f":"COUNTA(R135)","v":0},{"$f":"COUNTA(U135)","v":0}]
[]
[]
[null,"60. Wino",null,null,null,null,null,null,null,null,null,null,null,null,null,null,null,null,null,null,null,null,null,null,{"$f":"COUNTA(O138)","v":0},{"$f":"IF(AND(COUNTA(O138)=1,COUNTA(U138)=1),1,0)","v":0},{"$f":"COUNTA(R138)","v":0},{"$f":"COUNTA(U138)","v":0}]
[]
[]
[null,"61. Inne produkty wymienione w załączniku I do rozporządzenia 2018/848 lub nieobjęte poprzednimi kategoriami",null,null,null,null,null,null,null,null,null,null,null,null,null,null,null,null,null,null,null,null,null,null,{"$f":"COUNTA(O141)","v":0},{"$f":"IF(AND(COUNTA(O141)=1,COUNTA(U141)=1),1,0)","v":0},{"$f":"COUNTA(R141)","v":0},{"$f":"COUNTA(U141)","v":0}]
[]
[null,"F-7/PG-BRE-03, wydanie 9 z dnia 19 kwietnia 2024 r. str. 2 z 3"]
[null,null,null,null,null,null,null,null,null,null,null,null,null,null,null,null,null,null,null,null,null,null,""]
[null,"Sekcja IX. IMPORT"]
[]
[null,null,null,null,null,null,null,null,null,null,null,null,null,"ekologiczna",null,null,"zlecana ₅ ",null,null,"nieekologiczna ₆",null,null,null,null,null,null,null,null,null,null,"Przywóz produktów ekologicznych lub produktów w okresie konwersji z państwa trzeciego do Unii.\n\nProducent ekologiczny wykonuje czynność „import”."]
[null,"62a. Nieprzetworzone rośliny i produkty roślinne",null,null,null,null,null,null,null,null,null,null,null,null,null,null,null,null,null,null,null,null,null,null,{"$f":"COUNTA(O148)","v":0},{"$f":"IF(AND(COUNTA(O148)=1,COUNTA(U148)=1),1,0)","v":0},{"$f":"COUNTA(R148)","v":0},{"$f":"COUNTA(U148)","v":0},{"$f":"IF(OR(SUM(Y148:Y169)>0,SUM(Z148:Z169)>0,SUM(AA148:AA169)>0,SUM(AB148:AB169)>0),1,0)","v":0}]
[]
[]
[null,"62b. Nasiona i inny materiał przeznaczony do reprodukcji roślin",null,null,null,null,null,null,null,null,null,null,null,null,null,null,null,null,null,null,null,null,null,null,{"$f":"COUNTA(O151)","v":0},{"$f":"IF(AND(COUNTA(O151)=1,COUNTA(U151)=1),1,0)","v":0},{"$f":"COUNTA(R151)","v":0},{"$f":"COUNTA(U151)","v":0}]
[]
[]
[null,"63. Zwierzęta gospodarskie i nieprzetworzone produkty zwierzęce",null,null,null,null,null,null,null,null,null,null,null,null,null,null,null,null,null,null,null,null,null,null,{"$f":"COUNTA(O154)","v":0},{"$f":"IF(AND(COUNTA(O154)=1,COUNTA(U154)=1),1,0)","v":0},{"$f":"COUNTA(R154)","v":0},{"$f":"COUNTA(U154)","v":0}]
[]
[]
[null,"64. Algi i nieprzetworzone produkty z akwakultury",null,null,null,null,null,null,null,null,null,null,null,null,null,null,null,null,null,null,null,null,null,null,{"$f":"COUNTA(O157)","v":0},{"$f":"IF(AND(COUNTA(O157)=1,COUNTA(U157)=1),1,0)","v":0},{"$f":"COUNTA(R157)","v":0},{"$f":"COUNTA(U157)","v":0}]
[]
[]
[null,"65. Przetworzone produkty rolne, w tym produkty akwakultury do wykorzystania jako żywność",null,null,null,null,null,null,null,null,null,null,null,null,null,null,null,null,null,null,null,null,null,null,{"$f":"COUNTA(O160)","v":0},{"$f":"IF(AND(COUNTA(O160)=1,COUNTA(U160)=1),1,0)","v":0},{"$f":"COUNTA(R160)","v":0},{"$f":"COUNTA(U160)","v":0}]
[]
[]
[null,"66. Pasze",null,null,null,null,null,null,null,null,null,null,null,null,null,null,null,null,null,null,null,null,null,null,{"$f":"COUNTA(O163)","v":0},{"$f":"IF(AND(COUNTA(O163)=1,COUNTA(U163)=1),1,0)","v":0},{"$f":"COUNTA(R163)","v":0},{"$f":"COUNTA(U163)","v":0}]
[]
[]
[null,"67. Wino",null,null,null,null,null,null,null,null,null,null,null,null,null,null,null,null,null,null,null,null,null,null,{"$f":"COUNTA(O166)","v":0},{"$f":"IF(AND(COUNTA(O166)=1,COUNTA(U166)=1),1,0)","v":0},{"$f":"COUNTA(R166)","v":0},{"$f":"COUNTA(U166)","v":0}]
[]
[]
[null,"68. Inne produkty wymienione w załączniku I do rozporządzenia 2018/848 lub nieobjęte poprzednimi kategoriami",null,null,null,null,null,null,null,null,null,null,null,null,null,null,null,null,null,null,null,null,null,null,{"$f":"COUNTA(O169)","v":0},{"$f":"IF(AND(COUNTA(O169)=1,COUNTA(U169)=1),1,0)","v":0},{"$f":"COUNTA(R169)","v":0},{"$f":"COUNTA(U169)","v":0}]
[]
[null,"Sekcja X. EKSPORT"]
[]
[null,null,null,null,null,null,null,null,null,null,null,null,null,"ekologiczna",null,null,"zlecana ₅ ",null,null,"nieekologiczna ₆",null,null,null,null,null,null,null,null,null,null,"Wywóz produktów ekologicznych lub produktów w okresie konwersji z Unii do państwa trzeciego.\n\nProducent ekologiczny prowadzi działalność „eksport”."]
[null,"69a. Nieprzetworzone rośliny i produkty roślinne",null,null,null,null,null,null,null,null,null,null,null,null,null,null,null,null,null,null,null,null,null,null,{"$f":"COUNTA(O174)","v":0},{"$f":"IF(AND(COUNTA(O174)=1,COUNTA(U174)=1),1,0)","v":0},{"$f":"COUNTA(R174)","v":0},{"$f":"COUNTA(U174)","v":0},{"$f":"IF(OR(SUM(Y174:Y195)>0,SUM(Z174:Z195)>0,SUM(AA174:AA195)>0,SUM(AB174:AB195)>0),1,0)","v":0}]
[]
[]
[null,"69b. Nasiona i inny materiał przeznaczony do reprodukcji roślin",null,null,null,null,null,null,null,null,null,null,null,null,null,null,null,null,null,null,null,null,null,null,{"$f":"COUNTA(O177)","v":0},{"$f":"IF(AND(COUNTA(O177)=1,COUNTA(U177)=1),1,0)","v":0},{"$f":"COUNTA(R177)","v":0},{"$f":"COUNTA(U177)","v":0}]
[]
[]
[null,"70. Zwierzęta gospodarskie i nieprzetworzone produkty zwierzęce",null,null,null,null,null,null,null,null,null,null,null,null,null,null,null,null,null,null,null,null,null,null,{"$f":"COUNTA(O180)","v":0},{"$f":"IF(AND(COUNTA(O180)=1,COUNTA(U180)=1),1,0)","v":0},{"$f":"COUNTA(R180)","v":0},{"$f":"COUNTA(U180)","v":0}]
[]
[]
[null,"71. Algi i nieprzetworzone produkty z akwakultury",null,null,null,null,null,null,null,null,null,null,null,null,null,null,null,null,null,null,null,null,null,null,{"$f":"COUNTA(O183)","v":0},{"$f":"IF(AND(COUNTA(O183)=1,COUNTA(U183)=1),1,0)","v":0},{"$f":"COUNTA(R183)","v":0},{"$f":"COUNTA(U183)","v":0}]
[]
[]
[null,"72. Przetworzone produkty rolne, w tym produkty akwakultury do wykorzystania jako żywność",null,null,null,null,null,null,null,null,null,null,null,null,null,null,null,null,null,null,null,null,null,null,{"$f":"COUNTA(O186)","v":0},{"$f":"IF(AND(COUNTA(O186)=1,COUNTA(U186)=1),1,0)","v":0},{"$f":"COUNTA(R186)","v":0},{"$f":"COUNTA(U186)","v":0}]
[]
[]
[null,"73. Pasze",null,null,null,null,null,null,null,null,null,null,null,null,null,null,null,null,null,null,null,null,null,null,{"$f":"COUNTA(O189)","v":0},{"$f":"IF(AND(COUNTA(O189)=1,COUNTA(U189)=1),1,0)","v":0},{"$f":"COUNTA(R189)","v":0},{"$f":"COUNTA(U189)","v":0}]
[]
[]
[null,"74. Wino",null,null,null,null,null,null,null,null,null,null,null,null,null,null,null,null,null,null,null,null,null,null,{"$f":"COUNTA(O192)","v":0},{"$f":"IF(AND(COUNTA(O192)=1,COUNTA(U192)=1),1,0)","v":0},{"$f":"COUNTA(R192)","v":0},{"$f":"COUNTA(U192)","v":0}]
[]
[]
[null,"75. Inne produkty wymienione w załączniku I do rozporządzenia 2018/848 lub nieobjęte poprzednimi kategoriami",null,null,null,null,null,null,null,null,null,null,null,null,null,null,null,null,null,null,null,null,null,null,{"$f":"COUNTA(O195)","v":0},{"$f":"IF(AND(COUNTA(O195)=1,COUNTA(U195)=1),1,0)","v":0},{"$f":"COUNTA(R195)","v":0},{"$f":"COUNTA(U195)","v":0}]
[]
[null,null,null,null,null,null,null,null,null,null,null,null,null,null,null,null,null,null,null,{"$f":"Y201","v":"N"}]
[null,"Zobowiązuję się do realizacji zadań i obowiązków określonych na podstawie art. 15 rozporządzenia Parlamentu Europejskiego i Rady (UE) 2017/625.\nWyrażam zgodę na przetwarzanie moich danych osobowych i danych o prowadzonej przeze mnie produkcji ekologicznej w rozumieniu art. 3 pkt 1 rozporządzenia Parlamentu Europejskiego i Rady (UE) nr 2018/848, zgodnie z art. 6 ust 1 lit. a rozporządzenia Parlamentu Europejskiego i Rady (UE) nr 2016/679 RODO przez wybraną jednostkę certyfikującą (wskazaną w sekcji IV niniejszego Zgłoszenia) oraz Wojewódzkiego Inspektora Jakości Handlowej Artykułów Rolno-Spożywczych oraz Głównego Inspektora Jakości Handlowej Artykułów Rolno-Spożywczych na potrzeby kontroli urzędowych i innych czynności urzędowych ustanowionych na podstawie rozporządzenia Parlamentu Europejskiego i Rady (UE) 2017/625 oraz na podstawie Rozporządzenia Parlamentu Europejskiego i Rady (UE) 2018/848.",null,null,null,null,null,null,null,null,null,null,null,null,null,null,null,null,null,null,null,null,null,null,{"$f":"IF(SUM(Y48:Y195)>1,2,1)","v":1},{"$f":"IF(SUM(Z48:Z195)>0,2,1)","v":1},{"$f":"IF(SUM(AA48:AA195)>0,3,1)","v":1},null,{"$f":"IF(SUM(AC48,AC68,AC94,AC120,AC148,AC174)>1,3,1)","v":1},null,"Odpowiednie kategorie działalności, wymienione powyżej należy zaznaczyć także w sytuacjach gdy:\n\n· Producent wykonuje daną działalność jako podwykonawca dla innego podmiotu i przyjmuje odpowiedzialność w zakresie produkcji ekologicznej zgodnie z art. 34 ust. 3 rozporządzenia (UE) 2018/848.\n\n· Producent zlecił wykonanie określonej działalności lub jej części stronie trzeciej, ale pozostaje odpowiedzialny w odniesieniu do produkcji ekologicznej i nie przekazał tej odpowiedzialności stronie trzeciej zgodnie z art. 34 ust. 3 rozporządzenia (UE) 2018/848."]
[]
[null,"Data wypełnienia zgłoszenia",null,null,null,null,null,null,null,null,null,null,"Podpis (Imię i Nazwisko) zgłaszającego/osoby uprawnionej do reprezentacji/pełnomocnika*",null,null,null,null,null,null,null,null,null,null,null,{"$f":"MAX(Y198:AC198)","v":1}]
[null,null,null,null,null,null,null,null,null,null,null,null,null,null,null,null,null,null,null,null,null,null,null,null,{"$f":"IF(Y200<1.65,\"N\",IF(Y200>=2.3,\"W\",\"Ś\"))","v":"N"}]
[null,null,null,null,"-",null,null,"-"]
[null,null,"Dzień",null,null,"Miesiąc",null,null,"Rok"]
[null,null,null,null,null,null,null,null,null,null,null,null,"*w przypadku złożenia podpisu przez pełnomocnika należy dołączyć pełnomocnictwo"]
[null,"1) zaznaczyć wybór znakiem \"x\""]
[null,"2) j.o.n.o.p => jednostka organizacyjna nieposiadająca osobowości prawnej  "]
[null,"3) numer identyfikacyjny nadany producentowi ekologicznemu w trybie przepisów ustawy z dnia 18 grudnia 2003 r. o krajowym systemie ewidencji producentów, ewidencji gospodarstw rolnych oraz ewidencji wniosków o przyznanie płatności                    "]
[null,"4) wypełnia osoba fizyczna nieposiadająca obywatelstwa polskiego      "]
[null,"5) zaznaczyć jeżeli zgłoszona ekologiczna kategoria działalności jest zlecona w całości lub w części stronie trzeciej (podwykonawcy)                         "]
[null,"6) zaznaczyć jeżeli Zgłaszający prowadzi zarówno działalność ekologiczną jak i nieekologiczną w tej samej kategorii"]
[null,"F-7/PG-BRE-03, wydanie 9 z dnia 19 kwietnia 2024 r. str. 3 z 3"]

{"sheet":"Zał. 1. Obiekty","index":2,"n_rows":40,"n_cols":12,"rows_kept":40,"cut":false,"hidden":false,"merged":[[18,11,19,11],[6,2,6,10],[2,2,4,10],[7,2,8,2],[7,3,8,3],[7,4,8,4],[7,5,8,5],[7,6,8,6],[7,7,8,7],[7,8,8,8],[7,10,8,10],[7,9,8,9]]}
[]
[]
[null,null,"Załącznik 1 do zlecenia certyfikacji: Lokalizacja obiektów \n(opis jednostki)"]
[]
[]
[]
[null,null,{"$f":"IF(AND(ZGŁOSZENIE!B18=\"\",ZGŁOSZENIE!M18=\"\"),CONCATENATE(\"imię i nazwisko/pełna nazwa: .................................................................................................................................................................................................... \",'ZLECENIE CERTYFIKACJI'!D20,\" - nr ARiMR: ............................................... \",'ZLECENIE CERTYFIKACJI'!U28),CONCATENATE(\"imię i nazwisko/pełna nazwa: \",'ZLECENIE CERTYFIKACJI'!D20,\" - nr ARiMR: \",\"\",'ZLECENIE CERTYFIKACJI'!U28))","v":"imię i nazwisko/pełna nazwa: ....................................................................................................................................................................................................  - nr ARiMR: ............................................... "}]
[null,null,"Lp.","Rodzaj obiektu","Użytkownik obiektu w którym prowadzona jest działalność","Województwo","Powiat","Gmina","Adres (miejscowość, ulica, numer budynku/lokalu, kod pocztowy, poczta)","Wykorzysta- nie (E/K)","Przeznaczenie obiektu"]
[]
[null,null,1,2,3,4,5,6,7,8,9,"EK"]
["",null,1,null,null,null,null,null,null,null,null,""]
["",null,2,null,null,null,null,null,null,null,null,""]
["",null,3,null,null,null,null,null,null,null,null,""]
["",null,4,null,null,null,null,null,null,null,null,""]
["",null,5,null,null,null,null,null,null,null,null,""]
["",null,6,null,null,null,null,null,null,null,null,""]
["",null,7,null,null,null,null,null,null,null,null,""]
["",null,8,null,null,null,null,null,null,null,null,""]
["",null,9,null,null,null,null,null,null,null,null,"Strona 1 z 1"]
["",null,10]
[]
[]
[null,null,null,"Rodzaj obiektu:","Użytkownik obiektu:",null,"województwo",null,null,"Wykorzystanie:","Przeznaczenie obiektu:"]
[null,null,null,"budynek gospodarczy","Zgłaszający",null,"dolnośląskie",null,null,"E","magazynowanie produktu"]
[null,null,null,"budynek inwentarski","Podwykonawca",null,"kujawsko-pomorskie",null,null,"K","przetrzymywanie zwierząt"]
[null,null,null,"chlewnia",null,null,"lubelskie",null,null,"EK","składowanie nawozów i/lub środków ochrony roślin"]
[null,null,null,"chłodnia",null,null,"lubuskie",null,null,null,"składowanie zakupionego materiału siewnego/nasadzeniowego"]
[null,null,null,"kurnik",null,null,"łódzkie",null,null,null,"przechowywanie sprzętu rolniczego"]
[null,null,null,"magazyn",null,null,"małopolskie"]
[null,null,null,"obiekt akwakultury - pozostałe",null,null,"mazowieckie"]
[null,null,null,"obiekt akwakultury - staw",null,null,"opolskie"]
[null,null,null,"obora",null,null,"podkarpackie"]
[null,null,null,"owczarnia",null,null,"podlaskie"]
[null,null,null,"spichlerz",null,null,"pomorskie"]
[null,null,null,"stajnia",null,null,"śląskie"]
[null,null,null,"stodoła",null,null,"świętokrzyskie"]
[null,null,null,"szklarnia",null,null,"warmińsko-mazurskie"]
[null,null,null,"wybieg",null,null,"wielkopolskie"]
[null,null,null,"zakład przetwórczy",null,null,"zachodniopomorskie"]
[null,null,null,"inne (określić jakie?)"]

{"sheet":"Zał. 2. Działki","index":3,"n_rows":1005,"n_cols":31,"rows_kept":1005,"cut":false,"hidden":false,"merged":[[6,2,6,17],[7,2,9,2],[7,6,7,11],[7,12,7,17],[8,6,9,6],[8,7,9,7],[8,8,9,8],[8,9,9,9],[7,3,7,5],[8,5,9,5],[8,4,9,4],[8,3,9,3],[37,24,41,28],[36,22,36,28],[8,17,9,17],[8,10,8,11],[8,12,8,13],[8,14,9,14],[8,15,9,15],[8,16,9,16],[11,22,11,24],[25,26,27,26],[25,27,27,27],[25,28,27,28],[21,23,21,24],[25,22,27,22],[25,23,27,23],[25,24,27,24],[23,18,24,18],[37,18,38,18],[51,18,52,18],[65,18,66,18],[79,18,80,18],[93,18,94,18],[107,18,108,18],[121,18,122,18],[135,18,136,18],[149,18,150,18],[163,18,164,18],[177,18,178,18],[191,18,192,18],[205,18,206,18],[219,18,220,18],[233,18,234,18],[247,18,248,18],[261,18,262,18],[275,18,276,18],[289,18,290,18],[303,18,304,18],[317,18,318,18],[331,18,332,18],[345,18,346,18],[359,18,360,18],[373,18,374,18],[387,18,388,18],[401,18,402,18],[415,18,416,18],[429,18,430,18],[443,18,444,18],[457,18,458,18],[471,18,472,18],[485,18,486,18],[499,18,500,18],[513,18,514,18],[527,18,528,18],[541,18,542,18],[555,18,556,18],[569,18,570,18],[583,18,584,18],[597,18,598,18],[611,18,612,18],[625,18,626,18],[639,18,640,18],[653,18,654,18],[667,18,668,18],[681,18,682,18],[695,18,696,18],[709,18,710,18],[849,18,850,18],[723,18,724,18],[737,18,738,18],[751,18,752,18],[765,18,766,18],[779,18,780,18],[2,2,4,17],[1003,18,1004,18],[933,18,934,18],[947,18,948,18],[961,18,962,18],[975,18,976,18],[989,18,990,18],[863,18,864,18],[877,18,878,18],[891,18,892,18],[905,18,906,18],[919,18,920,18],[793,18,794,18],[807,18,808,18],[821,18,822,18],[835,18,836,18]]}
[]
[]
[null,null,"Załącznik 2 do zlecenia certyfikacji: Lokalizacja działek\n(opis jednostki)"]
[]
[]
[]
[null,null,{"$f":"IF(AND(ZGŁOSZENIE!B18=\"\",ZGŁOSZENIE!M18=\"\"),CONCATENATE(\"imię i nazwisko/pełna nazwa: .................................................................................................................................................................................................... \",'ZLECENIE CERTYFIKACJI'!D20,\" - nr ARiMR: ............................................... \",'ZLECENIE CERTYFIKACJI'!U28),CONCATENATE(\"imię i nazwisko/pełna nazwa: \",'ZLECENIE CERTYFIKACJI'!D20,\" - nr ARiMR: \",'ZLECENIE CERTYFIKACJI'!U28,CHAR(10),\"Powierzchnia gospodarstwa (ha)\",\"  C:\",TEXT($AC$32,\"00,00\"),\"  E:\",TEXT($AC$34,\"00,00\"),\"  K:\",TEXT($AC$35,\"00,00\")))","v":"imię i nazwisko/pełna nazwa: ....................................................................................................................................................................................................  - nr ARiMR: ............................................... "},null,null,null,null,null,null,null,null,null,null,null,null,null,null,null,null,null,null,null,null,"E"]
[null,null,"Lp.","Położenie działki ewidencyjnej",null,null,"Dane wg ewidencji gruntów i budynków",null,null,null,null,null,"Działki rolne w obrębie działki ewidencyjnej",null,null,null,null,null,null,null,null,null,null,"K"]
[null,null,null,"Województwo","Powiat","Gmina","Nazwa obrębu ewidencyjnego","Numer obrębu ewidencyjnego","Numer arkusza mapy","Numer działki ewiden- cyjnej","Powierzchnia całkowita działki ewidencyjnej",null,"Powierzchnia działek rolnych w obrębie danej działki ewidencyjnej",null,"Wykorzystanie działki rolnej (E/K)","Data ostatniego zastosowania środka niedozwolonego w rolnictwie ekologicznym","Sąsiedztwo działki ekologicznej z uprawami które wymagają stosowania środków ochrony roślin","Uwagi/ Powód zmiany danych"]
[null,null,null,null,null,null,null,null,null,null,"ha","ar","ha","ar"]
[null,null,1,2,3,4,5,6,7,8,9,10,11,12,13,14,15,16]
[1,null,1,null,null,null,null,null,null,null,null,null,null,null,null,null,null,null,null,{"$f":"IF(AND(K12=\"\",L12=\"\"),\"\",K12+L12/100)","v":""},{"$f":"IF(AND(M12=\"\",N12=\"\"),\"\",M12+N12/100)","v":""},null,"Cena za certyfikację",null,null,null,"ilośc stron",{"$f":"IF($D$768<>\"\",55,IF($D$754<>\"\",54,IF($D$740<>\"\",53,IF($D$726<>\"\",52,IF($D$712<>\"\",51,IF($D$698<>\"\",50,IF($D$684<>\"\",49,IF($D$670<>\"\",48,IF($D$656<>\"\",47,IF($D$642<>\"\",46,IF($D$628<>\"\",45,IF($D$614<>\"\",44,IF($D$600<>\"\",43,IF($D$586<>\"\",42,IF($D$572<>\"\",41,IF($D$558<>\"\",40,IF($D$544<>\"\",39,IF($D$530<>\"\",38,IF($D$516<>\"\",37,IF($D$502<>\"\",36,IF($D$488<>\"\",35,IF($D$474<>\"\",34,IF($D$460<>\"\",33,IF($D$446<>\"\",32,IF($D$432<>\"\",31,IF($D$418<>\"\",30,IF($D$404<>\"\",29,IF($D$390<>\"\",28,IF($D$376<>\"\",27,IF($D$362<>\"\",26,IF($D$348<>\"\",25,IF($D$334<>\"\",24,IF($D$320<>\"\",23,IF($D$306<>\"\",22,IF($D$292<>\"\",21,IF($D$278<>\"\",20,IF($D$264<>\"\",19,IF($D$250<>\"\",18,IF($D$236<>\"\",17,IF($D$222<>\"\",16,IF($D$208<>\"\",15,IF($D$194<>\"\",14,IF($D$180<>\"\",13,IF($D$166<>\"\",12,IF($D$152<>\"\",11,IF($D$138<>\"\",10,IF($D$124<>\"\",9,IF($D$110<>\"\",8,IF($D$96<>\"\",7,IF($D$82<>\"\",6,IF($D$68<>\"\",5,IF($D$54<>\"\",4,IF($D$40<>\"\",3,IF($D$26<>\"\",2,1))))))))))))))))))))))))))))))))))))))))))))))))))))))","v":1},null,null,{"$f":"IF(U12=\"\",\"\",IF(U12>T12,\"!!!\",\"\"))","v":""}]
[null,null,2,null,null,null,null,null,null,null,null,null,null,null,null,null,null,null,null,{"$f":"IF(AND(K13=\"\",L13=\"\"),\"\",K13+L13/100)","v":""},{"$f":"IF(AND(M13=\"\",N13=\"\"),\"\",M13+N13/100)","v":""},null,0.01,5,750,null,"Czy jeden powiat?",{"$f":"IF(AB15=AB14,\"Tak\",\"Nie\")","v":"Tak"},null,null,""]
[null,null,3,null,null,null,null,null,null,null,null,null,null,null,null,null,null,null,null,"","",null,5.01,10,850,null,"Liczba powiatów",{"$f":"COUNTIF($E:$E,$AC$14)","v":0},{"$f":"E12","v":0},null,""]
[null,null,4,null,null,null,null,null,null,null,null,null,null,null,null,null,null,null,null,"","",null,10.01,20,1000,null,"Liczba działek",{"$f":"SUM(COUNTIF($O:$O,\"E\"),COUNTIF($O:$O,\"K\"))","v":0},null,null,""]
[null,null,5,null,null,null,null,null,null,null,null,null,null,null,null,null,null,null,null,"","",null,20.010000000000002,50,1100,null,null,null,null,null,""]
[null,null,6,null,null,null,null,null,null,null,null,null,null,null,null,null,null,null,null,"","",null,50.01,100,1250,null,null,"dodanie działki",null,null,""]
[null,null,7,null,null,null,null,null,null,null,null,null,null,null,null,null,null,null,null,"","",null,100.01,300,1450,null,null,"wycofanie działki",null,null,""]
[null,null,8,null,null,null,null,null,null,null,null,null,null,null,null,null,null,null,null,"","",null,300.01,500,1600,null,null,"zmiana MKO",null,null,""]
[null,null,9,null,null,null,null,null,null,null,null,null,null,null,null,null,null,null,null,"","",null,500.01,1000,2000,null,null,"podział działki",null,null,""]
[null,null,10,null,null,null,null,null,null,null,null,null,null,null,null,null,null,null,null,"","",null,1000.01,2000,2500,null,null,"zmiana numeru działki",null,null,""]
[null,null,11,null,null,null,null,null,null,null,null,null,null,null,null,null,null,null,null,"","",null,"ha UR",{"$f":"Y31+AC31","v":0},null,null,null,null,null,null,""]
[null,null,12,null,null,null,null,null,null,null,null,null,null,null,null,null,null,null,null,"","",null,"Cena",{"$f":"IFERROR(IF(X22=\" \",\" \",VLOOKUP(X22,W13:Y21,3,TRUE)),\"\")","v":""},null,null,null,null,null,null,""]
[null,null,13,null,null,null,null,null,null,null,null,null,null,null,null,null,null,null,{"$f":"CONCATENATE(\"Strona \",A12,\" z \",$AB$12)","v":"Strona 1 z 1"},"","",null,"specj.",{"$f":"X23","v":""},null,null,null,null,null,null,""]
[null,null,14,null,null,null,null,null,null,null,null,null,null,null,null,null,null,null,null,"",""]
[2,null,15,null,null,null,null,null,null,null,null,null,null,null,null,null,null,null,null,"","",null,"E","Pow. Całkowita","Pow. UR",null,"K","Pow. Całkowita","Pow. UR"]
[null,null,16,null,null,null,null,null,null,null,null,null,null,null,null,null,null,null,null,"","",null,null,"Pow. całkowita","Pow. UR",null,null,"Pow. całkowita","Pow. UR"]
[null,null,17,null,null,null,null,null,null,null,null,null,null,null,null,null,null,null,null,"",""]
[null,null,18,null,null,null,null,null,null,null,null,null,null,null,null,null,null,null,null,"","",null,null,{"$f":"SUMIF($O:$O,\"E\",$T:$T)","v":0},{"$f":"SUMIF($O:$O,\"E\",$U:$U)","v":0},null,null,{"$f":"SUMIF($O:$O,\"k\",$T:$T)","v":0},{"$f":"SUMIF($O:$O,\"k\",$U:$U)","v":0}]
[null,null,19,null,null,null,null,null,null,null,null,null,null,null,null,null,null,null,null,"","",null,"Wycofanie",{"$f":"SUMIFS($T:$T,$O:$O,\"E\",$R:$R,\"Wycofanie\")","v":0},{"$f":"SUMIFS($U:$U,$O:$O,\"E\",$R:$R,\"Wycofanie\")","v":0},null,"Wycofanie",{"$f":"SUMIFS($T:$T,$O:$O,\"k\",$R:$R,\"Wycofanie\")","v":0},{"$f":"SUMIFS($U:$U,$O:$O,\"k\",$R:$R,\"Wycofanie\")","v":0}]
[null,null,20,null,null,null,null,null,null,null,null,null,null,null,null,null,null,null,null,"","",null,"E",{"$f":"X29-X30","v":0},{"$f":"Y29-Y30","v":0},null,"K",{"$f":"AB29-AB30","v":0},{"$f":"AC29-AC30","v":0}]
[null,null,21,null,null,null,null,null,null,null,null,null,null,null,null,null,null,null,null,"","",null,"Całkowita powierzchnia gospodarstwa",null,null,null,null,null,{"$f":"X31+AB31","v":0}]
[null,null,22,null,null,null,null,null,null,null,null,null,null,null,null,null,null,null,null,"","",null,"Powierzchnia UR gospodarstwa",null,null,null,null,null,{"$f":"AC34+AC35","v":0}]
[null,null,23,null,null,null,null,null,null,null,null,null,null,null,null,null,null,null,null,{"$f":"IF(AND(K34=\"\",L34=\"\"),\"\",K34+L34/100)","v":""},{"$f":"IF(AND(M34=\"\",N34=\"\"),\"\",M34+N34/100)","v":""},null,"Powierzchnia UR użytkowana ekologicznie  ",null,null,null,null,null,{"$f":"Y31","v":0}]
[null,null,24,null,null,null,null,null,null,null,null,null,null,null,null,null,null,null,null,"","",null,"Powierzchnia UR użytkowana konwencjonalnie",null,null,null,null,null,{"$f":"AC31","v":0}]
[null,null,25,null,null,null,null,null,null,null,null,null,null,null,null,null,null,null,null,"",""]
[null,null,26,null,null,null,null,null,null,null,null,null,null,null,null,null,null,null,null,"","",null,"Sąsiedztwo działek"]
[null,null,27,null,null,null,null,null,null,null,null,null,null,null,null,null,null,null,{"$f":"CONCATENATE(\"Strona \",A26,\" z \",$AB$12)","v":"Strona 2 z 1"},"","",null,"nie",{"$f":"COUNTIFS($O$12:$O$1006,\"E\",$Q$12:$Q$1006,W38)","v":0},{"$f":"VLOOKUP(X42,W43:X50,2,FALSE)","v":"Ryzyko niskie: Sąsiedztwo działek ekologicznych z uprawami które nie wymagają stosowania środków ochrony roślin."}]
[null,null,28,null,null,null,null,null,null,null,null,null,null,null,null,null,null,null,null,"","",null,"tak - własne",{"$f":"COUNTIFS($O$12:$O$1006,\"E\",$Q$12:$Q$1006,W39)","v":0}]
[3,null,29,null,null,null,null,null,null,null,null,null,null,null,null,null,null,null,null,"","",null,"tak - sąsiada",0]
[null,null,30,null,null,null,null,null,null,null,null,null,null,null,null,null,null,null,null,"","",null,"brak informacji",{"$f":"SUM(COUNTIFS($O$12:$O$1006,\"E\",$Q$12:$Q$1006,W41),COUNTIFS($O$12:$O$1006,\"E\",$Q$12:$Q$1006,\"\"))","v":0}]
[null,null,31,null,null,null,null,null,null,null,null,null,null,null,null,null,null,null,null,"","",null,{"$f":"CONCATENATE(\"Sąsiedztwo działki: \",IF(X38>0,\"nie \",\"\"),IF(X39>0,\"tak-własne \",\"\"),IF(X40>0,\"tak-sąsiada \",\"\"),IF(X41>0,\"brak informacji lub puste \",\"\"))","v":"Sąsiedztwo działki: "},{"$f":"IF(AND(X39>0,X40=0,X41=0),2,IF(AND(X39=0,X40>0,X41=0),3,IF(AND(X39=0,X40=0,X41>0),4,IF(AND(X39>0,X40>0,X41=0),5,IF(AND(X39>0,X40=0,X41>0),6,IF(AND(X39=0,X40>0,X41>0),7,IF(AND(X39>0,X40>0,X41>0),8,1)))))))","v":1}]
[null,null,32,null,null,null,null,null,null,null,null,null,null,null,null,null,null,null,null,"","",null,1,"Ryzyko niskie: Sąsiedztwo działek ekologicznych z uprawami które nie wymagają stosowania środków ochrony roślin."]
[null,null,33,null,null,null,null,null,null,null,null,null,null,null,null,null,null,null,null,"","",null,2,"Ryzyko średnie: Sąsiedztwo działek ekologicznych z własnymi uprawami które wymagają stosowania środków ochrony roślin: Zabezpieczenie uprawy ekologicznej przed przenikaniem środków ochrony roślin (np. odpowiednia szerokość pasa brzeżnego, posadzenie szpaleru odgradzającego o dużej gęstości). W przypadku zauważenia/podejrzenia/stwierdzenia zniesienia pestycydu z sąsiadującej działki zawiadomienie Jednostki Certyfikującej."]
[null,null,34,null,null,null,null,null,null,null,null,null,null,null,null,null,null,null,null,"","",null,3,"Ryzyko wysokie: Sąsiedztwo działek ekologicznych z uprawami należącymi do innego gospodarstwa które wymagają stosowania środków ochrony roślin: Ryzyko wysokie: Poinformowanie sąsiada prowadzącego produkcję konwencjonalną o rozpoczęciu produkcji ekologicznej. Ustalenie z sąsiadem aby zabiegi były wykonywane w taki sposób, aby nie dochodziło do znoszenia cieczy roboczej. Zabezpieczenie uprawy ekologicznej przed przenikaniem środków ochrony roślin (np. odpowiednia szerokość pasa brzeżnego, posadzenie szpaleru odgradzającego o dużej gęstości). W przypadku zauważenia/podejrzenia/stwierdzenia zniesienia pestycydu z sąsiadującej działki zawiadomienie Jednostki Certyfikującej."]
[null,null,35,null,null,null,null,null,null,null,null,null,null,null,null,null,null,null,null,"","",null,4,"Ryzyko wysokie: Brak informacji dotyczących sąsiedztwa działek ekologicznych z uprawami które wymagają stosowania środków ochrony roślin: Poinformowanie sąsiada prowadzącego produkcję konwencjonalną o rozpoczęciu produkcji ekologicznej. Jeśli sąsiad stosuje środki ochrony roślin: Ustalenie z sąsiadem aby zabiegi były wykonywane w taki sposób, aby nie dochodziło do znoszenia cieczy roboczej. Zabezpieczenie uprawy ekologicznej przed przenikaniem środków ochrony roślin (np. odpowiednia szerokość pasa brzeżnego, posadzenie szpaleru odgradzającego o dużej gęstości). W przypadku zauważenia/podejrzenia/stwierdzenia zniesienia pestycydu z sąsiadującej działki zawiadomienie Jednostki Certyfikującej."]
[null,null,36,null,null,null,null,null,null,null,null,null,null,null,null,null,null,null,null,"","",null,5,"Ryzyko wysokie: Sąsiedztwo działek ekologicznych z własnymi oraz należącymi do innego gospodarstwa uprawami które wymagają stosowania środków ochrony roślin: Poinformowanie sąsiada prowadzącego produkcję konwencjonalną o rozpoczęciu produkcji ekologicznej. Ustalenie z sąsiadem aby zabiegi były wykonywane w taki sposób, aby nie dochodziło do znoszenia cieczy roboczej. Zabezpieczenie uprawy ekologicznej przed przenikaniem środków ochrony roślin (np. odpowiednia szerokość pasa brzeżnego, posadzenie szpaleru odgradzającego o dużej gęstości). W przypadku zauważenia/podejrzenia/stwierdzenia zniesienia pestycydu z sąsiadującej działki zawiadomienie Jednostki Certyfikującej."]
[null,null,37,null,null,null,null,null,null,null,null,null,null,null,null,null,null,null,null,"","",null,6,"Ryzyko wysokie: Sąsiedztwo działek ekologicznych z własnymi uprawami które wymagają stosowania środków ochrony roślin oraz brak informacji dotyczących sąsiedztwa pozostałych działek ekologicznych: Poinformowanie sąsiada prowadzącego produkcję konwencjonalną o rozpoczęciu produkcji ekologicznej. Jeśli sąsiad stosuje środki ochrony roślin: Ustalenie z sąsiadem aby zabiegi były wykonywane w taki sposób, aby nie dochodziło do znoszenia cieczy roboczej. Zabezpieczenie uprawy ekologicznej przed przenikaniem środków ochrony roślin (np. odpowiednia szerokość pasa brzeżnego, posadzenie szpaleru odgradzającego o dużej gęstości). W przypadku zauważenia/podejrzenia/stwierdzenia zniesienia pestycydu z sąsiadującej działki zawiadomienie Jednostki Certyfikującej."]
[null,null,38,null,null,null,null,null,null,null,null,null,null,null,null,null,null,null,null,"","",null,7,"Ryzyko wysokie: Sąsiedztwo działek ekologicznych z uprawami należącymi do innego gospodarstwa które wymagają stosowania środków ochrony roślin: oraz brak informacji dotyczących sąsiedztwa pozostałych działek ekologicznych: Poinformowanie sąsiada prowadzącego produkcję konwencjonalną o rozpoczęciu produkcji ekologicznej. Ustalenie z sąsiadem aby zabiegi były wykonywane w taki sposób, aby nie dochodziło do znoszenia cieczy roboczej. Zabezpieczenie uprawy ekologicznej przed przenikaniem środków ochrony roślin (np. odpowiednia szerokość pasa brzeżnego, posadzenie szpaleru odgradzającego o dużej gęstości). W przypadku zauważenia/podejrzenia/stwierdzenia zniesienia pestycydu z sąsiadującej działki zawiadomienie Jednostki Certyfikującej."]
[null,null,39,null,null,null,null,null,null,null,null,null,null,null,null,null,null,null,null,"","",null,8,"Ryzyko wysokie: Sąsiedztwo działek ekologicznych z własnymi oraz należącymi do innego gospodarstwa uprawami które wymagają stosowania środków ochrony roślin oraz brak informacji dotyczących sąsiedztwa pozostałych działek ekologicznych: Poinformowanie sąsiada prowadzącego produkcję konwencjonalną o rozpoczęciu produkcji ekologicznej. Ustalenie z sąsiadem aby zabiegi były wykonywane w taki sposób, aby nie dochodziło do znoszenia cieczy roboczej. Zabezpieczenie uprawy ekologicznej przed przenikaniem środków ochrony roślin (np. odpowiednia szerokość pasa brzeżnego, posadzenie szpaleru odgradzającego o dużej gęstości). W przypadku zauważenia/podejrzenia/stwierdzenia zniesienia pestycydu z sąsiadującej działki zawiadomienie Jednostki Certyfikującej."]
[null,null,40,null,null,null,null,null,null,null,null,null,null,null,null,null,null,null,null,"",""]
[null,null,41,null,null,null,null,null,null,null,null,null,null,null,null,null,null,null,{"$f":"CONCATENATE(\"Strona \",A40,\" z \",$AB$12)","v":"Strona 3 z 1"},"",""]
[null,null,42,null,null,null,null,null,null,null,null,null,null,null,null,null,null,null,null,"",""]
[4,null,43,null,null,null,null,null,null,null,null,null,null,null,null,null,null,null,null,"",""]
[null,null,44,null,null,null,null,null,null,null,null,null,null,null,null,null,null,null,null,"",""]
[null,null,45,null,null,null,null,null,null,null,null,null,null,null,null,null,null,null,null,"",""]
[null,null,46,null,null,null,null,null,null,null,null,null,null,null,null,null,null,null,null,"",""]
[null,null,47,null,null,null,null,null,null,null,null,null,null,null,null,null,null,null,null,"",""]
[null,null,48,null,null,null,null,null,null,null,null,null,null,null,null,null,null,null,null,"",""]
[null,null,49,null,null,null,null,null,null,null,null,null,null,null,null,null,null,null,null,"",""]
[null,null,50,null,null,null,null,null,null,null,null,null,null,null,null,null,null,null,null,"",""]
[null,null,51,null,null,null,null,null,null,null,null,null,null,null,null,null,null,null,null,"",""]
[null,null,52,null,null,null,null,null,null,null,null,null,null,null,null,null,null,null,null,"",""]
[null,null,53,null,null,null,null,null,null,null,null,null,null,null,null,null,null,null,null,"",""]
[null,null,54,null,null,null,null,null,null,null,null,null,null,null,null,null,null,null,null,"",""]
[null,null,55,null,null,null,null,null,null,null,null,null,null,null,null,null,null,null,{"$f":"CONCATENATE(\"Strona \",A54,\" z \",$AB$12)","v":"Strona 4 z 1"},"",""]
[null,null,56,null,null,null,null,null,null,null,null,null,null,null,null,null,null,null,null,"",""]
[5,null,57,null,null,null,null,null,null,null,null,null,null,null,null,null,null,null,null,"",""]
[null,null,58,null,null,null,null,null,null,null,null,null,null,null,null,null,null,null,null,"",""]
[null,null,59,null,null,null,null,null,null,null,null,null,null,null,null,null,null,null,null,"",""]
[null,null,60,null,null,null,null,null,null,null,null,null,null,null,null,null,null,null,null,"",""]
[null,null,61,null,null,null,null,null,null,null,null,null,null,null,null,null,null,null,null,"",""]
[null,null,62,null,null,null,null,null,null,null,null,null,null,null,null,null,null,null,null,"",""]
[null,null,63,null,null,null,null,null,null,null,null,null,null,null,null,null,null,null,null,"",""]
[null,null,64,null,null,null,null,null,null,null,null,null,null,null,null,null,null,null,null,"",""]
[null,null,65,null,null,null,null,null,null,null,null,null,null,null,null,null,null,null,null,"",""]
[null,null,66,null,null,null,null,null,null,null,null,null,null,null,null,null,null,null,null,"",""]
[null,null,67,null,null,null,null,null,null,null,null,null,null,null,null,null,null,null,null,"",""]
[null,null,68,null,null,null,null,null,null,null,null,null,null,null,null,null,null,null,null,"",""]
[null,null,69,null,null,null,null,null,null,null,null,null,null,null,null,null,null,null,{"$f":"CONCATENATE(\"Strona \",A68,\" z \",$AB$12)","v":"Strona 5 z 1"},"",""]
[null,null,70,null,null,null,null,null,null,null,null,null,null,null,null,null,null,null,null,"",""]
[6,null,71,null,null,null,null,null,null,null,null,null,null,null,null,null,null,null,null,"",""]
[null,null,72,null,null,null,null,null,null,null,null,null,null,null,null,null,null,null,null,"",""]
[null,null,73,null,null,null,null,null,null,null,null,null,null,null,null,null,null,null,null,"",""]
[null,null,74,null,null,null,null,null,null,null,null,null,null,null,null,null,null,null,null,"",""]
[null,null,75,null,null,null,null,null,null,null,null,null,null,null,null,null,null,null,null,"",""]
[null,null,76,null,null,null,null,null,null,null,null,null,null,null,null,null,null,null,null,"",""]
[null,null,77,null,null,null,null,null,null,null,null,null,null,null,null,null,null,null,null,"",""]
[null,null,78,null,null,null,null,null,null,null,null,null,null,null,null,null,null,null,null,"",""]
[null,null,79,null,null,null,null,null,null,null,null,null,null,null,null,null,null,null,null,"",""]
[null,null,80,null,null,null,null,null,null,null,null,null,null,null,null,null,null,null,null,"",""]
[null,null,81,null,null,null,null,null,null,null,null,null,null,null,null,null,null,null,null,"",""]
[null,null,82,null,null,null,null,null,null,null,null,null,null,null,null,null,null,null,null,"",""]
[null,null,83,null,null,null,null,null,null,null,null,null,null,null,null,null,null,null,{"$f":"CONCATENATE(\"Strona \",A82,\" z \",$AB$12)","v":"Strona 6 z 1"},"",""]
[null,null,84,null,null,null,null,null,null,null,null,null,null,null,null,null,null,null,null,"",""]
[7,null,85,null,null,null,null,null,null,null,null,null,null,null,null,null,null,null,null,"",""]
[null,null,86,null,null,null,null,null,null,null,null,null,null,null,null,null,null,null,null,"",""]
[null,null,87,null,null,null,null,null,null,null,null,null,null,null,null,null,null,null,null,{"$f":"IF(AND(K98=\"\",L98=\"\"),\"\",K98+L98/100)","v":""},{"$f":"IF(AND(M98=\"\",N98=\"\"),\"\",M98+N98/100)","v":""}]
[null,null,88,null,null,null,null,null,null,null,null,null,null,null,null,null,null,null,null,"",""]
[null,null,89,null,null,null,null,null,null,null,null,null,null,null,null,null,null,null,null,"",""]
[null,null,90,null,null,null,null,null,null,null,null,null,null,null,null,null,null,null,null,"",""]
[null,null,91,null,null,null,null,null,null,null,null,null,null,null,null,null,null,null,null,"",""]
[null,null,92,null,null,null,null,null,null,null,null,null,null,null,null,null,null,null,null,"",""]
[null,null,93,null,null,null,null,null,null,null,null,null,null,null,null,null,null,null,null,"",""]
[null,null,94,null,null,null,null,null,null,null,null,null,null,null,null,null,null,null,null,"",""]
[null,null,95,null,null,null,null,null,null,null,null,null,null,null,null,null,null,null,null,"",""]
[null,null,96,null,null,null,null,null,null,null,null,null,null,null,null,null,null,null,null,"",""]
[null,null,97,null,null,null,null,null,null,null,null,null,null,null,null,null,null,null,{"$f":"CONCATENATE(\"Strona \",A96,\" z \",$AB$12)","v":"Strona 7 z 1"},"",""]
[null,null,98,null,null,null,null,null,null,null,null,null,null,null,null,null,null,null,null,"",""]
[8,null,99,null,null,null,null,null,null,null,null,null,null,null,null,null,null,null,null,"",""]
[null,null,100,null,null,null,null,null,null,null,null,null,null,null,null,null,null,null,null,"",""]
[null,null,101,null,null,null,null,null,null,null,null,null,null,null,null,null,null,null,null,"",""]
[null,null,102,null,null,null,null,null,null,null,null,null,null,null,null,null,null,null,null,"",""]
[null,null,103,null,null,null,null,null,null,null,null,null,null,null,null,null,null,null,null,"",""]
[null,null,104,null,null,null,null,null,null,null,null,null,null,null,null,null,null,null,null,"",""]
[null,null,105,null,null,null,null,null,null,null,null,null,null,null,null,null,null,null,null,"",""]
[null,null,106,null,null,null,null,null,null,null,null,null,null,null,null,null,null,null,null,"",""]
[null,null,107,null,null,null,null,null,null,null,null,null,null,null,null,null,null,null,null,"",""]
[null,null,108,null,null,null,null,null,null,null,null,null,null,null,null,null,null,null,null,"",""]
[null,null,109,null,null,null,null,null,null,null,null,null,null,null,null,null,null,null,null,"",""]
[null,null,110,null,null,null,null,null,null,null,null,null,null,null,null,null,null,null,null,"",""]
[null,null,111,null,null,null,null,null,null,null,null,null,null,null,null,null,null,null,{"$f":"CONCATENATE(\"Strona \",A110,\" z \",$AB$12)","v":"Strona 8 z 1"},"",""]
[null,null,112,null,null,null,null,null,null,null,null,null,null,null,null,null,null,null,null,"",""]
[9,null,113,null,null,null,null,null,null,null,null,null,null,null,null,null,null,null,null,"",""]
[null,null,114,null,null,null,null,null,null,null,null,null,null,null,null,null,null,null,null,"",""]
[null,null,115,null,null,null,null,null,null,null,null,null,null,null,null,null,null,null,null,"",""]
[null,null,116,null,null,null,null,null,null,null,null,null,null,null,null,null,null,null,null,"",""]
[null,null,117,null,null,null,null,null,null,null,null,null,null,null,null,null,null,null,null,"",""]
[null,null,118,null,null,null,null,null,null,null,null,null,null,null,null,null,null,null,null,"",""]
[null,null,119,null,null,null,null,null,null,null,null,null,null,null,null,null,null,null,null,"",""]
[null,null,120,null,null,null,null,null,null,null,null,null,null,null,null,null,null,null,null,"",""]
[null,null,121,null,null,null,null,null,null,null,null,null,null,null,null,null,null,null,null,"",""]
[null,null,122,null,null,null,null,null,null,null,null,null,null,null,null,null,null,null,null,"",""]
[null,null,123,null,null,null,null,null,null,null,null,null,null,null,null,null,null,null,null,"",""]
[null,null,124,null,null,null,null,null,null,null,null,null,null,null,null,null,null,null,null,"",""]
[null,null,125,null,null,null,null,null,null,null,null,null,null,null,null,null,null,null,{"$f":"CONCATENATE(\"Strona \",A124,\" z \",$AB$12)","v":"Strona 9 z 1"},"",""]
[null,null,126,null,null,null,null,null,null,null,null,null,null,null,null,null,null,null,null,"",""]
[10,null,127,null,null,null,null,null,null,null,null,null,null,null,null,null,null,null,null,"",""]
[null,null,128,null,null,null,null,null,null,null,null,null,null,null,null,null,null,null,null,"",""]
[null,null,129,null,null,null,null,null,null,null,null,null,null,null,null,null,null,null,null,"",""]
[null,null,130,null,null,null,null,null,null,null,null,null,null,null,null,null,null,null,null,"",""]
[null,null,131,null,null,null,null,null,null,null,null,null,null,null,null,null,null,null,null,"",""]
[null,null,132,null,null,null,null,null,null,null,null,null,null,null,null,null,null,null,null,"",""]
[null,null,133,null,null,null,null,null,null,null,null,null,null,null,null,null,null,null,null,"",""]
[null,null,134,null,null,null,null,null,null,null,null,null,null,null,null,null,null,null,null,"",""]
[null,null,135,null,null,null,null,null,null,null,null,null,null,null,null,null,null,null,null,"",""]
[null,null,136,null,null,null,null,null,null,null,null,null,null,null,null,null,null,null,null,"",""]
[null,null,137,null,null,null,null,null,null,null,null,null,null,null,null,null,null,null,null,"",""]
[null,null,138,null,null,null,null,null,null,null,null,null,null,null,null,null,null,null,null,"",""]
[null,null,139,null,null,null,null,null,null,null,null,null,null,null,null,null,null,null,{"$f":"CONCATENATE(\"Strona \",A138,\" z \",$AB$12)","v":"Strona 10 z 1"},"",""]
[null,null,140,null,null,null,null,null,null,null,null,null,null,null,null,null,null,null,null,"",""]
[11,null,141,null,null,null,null,null,null,null,null,null,null,null,null,null,null,null,null,"",""]
[null,null,142,null,null,null,null,null,null,null,null,null,null,null,null,null,null,null,null,"",""]
[null,null,143,null,null,null,null,null,null,null,null,null,null,null,null,null,null,null,null,"",""]
[null,null,144,null,null,null,null,null,null,null,null,null,null,null,null,null,null,null,null,"",""]
[null,null,145,null,null,null,null,null,null,null,null,null,null,null,null,null,null,null,null,"",""]
[null,null,146,null,null,null,null,null,null,null,null,null,null,null,null,null,null,null,null,"",""]
[null,null,147,null,null,null,null,null,null,null,null,null,null,null,null,null,null,null,null,"",""]
[null,null,148,null,null,null,null,null,null,null,null,null,null,null,null,null,null,null,null,"",""]
[null,null,149,null,null,null,null,null,null,null,null,null,null,null,null,null,null,null,null,"",""]
[null,null,150,null,null,null,null,null,null,null,null,null,null,null,null,null,null,null,null,"",""]
[null,null,151,null,null,null,null,null,null,null,null,null,null,null,null,null,null,null,null,{"$f":"IF(AND(K162=\"\",L162=\"\"),\"\",K162+L162/100)","v":""},{"$f":"IF(AND(M162=\"\",N162=\"\"),\"\",M162+N162/100)","v":""}]
[null,null,152,null,null,null,null,null,null,null,null,null,null,null,null,null,null,null,null,"",""]
[null,null,153,null,null,null,null,null,null,null,null,null,null,null,null,null,null,null,{"$f":"CONCATENATE(\"Strona \",A152,\" z \",$AB$12)","v":"Strona 11 z 1"},"",""]
[null,null,154,null,null,null,null,null,null,null,null,null,null,null,null,null,null,null,null,"",""]
[12,null,155,null,null,null,null,null,null,null,null,null,null,null,null,null,null,null,null,"",""]
[null,null,156,null,null,null,null,null,null,null,null,null,null,null,null,null,null,null,null,"",""]
[null,null,157,null,null,null,null,null,null,null,null,null,null,null,null,null,null,null,null,"",""]
[null,null,158,null,null,null,null,null,null,null,null,null,null,null,null,null,null,null,null,"",""]
[null,null,159,null,null,null,null,null,null,null,null,null,null,null,null,null,null,null,null,"",""]
[null,null,160,null,null,null,null,null,null,null,null,null,null,null,null,null,null,null,null,"",""]
[null,null,161,null,null,null,null,null,null,null,null,null,null,null,null,null,null,null,null,"",""]
[null,null,162,null,null,null,null,null,null,null,null,null,null,null,null,null,null,null,null,"",""]
[null,null,163,null,null,null,null,null,null,null,null,null,null,null,null,null,null,null,null,"",""]
[null,null,164,null,null,null,null,null,null,null,null,null,null,null,null,null,null,null,null,"",""]
[null,null,165,null,null,null,null,null,null,null,null,null,null,null,null,null,null,null,null,"",""]
[null,null,166,null,null,null,null,null,null,null,null,null,null,null,null,null,null,null,null,"",""]
[null,null,167,null,null,null,null,null,null,null,null,null,null,null,null,null,null,null,{"$f":"CONCATENATE(\"Strona \",A166,\" z \",$AB$12)","v":"Strona 12 z 1"},"",""]
[null,null,168,null,null,null,null,null,null,null,null,null,null,null,null,null,null,null,null,"",""]
[13,null,169,null,null,null,null,null,null,null,null,null,null,null,null,null,null,null,null,"",""]
[null,null,170,null,null,null,null,null,null,null,null,null,null,null,null,null,null,null,null,"",""]
[null,null,171,null,null,null,null,null,null,null,null,null,null,null,null,null,null,null,null,"",""]
[null,null,172,null,null,null,null,null,null,null,null,null,null,null,null,null,null,null,null,"",""]
[null,null,173,null,null,null,null,null,null,null,null,null,null,null,null,null,null,null,null,"",""]
[null,null,174,null,null,null,null,null,null,null,null,null,null,null,null,null,null,null,null,"",""]
[null,null,175,null,null,null,null,null,null,null,null,null,null,null,null,null,null,null,null,"",""]
[null,null,176,null,null,null,null,null,null,null,null,null,null,null,null,null,null,null,null,"",""]
[null,null,177,null,null,null,null,null,null,null,null,null,null,null,null,null,null,null,null,"",""]
[null,null,178,null,null,null,null,null,null,null,null,null,null,null,null,null,null,null,null,"",""]
[null,null,179,null,null,null,null,null,null,null,null,null,null,null,null,null,null,null,null,"",""]
[null,null,180,null,null,null,null,null,null,null,null,null,null,null,null,null,null,null,null,"",""]
[null,null,181,null,null,null,null,null,null,null,null,null,null,null,null,null,null,null,{"$f":"CONCATENATE(\"Strona \",A180,\" z \",$AB$12)","v":"Strona 13 z 1"},"",""]
[null,null,182,null,null,null,null,null,null,null,null,null,null,null,null,null,null,null,null,"",""]
[14,null,183,null,null,null,null,null,null,null,null,null,null,null,null,null,null,null,null,"",""]
[null,null,184,null,null,null,null,null,null,null,null,null,null,null,null,null,null,null,null,"",""]
[null,null,185,null,null,null,null,null,null,null,null,null,null,null,null,null,null,null,null,"",""]
[null,null,186,null,null,null,null,null,null,null,null,null,null,null,null,null,null,null,null,"",""]
[null,null,187,null,null,null,null,null,null,null,null,null,null,null,null,null,null,null,null,"",""]
[null,null,188,null,null,null,null,null,null,null,null,null,null,null,null,null,null,null,null,"",""]
[null,null,189,null,null,null,null,null,null,null,null,null,null,null,null,null,null,null,null,"",""]
[null,null,190,null,null,null,null,null,null,null,null,null,null,null,null,null,null,null,null,"",""]
[null,null,191,null,null,null,null,null,null,null,null,null,null,null,null,null,null,null,null,"",""]
[null,null,192,null,null,null,null,null,null,null,null,null,null,null,null,null,null,null,null,"",""]
[null,null,193,null,null,null,null,null,null,null,null,null,null,null,null,null,null,null,null,"",""]
[null,null,194,null,null,null,null,null,null,null,null,null,null,null,null,null,null,null,null,"",""]
[null,null,195,null,null,null,null,null,null,null,null,null,null,null,null,null,null,null,{"$f":"CONCATENATE(\"Strona \",A194,\" z \",$AB$12)","v":"Strona 14 z 1"},"",""]
[null,null,196,null,null,null,null,null,null,null,null,null,null,null,null,null,null,null,null,"",""]
[15,null,197,null,null,null,null,null,null,null,null,null,null,null,null,null,null,null,null,"",""]
[null,null,198,null,null,null,null,null,null,null,null,null,null,null,null,null,null,null,null,"",""]
[null,null,199,null,null,null,null,null,null,null,null,null,null,null,null,null,null,null,null,"",""]
[null,null,200,null,null,null,null,null,null,null,null,null,null,null,null,null,null,null,null,"",""]
[null,null,201,null,null,null,null,null,null,null,null,null,null,null,null,null,null,null,null,"",""]
[null,null,202,null,null,null,null,null,null,null,null,null,null,null,null,null,null,null,null,"",""]
[null,null,203,null,null,null,null,null,null,null,null,null,null,null,null,null,null,null,null,"",""]
[null,null,204,null,null,null,null,null,null,null,null,null,null,null,null,null,null,null,null,"",""]
[null,null,205,null,null,null,null,null,null,null,null,null,null,null,null,null,null,null,null,"",""]
[null,null,206,null,null,null,null,null,null,null,null,null,null,null,null,null,null,null,null,"",""]
[null,null,207,null,null,null,null,null,null,null,null,null,null,null,null,null,null,null,null,"",""]
[null,null,208,null,null,null,null,null,null,null,null,null,null,null,null,null,null,null,null,"",""]
[null,null,209,null,null,null,null,null,null,null,null,null,null,null,null,null,null,null,{"$f":"CONCATENATE(\"Strona \",A208,\" z \",$AB$12)","v":"Strona 15 z 1"},"",""]
[null,null,210,null,null,null,null,null,null,null,null,null,null,null,null,null,null,null,null,"",""]
[16,null,211,null,null,null,null,null,null,null,null,null,null,null,null,null,null,null,null,"",""]
[null,null,212,null,null,null,null,null,null,null,null,null,null,null,null,null,null,null,null,"",""]
[null,null,213,null,null,null,null,null,null,null,null,null,null,null,null,null,null,null,null,"",""]
[null,null,214,null,null,null,null,null,null,null,null,null,null,null,null,null,null,null,null,"",""]
[null,null,215,null,null,null,null,null,null,null,null,null,null,null,null,null,null,null,null,{"$f":"IF(AND(K226=\"\",L226=\"\"),\"\",K226+L226/100)","v":""},{"$f":"IF(AND(M226=\"\",N226=\"\"),\"\",M226+N226/100)","v":""}]
[null,null,216,null,null,null,null,null,null,null,null,null,null,null,null,null,null,null,null,"",""]
[null,null,217,null,null,null,null,null,null,null,null,null,null,null,null,null,null,null,null,"",""]
[null,null,218,null,null,null,null,null,null,null,null,null,null,null,null,null,null,null,null,"",""]
[null,null,219,null,null,null,null,null,null,null,null,null,null,null,null,null,null,null,null,"",""]
[null,null,220,null,null,null,null,null,null,null,null,null,null,null,null,null,null,null,null,"",""]
[null,null,221,null,null,null,null,null,null,null,null,null,null,null,null,null,null,null,null,"",""]
[null,null,222,null,null,null,null,null,null,null,null,null,null,null,null,null,null,null,null,"",""]
[null,null,223,null,null,null,null,null,null,null,null,null,null,null,null,null,null,null,{"$f":"CONCATENATE(\"Strona \",A222,\" z \",$AB$12)","v":"Strona 16 z 1"},"",""]
[null,null,224,null,null,null,null,null,null,null,null,null,null,null,null,null,null,null,null,"",""]
[17,null,225,null,null,null,null,null,null,null,null,null,null,null,null,null,null,null,null,"",""]
[null,null,226,null,null,null,null,null,null,null,null,null,null,null,null,null,null,null,null,"",""]
[null,null,227,null,null,null,null,null,null,null,null,null,null,null,null,null,null,null,null,"",""]
[null,null,228,null,null,null,null,null,null,null,null,null,null,null,null,null,null,null,null,"",""]
[null,null,229,null,null,null,null,null,null,null,null,null,null,null,null,null,null,null,null,"",""]
[null,null,230,null,null,null,null,null,null,null,null,null,null,null,null,null,null,null,null,"",""]
[null,null,231,null,null,null,null,null,null,null,null,null,null,null,null,null,null,null,null,"",""]
[null,null,232,null,null,null,null,null,null,null,null,null,null,null,null,null,null,null,null,"",""]
[null,null,233,null,null,null,null,null,null,null,null,null,null,null,null,null,null,null,null,"",""]
[null,null,234,null,null,null,null,null,null,null,null,null,null,null,null,null,null,null,null,"",""]
[null,null,235,null,null,null,null,null,null,null,null,null,null,null,null,null,null,null,null,"",""]
[null,null,236,null,null,null,null,null,null,null,null,null,null,null,null,null,null,null,null,"",""]
[null,null,237,null,null,null,null,null,null,null,null,null,null,null,null,null,null,null,{"$f":"CONCATENATE(\"Strona \",A236,\" z \",$AB$12)","v":"Strona 17 z 1"},"",""]
[null,null,238,null,null,null,null,null,null,null,null,null,null,null,null,null,null,null,null,"",""]
[18,null,239,null,null,null,null,null,null,null,null,null,null,null,null,null,null,null,null,"",""]
[null,null,240,null,null,null,null,null,null,null,null,null,null,null,null,null,null,null,null,"",""]
[null,null,241,null,null,null,null,null,null,null,null,null,null,null,null,null,null,null,null,"",""]
[null,null,242,null,null,null,null,null,null,null,null,null,null,null,null,null,null,null,null,"",""]
[null,null,243,null,null,null,null,null,null,null,null,null,null,null,null,null,null,null,null,"",""]
[null,null,244,null,null,null,null,null,null,null,null,null,null,null,null,null,null,null,null,"",""]
[null,null,245,null,null,null,null,null,null,null,null,null,null,null,null,null,null,null,null,"",""]
[null,null,246,null,null,null,null,null,null,null,null,null,null,null,null,null,null,null,null,"",""]
[null,null,247,null,null,null,null,null,null,null,null,null,null,null,null,null,null,null,null,"",""]
[null,null,248,null,null,null,null,null,null,null,null,null,null,null,null,null,null,null,null,"",""]
[null,null,249,null,null,null,null,null,null,null,null,null,null,null,null,null,null,null,null,"",""]
[null,null,250,null,null,null,null,null,null,null,null,null,null,null,null,null,null,null,null,"",""]
[null,null,251,null,null,null,null,null,null,null,null,null,null,null,null,null,null,null,{"$f":"CONCATENATE(\"Strona \",A250,\" z \",$AB$12)","v":"Strona 18 z 1"},"",""]
[null,null,252,null,null,null,null,null,null,null,null,null,null,null,null,null,null,null,null,"",""]
[19,null,253,null,null,null,null,null,null,null,null,null,null,null,null,null,null,null,null,"",""]
[null,null,254,null,null,null,null,null,null,null,null,null,null,null,null,null,null,null,null,"",""]
[null,null,255,null,null,null,null,null,null,null,null,null,null,null,null,null,null,null,null,"",""]
[null,null,256,null,null,null,null,null,null,null,null,null,null,null,null,null,null,null,null,"",""]
[null,null,257,null,null,null,null,null,null,null,null,null,null,null,null,null,null,null,null,"",""]
[null,null,258,null,null,null,null,null,null,null,null,null,null,null,null,null,null,null,null,"",""]
[null,null,259,null,null,null,null,null,null,null,null,null,null,null,null,null,null,null,null,"",""]
[null,null,260,null,null,null,null,null,null,null,null,null,null,null,null,null,null,null,null,"",""]
[null,null,261,null,null,null,null,null,null,null,null,null,null,null,null,null,null,null,null,"",""]
[null,null,262,null,null,null,null,null,null,null,null,null,null,null,null,null,null,null,null,"",""]
[null,null,263,null,null,null,null,null,null,null,null,null,null,null,null,null,null,null,null,"",""]
[null,null,264,null,null,null,null,null,null,null,null,null,null,null,null,null,null,null,null,"",""]
[null,null,265,null,null,null,null,null,null,null,null,null,null,null,null,null,null,null,{"$f":"CONCATENATE(\"Strona \",A264,\" z \",$AB$12)","v":"Strona 19 z 1"},"",""]
[null,null,266,null,null,null,null,null,null,null,null,null,null,null,null,null,null,null,null,"",""]
[20,null,267,null,null,null,null,null,null,null,null,null,null,null,null,null,null,null,null,"",""]
[null,null,268,null,null,null,null,null,null,null,null,null,null,null,null,null,null,null,null,"",""]
[null,null,269,null,null,null,null,null,null,null,null,null,null,null,null,null,null,null,null,"",""]
[null,null,270,null,null,null,null,null,null,null,null,null,null,null,null,null,null,null,null,"",""]
[null,null,271,null,null,null,null,null,null,null,null,null,null,null,null,null,null,null,null,"",""]
[null,null,272,null,null,null,null,null,null,null,null,null,null,null,null,null,null,null,null,"",""]
[null,null,273,null,null,null,null,null,null,null,null,null,null,null,null,null,null,null,null,"",""]
[null,null,274,null,null,null,null,null,null,null,null,null,null,null,null,null,null,null,null,"",""]
[null,null,275,null,null,null,null,null,null,null,null,null,null,null,null,null,null,null,null,"",""]
[null,null,276,null,null,null,null,null,null,null,null,null,null,null,null,null,null,null,null,"",""]
[null,null,277,null,null,null,null,null,null,null,null,null,null,null,null,null,null,null,null,"",""]
[null,null,278,null,null,null,null,null,null,null,null,null,null,null,null,null,null,null,null,"",""]
[null,null,279,null,null,null,null,null,null,null,null,null,null,null,null,null,null,null,{"$f":"CONCATENATE(\"Strona \",A278,\" z \",$AB$12)","v":"Strona 20 z 1"},{"$f":"IF(AND(K290=\"\",L290=\"\"),\"\",K290+L290/100)","v":""},{"$f":"IF(AND(M290=\"\",N290=\"\"),\"\",M290+N290/100)","v":""}]
[null,null,280,null,null,null,null,null,null,null,null,null,null,null,null,null,null,null,null,"",""]
[21,null,281,null,null,null,null,null,null,null,null,null,null,null,null,null,null,null,null,"",""]
[null,null,282,null,null,null,null,null,null,null,null,null,null,null,null,null,null,null,null,"",""]
[null,null,283,null,null,null,null,null,null,null,null,null,null,null,null,null,null,null,null,"",""]
[null,null,284,null,null,null,null,null,null,null,null,null,null,null,null,null,null,null,null,"",""]
[null,null,285,null,null,null,null,null,null,null,null,null,null,null,null,null,null,null,null,"",""]
[null,null,286,null,null,null,null,null,null,null,null,null,null,null,null,null,null,null,null,"",""]
[null,null,287,null,null,null,null,null,null,null,null,null,null,null,null,null,null,null,null,"",""]
[null,null,288,null,null,null,null,null,null,null,null,null,null,null,null,null,null,null,null,"",""]
[null,null,289,null,null,null,null,null,null,null,null,null,null,null,null,null,null,null,null,"",""]
[null,null,290,null,null,null,null,null,null,null,null,null,null,null,null,null,null,null,null,"",""]
[null,null,291,null,null,null,null,null,null,null,null,null,null,null,null,null,null,null,null,"",""]
[null,null,292,null,null,null,null,null,null,null,null,null,null,null,null,null,null,null,null,"",""]
[null,null,293,null,null,null,null,null,null,null,null,null,null,null,null,null,null,null,{"$f":"CONCATENATE(\"Strona \",A292,\" z \",$AB$12)","v":"Strona 21 z 1"},"",""]
[null,null,294,null,null,null,null,null,null,null,null,null,null,null,null,null,null,null,null,"",""]
[22,null,295,null,null,null,null,null,null,null,null,null,null,null,null,null,null,null,null,"",""]
[null,null,296,null,null,null,null,null,null,null,null,null,null,null,null,null,null,null,null,"",""]
[null,null,297,null,null,null,null,null,null,null,null,null,null,null,null,null,null,null,null,"",""]
[null,null,298,null,null,null,null,null,null,null,null,null,null,null,null,null,null,null,null,"",""]
[null,null,299,null,null,null,null,null,null,null,null,null,null,null,null,null,null,null,null,"",""]
[null,null,300,null,null,null,null,null,null,null,null,null,null,null,null,null,null,null,null,"",""]
[null,null,301,null,null,null,null,null,null,null,null,null,null,null,null,null,null,null,null,"",""]
[null,null,302,null,null,null,null,null,null,null,null,null,null,null,null,null,null,null,null,"",""]
[null,null,303,null,null,null,null,null,null,null,null,null,null,null,null,null,null,null,null,"",""]
[null,null,304,null,null,null,null,null,null,null,null,null,null,null,null,null,null,null,null,"",""]
[null,null,305,null,null,null,null,null,null,null,null,null,null,null,null,null,null,null,null,"",""]
[null,null,306,null,null,null,null,null,null,null,null,null,null,null,null,null,null,null,null,"",""]
[null,null,307,null,null,null,null,null,null,null,null,null,null,null,null,null,null,null,{"$f":"CONCATENATE(\"Strona \",A306,\" z \",$AB$12)","v":"Strona 22 z 1"},"",""]
[null,null,308,null,null,null,null,null,null,null,null,null,null,null,null,null,null,null,null,"",""]
[23,null,309,null,null,null,null,null,null,null,null,null,null,null,null,null,null,null,null,"",""]
[null,null,310,null,null,null,null,null,null,null,null,null,null,null,null,null,null,null,null,"",""]
[null,null,311,null,null,null,null,null,null,null,null,null,null,null,null,null,null,null,null,"",""]
[null,null,312,null,null,null,null,null,null,null,null,null,null,null,null,null,null,null,null,"",""]
[null,null,313,null,null,null,null,null,null,null,null,null,null,null,null,null,null,null,null,"",""]
[null,null,314,null,null,null,null,null,null,null,null,null,null,null,null,null,null,null,null,"",""]
[null,null,315,null,null,null,null,null,null,null,null,null,null,null,null,null,null,null,null,"",""]
[null,null,316,null,null,null,null,null,null,null,null,null,null,null,null,null,null,null,null,"",""]
[null,null,317,null,null,null,null,null,null,null,null,null,null,null,null,null,null,null,null,"",""]
[null,null,318,null,null,null,null,null,null,null,null,null,null,null,null,null,null,null,null,"",""]
[null,null,319,null,null,null,null,null,null,null,null,null,null,null,null,null,null,null,null,"",""]
[null,null,320,null,null,null,null,null,null,null,null,null,null,null,null,null,null,null,null,"",""]
[null,null,321,null,null,null,null,null,null,null,null,null,null,null,null,null,null,null,{"$f":"CONCATENATE(\"Strona \",A320,\" z \",$AB$12)","v":"Strona 23 z 1"},"",""]
[null,null,322,null,null,null,null,null,null,null,null,null,null,null,null,null,null,null,null,"",""]
[24,null,323,null,null,null,null,null,null,null,null,null,null,null,null,null,null,null,null,"",""]
[null,null,324,null,null,null,null,null,null,null,null,null,null,null,null,null,null,null,null,"",""]
[null,null,325,null,null,null,null,null,null,null,null,null,null,null,null,null,null,null,null,"",""]
[null,null,326,null,null,null,null,null,null,null,null,null,null,null,null,null,null,null,null,"",""]
[null,null,327,null,null,null,null,null,null,null,null,null,null,null,null,null,null,null,null,"",""]
[null,null,328,null,null,null,null,null,null,null,null,null,null,null,null,null,null,null,null,"",""]
[null,null,329,null,null,null,null,null,null,null,null,null,null,null,null,null,null,null,null,"",""]
[null,null,330,null,null,null,null,null,null,null,null,null,null,null,null,null,null,null,null,"",""]
[null,null,331,null,null,null,null,null,null,null,null,null,null,null,null,null,null,null,null,"",""]
[null,null,332,null,null,null,null,null,null,null,null,null,null,null,null,null,null,null,null,"",""]
[null,null,333,null,null,null,null,null,null,null,null,null,null,null,null,null,null,null,null,"",""]
[null,null,334,null,null,null,null,null,null,null,null,null,null,null,null,null,null,null,null,"",""]
[null,null,335,null,null,null,null,null,null,null,null,null,null,null,null,null,null,null,{"$f":"CONCATENATE(\"Strona \",A334,\" z \",$AB$12)","v":"Strona 24 z 1"},"",""]
[null,null,336,null,null,null,null,null,null,null,null,null,null,null,null,null,null,null,null,"",""]
[25,null,337,null,null,null,null,null,null,null,null,null,null,null,null,null,null,null,null,"",""]
[null,null,338,null,null,null,null,null,null,null,null,null,null,null,null,null,null,null,null,"",""]
[null,null,339,null,null,null,null,null,null,null,null,null,null,null,null,null,null,null,null,"",""]
[null,null,340,null,null,null,null,null,null,null,null,null,null,null,null,null,null,null,null,"",""]
[null,null,341,null,null,null,null,null,null,null,null,null,null,null,null,null,null,null,null,"",""]
[null,null,342,null,null,null,null,null,null,null,null,null,null,null,null,null,null,null,null,"",""]
[null,null,343,null,null,null,null,null,null,null,null,null,null,null,null,null,null,null,null,{"$f":"IF(AND(K354=\"\",L354=\"\"),\"\",K354+L354/100)","v":""},{"$f":"IF(AND(M354=\"\",N354=\"\"),\"\",M354+N354/100)","v":""}]
[null,null,344,null,null,null,null,null,null,null,null,null,null,null,null,null,null,null,null,"",""]
[null,null,345,null,null,null,null,null,null,null,null,null,null,null,null,null,null,null,null,"",""]
[null,null,346,null,null,null,null,null,null,null,null,null,null,null,null,null,null,null,null,"",""]
[null,null,347,null,null,null,null,null,null,null,null,null,null,null,null,null,null,null,null,"",""]
[null,null,348,null,null,null,null,null,null,null,null,null,null,null,null,null,null,null,null,"",""]
[null,null,349,null,null,null,null,null,null,null,null,null,null,null,null,null,null,null,{"$f":"CONCATENATE(\"Strona \",A348,\" z \",$AB$12)","v":"Strona 25 z 1"},"",""]
[null,null,350,null,null,null,null,null,null,null,null,null,null,null,null,null,null,null,null,"",""]
[26,null,351,null,null,null,null,null,null,null,null,null,null,null,null,null,null,null,null,"",""]
[null,null,352,null,null,null,null,null,null,null,null,null,null,null,null,null,null,null,null,"",""]
[null,null,353,null,null,null,null,null,null,null,null,null,null,null,null,null,null,null,null,"",""]
[null,null,354,null,null,null,null,null,null,null,null,null,null,null,null,null,null,null,null,"",""]
[null,null,355,null,null,null,null,null,null,null,null,null,null,null,null,null,null,null,null,"",""]
[null,null,356,null,null,null,null,null,null,null,null,null,null,null,null,null,null,null,null,"",""]
[null,null,357,null,null,null,null,null,null,null,null,null,null,null,null,null,null,null,null,"",""]
[null,null,358,null,null,null,null,null,null,null,null,null,null,null,null,null,null,null,null,"",""]
[null,null,359,null,null,null,null,null,null,null,null,null,null,null,null,null,null,null,null,"",""]
[null,null,360,null,null,null,null,null,null,null,null,null,null,null,null,null,null,null,null,"",""]
[null,null,361,null,null,null,null,null,null,null,null,null,null,null,null,null,null,null,null,"",""]
[null,null,362,null,null,null,null,null,null,null,null,null,null,null,null,null,null,null,null,"",""]
[null,null,363,null,null,null,null,null,null,null,null,null,null,null,null,null,null,null,{"$f":"CONCATENATE(\"Strona \",A362,\" z \",$AB$12)","v":"Strona 26 z 1"},"",""]
[null,null,364,null,null,null,null,null,null,null,null,null,null,null,null,null,null,null,null,"",""]
[27,null,365,null,null,null,null,null,null,null,null,null,null,null,null,null,null,null,null,"",""]
[null,null,366,null,null,null,null,null,null,null,null,null,null,null,null,null,null,null,null,"",""]
[null,null,367,null,null,null,null,null,null,null,null,null,null,null,null,null,null,null,null,"",""]
[null,null,368,null,null,null,null,null,null,null,null,null,null,null,null,null,null,null,null,"",""]
[null,null,369,null,null,null,null,null,null,null,null,null,null,null,null,null,null,null,null,"",""]
[null,null,370,null,null,null,null,null,null,null,null,null,null,null,null,null,null,null,null,"",""]
[null,null,371,null,null,null,null,null,null,null,null,null,null,null,null,null,null,null,null,"",""]
[null,null,372,null,null,null,null,null,null,null,null,null,null,null,null,null,null,null,null,"",""]
[null,null,373,null,null,null,null,null,null,null,null,null,null,null,null,null,null,null,null,"",""]
[null,null,374,null,null,null,null,null,null,null,null,null,null,null,null,null,null,null,null,"",""]
[null,null,375,null,null,null,null,null,null,null,null,null,null,null,null,null,null,null,null,"",""]
[null,null,376,null,null,null,null,null,null,null,null,null,null,null,null,null,null,null,null,"",""]
[null,null,377,null,null,null,null,null,null,null,null,null,null,null,null,null,null,null,{"$f":"CONCATENATE(\"Strona \",A376,\" z \",$AB$12)","v":"Strona 27 z 1"},"",""]
[null,null,378,null,null,null,null,null,null,null,null,null,null,null,null,null,null,null,null,"",""]
[28,null,379,null,null,null,null,null,null,null,null,null,null,null,null,null,null,null,null,"",""]
[null,null,380,null,null,null,null,null,null,null,null,null,null,null,null,null,null,null,null,"",""]
[null,null,381,null,null,null,null,null,null,null,null,null,null,null,null,null,null,null,null,"",""]
[null,null,382,null,null,null,null,null,null,null,null,null,null,null,null,null,null,null,null,"",""]
[null,null,383,null,null,null,null,null,null,null,null,null,null,null,null,null,null,null,null,"",""]
[null,null,384,null,null,null,null,null,null,null,null,null,null,null,null,null,null,null,null,"",""]
[null,null,385,null,null,null,null,null,null,null,null,null,null,null,null,null,null,null,null,"",""]
[null,null,386,null,null,null,null,null,null,null,null,null,null,null,null,null,null,null,null,"",""]
[null,null,387,null,null,null,null,null,null,null,null,null,null,null,null,null,null,null,null,"",""]
[null,null,388,null,null,null,null,null,null,null,null,null,null,null,null,null,null,null,null,"",""]
[null,null,389,null,null,null,null,null,null,null,null,null,null,null,null,null,null,null,null,"",""]
[null,null,390,null,null,null,null,null,null,null,null,null,null,null,null,null,null,null,null,"",""]
[null,null,391,null,null,null,null,null,null,null,null,null,null,null,null,null,null,null,{"$f":"CONCATENATE(\"Strona \",A390,\" z \",$AB$12)","v":"Strona 28 z 1"},"",""]
[null,null,392,null,null,null,null,null,null,null,null,null,null,null,null,null,null,null,null,"",""]
[29,null,393,null,null,null,null,null,null,null,null,null,null,null,null,null,null,null,null,"",""]
[null,null,394,null,null,null,null,null,null,null,null,null,null,null,null,null,null,null,null,"",""]
[null,null,395,null,null,null,null,null,null,null,null,null,null,null,null,null,null,null,null,"",""]
[null,null,396,null,null,null,null,null,null,null,null,null,null,null,null,null,null,null,null,"",""]
[null,null,397,null,null,null,null,null,null,null,null,null,null,null,null,null,null,null,null,"",""]
[null,null,398,null,null,null,null,null,null,null,null,null,null,null,null,null,null,null,null,"",""]
[null,null,399,null,null,null,null,null,null,null,null,null,null,null,null,null,null,null,null,"",""]
[null,null,400,null,null,null,null,null,null,null,null,null,null,null,null,null,null,null,null,"",""]
[null,null,401,null,null,null,null,null,null,null,null,null,null,null,null,null,null,null,null,"",""]
[null,null,402,null,null,null,null,null,null,null,null,null,null,null,null,null,null,null,null,"",""]
[null,null,403,null,null,null,null,null,null,null,null,null,null,null,null,null,null,null,null,"",""]
[null,null,404,null,null,null,null,null,null,null,null,null,null,null,null,null,null,null,null,"",""]
[null,null,405,null,null,null,null,null,null,null,null,null,null,null,null,null,null,null,{"$f":"CONCATENATE(\"Strona \",A404,\" z \",$AB$12)","v":"Strona 29 z 1"},"",""]
[null,null,406,null,null,null,null,null,null,null,null,null,null,null,null,null,null,null,null,"",""]
[30,null,407,null,null,null,null,null,null,null,null,null,null,null,null,null,null,null,null,{"$f":"IF(AND(K418=\"\",L418=\"\"),\"\",K418+L418/100)","v":""},{"$f":"IF(AND(M418=\"\",N418=\"\"),\"\",M418+N418/100)","v":""}]
[null,null,408,null,null,null,null,null,null,null,null,null,null,null,null,null,null,null,null,"",""]
[null,null,409,null,null,null,null,null,null,null,null,null,null,null,null,null,null,null,null,"",""]
[null,null,410,null,null,null,null,null,null,null,null,null,null,null,null,null,null,null,null,"",""]
[null,null,411,null,null,null,null,null,null,null,null,null,null,null,null,null,null,null,null,"",""]
[null,null,412,null,null,null,null,null,null,null,null,null,null,null,null,null,null,null,null,"",""]
[null,null,413,null,null,null,null,null,null,null,null,null,null,null,null,null,null,null,null,"",""]
[null,null,414,null,null,null,null,null,null,null,null,null,null,null,null,null,null,null,null,"",""]
[null,null,415,null,null,null,null,null,null,null,null,null,null,null,null,null,null,null,null,"",""]
[null,null,416,null,null,null,null,null,null,null,null,null,null,null,null,null,null,null,null,"",""]
[null,null,417,null,null,null,null,null,null,null,null,null,null,null,null,null,null,null,null,"",""]
[null,null,418,null,null,null,null,null,null,null,null,null,null,null,null,null,null,null,null,"",""]
[null,null,419,null,null,null,null,null,null,null,null,null,null,null,null,null,null,null,{"$f":"CONCATENATE(\"Strona \",A418,\" z \",$AB$12)","v":"Strona 30 z 1"},"",""]
[null,null,420,null,null,null,null,null,null,null,null,null,null,null,null,null,null,null,null,"",""]
[31,null,421,null,null,null,null,null,null,null,null,null,null,null,null,null,null,null,null,"",""]
[null,null,422,null,null,null,null,null,null,null,null,null,null,null,null,null,null,null,null,"",""]
[null,null,423,null,null,null,null,null,null,null,null,null,null,null,null,null,null,null,null,"",""]
[null,null,424,null,null,null,null,null,null,null,null,null,null,null,null,null,null,null,null,"",""]
[null,null,425,null,null,null,null,null,null,null,null,null,null,null,null,null,null,null,null,"",""]
[null,null,426,null,null,null,null,null,null,null,null,null,null,null,null,null,null,null,null,"",""]
[null,null,427,null,null,null,null,null,null,null,null,null,null,null,null,null,null,null,null,"",""]
[null,null,428,null,null,null,null,null,null,null,null,null,null,null,null,null,null,null,null,"",""]
[null,null,429,null,null,null,null,null,null,null,null,null,null,null,null,null,null,null,null,"",""]
[null,null,430,null,null,null,null,null,null,null,null,null,null,null,null,null,null,null,null,"",""]
[null,null,431,null,null,null,null,null,null,null,null,null,null,null,null,null,null,null,null,"",""]
[null,null,432,null,null,null,null,null,null,null,null,null,null,null,null,null,null,null,null,"",""]
[null,null,433,null,null,null,null,null,null,null,null,null,null,null,null,null,null,null,{"$f":"CONCATENATE(\"Strona \",A432,\" z \",$AB$12)","v":"Strona 31 z 1"},"",""]
[null,null,434,null,null,null,null,null,null,null,null,null,null,null,null,null,null,null,null,"",""]
[32,null,435,null,null,null,null,null,null,null,null,null,null,null,null,null,null,null,null,"",""]
[null,null,436,null,null,null,null,null,null,null,null,null,null,null,null,null,null,null,null,"",""]
[null,null,437,null,null,null,null,null,null,null,null,null,null,null,null,null,null,null,null,"",""]
[null,null,438,null,null,null,null,null,null,null,null,null,null,null,null,null,null,null,null,"",""]
[null,null,439,null,null,null,null,null,null,null,null,null,null,null,null,null,null,null,null,"",""]
[null,null,440,null,null,null,null,null,null,null,null,null,null,null,null,null,null,null,null,"",""]
[null,null,441,null,null,null,null,null,null,null,null,null,null,null,null,null,null,null,null,"",""]
[null,null,442,null,null,null,null,null,null,null,null,null,null,null,null,null,null,null,null,"",""]
[null,null,443,null,null,null,null,null,null,null,null,null,null,null,null,null,null,null,null,"",""]
[null,null,444,null,null,null,null,null,null,null,null,null,null,null,null,null,null,null,null,"",""]
[null,null,445,null,null,null,null,null,null,null,null,null,null,null,null,null,null,null,null,"",""]
[null,null,446,null,null,null,null,null,null,null,null,null,null,null,null,null,null,null,null,"",""]
[null,null,447,null,null,null,null,null,null,null,null,null,null,null,null,null,null,null,{"$f":"CONCATENATE(\"Strona \",A446,\" z \",$AB$12)","v":"Strona 32 z 1"},"",""]
[null,null,448,null,null,null,null,null,null,null,null,null,null,null,null,null,null,null,null,"",""]
[33,null,449,null,null,null,null,null,null,null,null,null,null,null,null,null,null,null,null,"",""]
[null,null,450,null,null,null,null,null,null,null,null,null,null,null,null,null,null,null,null,"",""]
[null,null,451,null,null,null,null,null,null,null,null,null,null,null,null,null,null,null,null,"",""]
[null,null,452,null,null,null,null,null,null,null,null,null,null,null,null,null,null,null,null,"",""]
[null,null,453,null,null,null,null,null,null,null,null,null,null,null,null,null,null,null,null,"",""]
[null,null,454,null,null,null,null,null,null,null,null,null,null,null,null,null,null,null,null,"",""]
[null,null,455,null,null,null,null,null,null,null,null,null,null,null,null,null,null,null,null,"",""]
[null,null,456,null,null,null,null,null,null,null,null,null,null,null,null,null,null,null,null,"",""]
[null,null,457,null,null,null,null,null,null,null,null,null,null,null,null,null,null,null,null,"",""]
[null,null,458,null,null,null,null,null,null,null,null,null,null,null,null,null,null,null,null,"",""]
[null,null,459,null,null,null,null,null,null,null,null,null,null,null,null,null,null,null,null,"",""]
[null,null,460,null,null,null,null,null,null,null,null,null,null,null,null,null,null,null,null,"",""]
[null,null,461,null,null,null,null,null,null,null,null,null,null,null,null,null,null,null,{"$f":"CONCATENATE(\"Strona \",A460,\" z \",$AB$12)","v":"Strona 33 z 1"},"",""]
[null,null,462,null,null,null,null,null,null,null,null,null,null,null,null,null,null,null,null,"",""]
[34,null,463,null,null,null,null,null,null,null,null,null,null,null,null,null,null,null,null,"",""]
[null,null,464,null,null,null,null,null,null,null,null,null,null,null,null,null,null,null,null,"",""]
[null,null,465,null,null,null,null,null,null,null,null,null,null,null,null,null,null,null,null,"",""]
[null,null,466,null,null,null,null,null,null,null,null,null,null,null,null,null,null,null,null,"",""]
[null,null,467,null,null,null,null,null,null,null,null,null,null,null,null,null,null,null,null,"",""]
[null,null,468,null,null,null,null,null,null,null,null,null,null,null,null,null,null,null,null,"",""]
[null,null,469,null,null,null,null,null,null,null,null,null,null,null,null,null,null,null,null,"",""]
[null,null,470,null,null,null,null,null,null,null,null,null,null,null,null,null,null,null,null,"",""]
[null,null,471,null,null,null,null,null,null,null,null,null,null,null,null,null,null,null,null,{"$f":"IF(AND(K482=\"\",L482=\"\"),\"\",K482+L482/100)","v":""},{"$f":"IF(AND(M482=\"\",N482=\"\"),\"\",M482+N482/100)","v":""}]
[null,null,472,null,null,null,null,null,null,null,null,null,null,null,null,null,null,null,null,"",""]
[null,null,473,null,null,null,null,null,null,null,null,null,null,null,null,null,null,null,null,"",""]
[null,null,474,null,null,null,null,null,null,null,null,null,null,null,null,null,null,null,null,"",""]
[null,null,475,null,null,null,null,null,null,null,null,null,null,null,null,null,null,null,{"$f":"CONCATENATE(\"Strona \",A474,\" z \",$AB$12)","v":"Strona 34 z 1"},"",""]
[null,null,476,null,null,null,null,null,null,null,null,null,null,null,null,null,null,null,null,"",""]
[35,null,477,null,null,null,null,null,null,null,null,null,null,null,null,null,null,null,null,"",""]
[null,null,478,null,null,null,null,null,null,null,null,null,null,null,null,null,null,null,null,"",""]
[null,null,479,null,null,null,null,null,null,null,null,null,null,null,null,null,null,null,null,"",""]
[null,null,480,null,null,null,null,null,null,null,null,null,null,null,null,null,null,null,null,"",""]
[null,null,481,null,null,null,null,null,null,null,null,null,null,null,null,null,null,null,null,"",""]
[null,null,482,null,null,null,null,null,null,null,null,null,null,null,null,null,null,null,null,"",""]
[null,null,483,null,null,null,null,null,null,null,null,null,null,null,null,null,null,null,null,"",""]
[null,null,484,null,null,null,null,null,null,null,null,null,null,null,null,null,null,null,null,"",""]
[null,null,485,null,null,null,null,null,null,null,null,null,null,null,null,null,null,null,null,"",""]
[null,null,486,null,null,null,null,null,null,null,null,null,null,null,null,null,null,null,null,"",""]
[null,null,487,null,null,null,null,null,null,null,null,null,null,null,null,null,null,null,null,"",""]
[null,null,488,null,null,null,null,null,null,null,null,null,null,null,null,null,null,null,null,"",""]
[null,null,489,null,null,null,null,null,null,null,null,null,null,null,null,null,null,null,{"$f":"CONCATENATE(\"Strona \",A488,\" z \",$AB$12)","v":"Strona 35 z 1"},"",""]
[null,null,490,null,null,null,null,null,null,null,null,null,null,null,null,null,null,null,null,"",""]
[36,null,491,null,null,null,null,null,null,null,null,null,null,null,null,null,null,null,null,"",""]
[null,null,492,null,null,null,null,null,null,null,null,null,null,null,null,null,null,null,null,"",""]
[null,null,493,null,null,null,null,null,null,null,null,null,null,null,null,null,null,null,null,"",""]
[null,null,494,null,null,null,null,null,null,null,null,null,null,null,null,null,null,null,null,"",""]
[null,null,495,null,null,null,null,null,null,null,null,null,null,null,null,null,null,null,null,"",""]
[null,null,496,null,null,null,null,null,null,null,null,null,null,null,null,null,null,null,null,"",""]
[null,null,497,null,null,null,null,null,null,null,null,null,null,null,null,null,null,null,null,"",""]
[null,null,498,null,null,null,null,null,null,null,null,null,null,null,null,null,null,null,null,"",""]
[null,null,499,null,null,null,null,null,null,null,null,null,null,null,null,null,null,null,null,"",""]
[null,null,500,null,null,null,null,null,null,null,null,null,null,null,null,null,null,null,null,"",""]
[null,null,501,null,null,null,null,null,null,null,null,null,null,null,null,null,null,null,null,"",""]
[null,null,502,null,null,null,null,null,null,null,null,null,null,null,null,null,null,null,null,"",""]
[null,null,503,null,null,null,null,null,null,null,null,null,null,null,null,null,null,null,{"$f":"CONCATENATE(\"Strona \",A502,\" z \",$AB$12)","v":"Strona 36 z 1"},"",""]
[null,null,504,null,null,null,null,null,null,null,null,null,null,null,null,null,null,null,null,"",""]
[37,null,505,null,null,null,null,null,null,null,null,null,null,null,null,null,null,null,null,"",""]
[null,null,506,null,null,null,null,null,null,null,null,null,null,null,null,null,null,null,null,"",""]
[null,null,507,null,null,null,null,null,null,null,null,null,null,null,null,null,null,null,null,"",""]
[null,null,508,null,null,null,null,null,null,null,null,null,null,null,null,null,null,null,null,"",""]
[null,null,509,null,null,null,null,null,null,null,null,null,null,null,null,null,null,null,null,"",""]
[null,null,510,null,null,null,null,null,null,null,null,null,null,null,null,null,null,null,null,"",""]
[null,null,511,null,null,null,null,null,null,null,null,null,null,null,null,null,null,null,null,"",""]
[null,null,512,null,null,null,null,null,null,null,null,null,null,null,null,null,null,null,null,"",""]
[null,null,513,null,null,null,null,null,null,null,null,null,null,null,null,null,null,null,null,"",""]
[null,null,514,null,null,null,null,null,null,null,null,null,null,null,null,null,null,null,null,"",""]
[null,null,515,null,null,null,null,null,null,null,null,null,null,null,null,null,null,null,null,"",""]
[null,null,516,null,null,null,null,null,null,null,null,null,null,null,null,null,null,null,null,"",""]
[null,null,517,null,null,null,null,null,null,null,null,null,null,null,null,null,null,null,{"$f":"CONCATENATE(\"Strona \",A516,\" z \",$AB$12)","v":"Strona 37 z 1"},"",""]
[null,null,518,null,null,null,null,null,null,null,null,null,null,null,null,null,null,null,null,"",""]
[38,null,519,null,null,null,null,null,null,null,null,null,null,null,null,null,null,null,null,"",""]
[null,null,520,null,null,null,null,null,null,null,null,null,null,null,null,null,null,null,null,"",""]
[null,null,521,null,null,null,null,null,null,null,null,null,null,null,null,null,null,null,null,"",""]
[null,null,522,null,null,null,null,null,null,null,null,null,null,null,null,null,null,null,null,"",""]
[null,null,523,null,null,null,null,null,null,null,null,null,null,null,null,null,null,null,null,"",""]
[null,null,524,null,null,null,null,null,null,null,null,null,null,null,null,null,null,null,null,"",""]
[null,null,525,null,null,null,null,null,null,null,null,null,null,null,null,null,null,null,null,"",""]
[null,null,526,null,null,null,null,null,null,null,null,null,null,null,null,null,null,null,null,"",""]
[null,null,527,null,null,null,null,null,null,null,null,null,null,null,null,null,null,null,null,"",""]
[null,null,528,null,null,null,null,null,null,null,null,null,null,null,null,null,null,null,null,"",""]
[null,null,529,null,null,null,null,null,null,null,null,null,null,null,null,null,null,null,null,"",""]
[null,null,530,null,null,null,null,null,null,null,null,null,null,null,null,null,null,null,null,"",""]
[null,null,531,null,null,null,null,null,null,null,null,null,null,null,null,null,null,null,{"$f":"CONCATENATE(\"Strona \",A530,\" z \",$AB$12)","v":"Strona 38 z 1"},"",""]
[null,null,532,null,null,null,null,null,null,null,null,null,null,null,null,null,null,null,null,"",""]
[39,null,533,null,null,null,null,null,null,null,null,null,null,null,null,null,null,null,null,"",""]
[null,null,534,null,null,null,null,null,null,null,null,null,null,null,null,null,null,null,null,"",""]
[null,null,535,null,null,null,null,null,null,null,null,null,null,null,null,null,null,null,null,{"$f":"IF(AND(K546=\"\",L546=\"\"),\"\",K546+L546/100)","v":""},{"$f":"IF(AND(M546=\"\",N546=\"\"),\"\",M546+N546/100)","v":""}]
[null,null,536,null,null,null,null,null,null,null,null,null,null,null,null,null,null,null,null,"",""]
[null,null,537,null,null,null,null,null,null,null,null,null,null,null,null,null,null,null,null,"",""]
[null,null,538,null,null,null,null,null,null,null,null,null,null,null,null,null,null,null,null,"",""]
[null,null,539,null,null,null,null,null,null,null,null,null,null,null,null,null,null,null,null,"",""]
[null,null,540,null,null,null,null,null,null,null,null,null,null,null,null,null,null,null,null,"",""]
[null,null,541,null,null,null,null,null,null,null,null,null,null,null,null,null,null,null,null,"",""]
[null,null,542,null,null,null,null,null,null,null,null,null,null,null,null,null,null,null,null,"",""]
[null,null,543,null,null,null,null,null,null,null,null,null,null,null,null,null,null,null,null,"",""]
[null,null,544,null,null,null,null,null,null,null,null,null,null,null,null,null,null,null,null,"",""]
[null,null,545,null,null,null,null,null,null,null,null,null,null,null,null,null,null,null,{"$f":"CONCATENATE(\"Strona \",A544,\" z \",$AB$12)","v":"Strona 39 z 1"},"",""]
[null,null,546,null,null,null,null,null,null,null,null,null,null,null,null,null,null,null,null,"",""]
[40,null,547,null,null,null,null,null,null,null,null,null,null,null,null,null,null,null,null,"",""]
[null,null,548,null,null,null,null,null,null,null,null,null,null,null,null,null,null,null,null,"",""]
[null,null,549,null,null,null,null,null,null,null,null,null,null,null,null,null,null,null,null,"",""]
[null,null,550,null,null,null,null,null,null,null,null,null,null,null,null,null,null,null,null,"",""]
[null,null,551,null,null,null,null,null,null,null,null,null,null,null,null,null,null,null,null,"",""]
[null,null,552,null,null,null,null,null,null,null,null,null,null,null,null,null,null,null,null,"",""]
[null,null,553,null,null,null,null,null,null,null,null,null,null,null,null,null,null,null,null,"",""]
[null,null,554,null,null,null,null,null,null,null,null,null,null,null,null,null,null,null,null,"",""]
[null,null,555,null,null,null,null,null,null,null,null,null,null,null,null,null,null,null,null,"",""]
[null,null,556,null,null,null,null,null,null,null,null,null,null,null,null,null,null,null,null,"",""]
[null,null,557,null,null,null,null,null,null,null,null,null,null,null,null,null,null,null,null,"",""]
[null,null,558,null,null,null,null,null,null,null,null,null,null,null,null,null,null,null,null,"",""]
[null,null,559,null,null,null,null,null,null,null,null,null,null,null,null,null,null,null,{"$f":"CONCATENATE(\"Strona \",A558,\" z \",$AB$12)","v":"Strona 40 z 1"},"",""]
[null,null,560,null,null,null,null,null,null,null,null,null,null,null,null,null,null,null,null,"",""]
[41,null,561,null,null,null,null,null,null,null,null,null,null,null,null,null,null,null,null,"",""]
[null,null,562,null,null,null,null,null,null,null,null,null,null,null,null,null,null,null,null,"",""]
[null,null,563,null,null,null,null,null,null,null,null,null,null,null,null,null,null,null,null,"",""]
[null,null,564,null,null,null,null,null,null,null,null,null,null,null,null,null,null,null,null,"",""]
[null,null,565,null,null,null,null,null,null,null,null,null,null,null,null,null,null,null,null,"",""]
[null,null,566,null,null,null,null,null,null,null,null,null,null,null,null,null,null,null,null,"",""]
[null,null,567,null,null,null,null,null,null,null,null,null,null,null,null,null,null,null,null,"",""]
[null,null,568,null,null,null,null,null,null,null,null,null,null,null,null,null,null,null,null,"",""]
[null,null,569,null,null,null,null,null,null,null,null,null,null,null,null,null,null,null,null,"",""]
[null,null,570,null,null,null,null,null,null,null,null,null,null,null,null,null,null,null,null,"",""]
[null,null,571,null,null,null,null,null,null,null,null,null,null,null,null,null,null,null,null,"",""]
[null,null,572,null,null,null,null,null,null,null,null,null,null,null,null,null,null,null,null,"",""]
[null,null,573,null,null,null,null,null,null,null,null,null,null,null,null,null,null,null,{"$f":"CONCATENATE(\"Strona \",A572,\" z \",$AB$12)","v":"Strona 41 z 1"},"",""]
[null,null,574,null,null,null,null,null,null,null,null,null,null,null,null,null,null,null,null,"",""]
[42,null,575,null,null,null,null,null,null,null,null,null,null,null,null,null,null,null,null,"",""]
[null,null,576,null,null,null,null,null,null,null,null,null,null,null,null,null,null,null,null,"",""]
[null,null,577,null,null,null,null,null,null,null,null,null,null,null,null,null,null,null,null,"",""]
[null,null,578,null,null,null,null,null,null,null,null,null,null,null,null,null,null,null,null,"",""]
[null,null,579,null,null,null,null,null,null,null,null,null,null,null,null,null,null,null,null,"",""]
[null,null,580,null,null,null,null,null,null,null,null,null,null,null,null,null,null,null,null,"",""]
[null,null,581,null,null,null,null,null,null,null,null,null,null,null,null,null,null,null,null,"",""]
[null,null,582,null,null,null,null,null,null,null,null,null,null,null,null,null,null,null,null,"",""]
[null,null,583,null,null,null,null,null,null,null,null,null,null,null,null,null,null,null,null,"",""]
[null,null,584,null,null,null,null,null,null,null,null,null,null,null,null,null,null,null,null,"",""]
[null,null,585,null,null,null,null,null,null,null,null,null,null,null,null,null,null,null,null,"",""]
[null,null,586,null,null,null,null,null,null,null,null,null,null,null,null,null,null,null,null,"",""]
[null,null,587,null,null,null,null,null,null,null,null,null,null,null,null,null,null,null,{"$f":"CONCATENATE(\"Strona \",A586,\" z \",$AB$12)","v":"Strona 42 z 1"},"",""]
[null,null,588,null,null,null,null,null,null,null,null,null,null,null,null,null,null,null,null,"",""]
[43,null,589,null,null,null,null,null,null,null,null,null,null,null,null,null,null,null,null,"",""]
[null,null,590,null,null,null,null,null,null,null,null,null,null,null,null,null,null,null,null,"",""]
[null,null,591,null,null,null,null,null,null,null,null,null,null,null,null,null,null,null,null,"",""]
[null,null,592,null,null,null,null,null,null,null,null,null,null,null,null,null,null,null,null,"",""]
[null,null,593,null,null,null,null,null,null,null,null,null,null,null,null,null,null,null,null,"",""]
[null,null,594,null,null,null,null,null,null,null,null,null,null,null,null,null,null,null,null,"",""]
[null,null,595,null,null,null,null,null,null,null,null,null,null,null,null,null,null,null,null,"",""]
[null,null,596,null,null,null,null,null,null,null,null,null,null,null,null,null,null,null,null,"",""]
[null,null,597,null,null,null,null,null,null,null,null,null,null,null,null,null,null,null,null,"",""]
[null,null,598,null,null,null,null,null,null,null,null,null,null,null,null,null,null,null,null,"",""]
[null,null,599,null,null,null,null,null,null,null,null,null,null,null,null,null,null,null,null,{"$f":"IF(AND(K610=\"\",L610=\"\"),\"\",K610+L610/100)","v":""},{"$f":"IF(AND(M610=\"\",N610=\"\"),\"\",M610+N610/100)","v":""}]
[null,null,600,null,null,null,null,null,null,null,null,null,null,null,null,null,null,null,null,"",""]
[null,null,601,null,null,null,null,null,null,null,null,null,null,null,null,null,null,null,{"$f":"CONCATENATE(\"Strona \",A600,\" z \",$AB$12)","v":"Strona 43 z 1"},"",""]
[null,null,602,null,null,null,null,null,null,null,null,null,null,null,null,null,null,null,null,"",""]
[44,null,603,null,null,null,null,null,null,null,null,null,null,null,null,null,null,null,null,"",""]
[null,null,604,null,null,null,null,null,null,null,null,null,null,null,null,null,null,null,null,"",""]
[null,null,605,null,null,null,null,null,null,null,null,null,null,null,null,null,null,null,null,"",""]
[null,null,606,null,null,null,null,null,null,null,null,null,null,null,null,null,null,null,null,"",""]
[null,null,607,null,null,null,null,null,null,null,null,null,null,null,null,null,null,null,null,"",""]
[null,null,608,null,null,null,null,null,null,null,null,null,null,null,null,null,null,null,null,"",""]
[null,null,609,null,null,null,null,null,null,null,null,null,null,null,null,null,null,null,null,"",""]
[null,null,610,null,null,null,null,null,null,null,null,null,null,null,null,null,null,null,null,"",""]
[null,null,611,null,null,null,null,null,null,null,null,null,null,null,null,null,null,null,null,"",""]
[null,null,612,null,null,null,null,null,null,null,null,null,null,null,null,null,null,null,null,"",""]
[null,null,613,null,null,null,null,null,null,null,null,null,null,null,null,null,null,null,null,"",""]
[null,null,614,null,null,null,null,null,null,null,null,null,null,null,null,null,null,null,null,"",""]
[null,null,615,null,null,null,null,null,null,null,null,null,null,null,null,null,null,null,{"$f":"CONCATENATE(\"Strona \",A614,\" z \",$AB$12)","v":"Strona 44 z 1"},"",""]
[null,null,616,null,null,null,null,null,null,null,null,null,null,null,null,null,null,null,null,"",""]
[45,null,617,null,null,null,null,null,null,null,null,null,null,null,null,null,null,null,null,"",""]
[null,null,618,null,null,null,null,null,null,null,null,null,null,null,null,null,null,null,null,"",""]
[null,null,619,null,null,null,null,null,null,null,null,null,null,null,null,null,null,null,null,"",""]
[null,null,620,null,null,null,null,null,null,null,null,null,null,null,null,null,null,null,null,"",""]
[null,null,621,null,null,null,null,null,null,null,null,null,null,null,null,null,null,null,null,"",""]
[null,null,622,null,null,null,null,null,null,null,null,null,null,null,null,null,null,null,null,"",""]
[null,null,623,null,null,null,null,null,null,null,null,null,null,null,null,null,null,null,null,"",""]
[null,null,624,null,null,null,null,null,null,null,null,null,null,null,null,null,null,null,null,"",""]
[null,null,625,null,null,null,null,null,null,null,null,null,null,null,null,null,null,null,null,"",""]
[null,null,626,null,null,null,null,null,null,null,null,null,null,null,null,null,null,null,null,"",""]
[null,null,627,null,null,null,null,null,null,null,null,null,null,null,null,null,null,null,null,"",""]
[null,null,628,null,null,null,null,null,null,null,null,null,null,null,null,null,null,null,null,"",""]
[null,null,629,null,null,null,null,null,null,null,null,null,null,null,null,null,null,null,{"$f":"CONCATENATE(\"Strona \",A628,\" z \",$AB$12)","v":"Strona 45 z 1"},"",""]
[null,null,630,null,null,null,null,null,null,null,null,null,null,null,null,null,null,null,null,"",""]
[46,null,631,null,null,null,null,null,null,null,null,null,null,null,null,null,null,null,null,"",""]
[null,null,632,null,null,null,null,null,null,null,null,null,null,null,null,null,null,null,null,"",""]
[null,null,633,null,null,null,null,null,null,null,null,null,null,null,null,null,null,null,null,"",""]
[null,null,634,null,null,null,null,null,null,null,null,null,null,null,null,null,null,null,null,"",""]
[null,null,635,null,null,null,null,null,null,null,null,null,null,null,null,null,null,null,null,"",""]
[null,null,636,null,null,null,null,null,null,null,null,null,null,null,null,null,null,null,null,"",""]
[null,null,637,null,null,null,null,null,null,null,null,null,null,null,null,null,null,null,null,"",""]
[null,null,638,null,null,null,null,null,null,null,null,null,null,null,null,null,null,null,null,"",""]
[null,null,639,null,null,null,null,null,null,null,null,null,null,null,null,null,null,null,null,"",""]
[null,null,640,null,null,null,null,null,null,null,null,null,null,null,null,null,null,null,null,"",""]
[null,null,641,null,null,null,null,null,null,null,null,null,null,null,null,null,null,null,null,"",""]
[null,null,642,null,null,null,null,null,null,null,null,null,null,null,null,null,null,null,null,"",""]
[null,null,643,null,null,null,null,null,null,null,null,null,null,null,null,null,null,null,{"$f":"CONCATENATE(\"Strona \",A642,\" z \",$AB$12)","v":"Strona 46 z 1"},"",""]
[null,null,644,null,null,null,null,null,null,null,null,null,null,null,null,null,null,null,null,"",""]
[47,null,645,null,null,null,null,null,null,null,null,null,null,null,null,null,null,null,null,"",""]
[null,null,646,null,null,null,null,null,null,null,null,null,null,null,null,null,null,null,null,"",""]
[null,null,647,null,null,null,null,null,null,null,null,null,null,null,null,null,null,null,null,"",""]
[null,null,648,null,null,null,null,null,null,null,null,null,null,null,null,null,null,null,null,"",""]
[null,null,649,null,null,null,null,null,null,null,null,null,null,null,null,null,null,null,null,"",""]
[null,null,650,null,null,null,null,null,null,null,null,null,null,null,null,null,null,null,null,"",""]
[null,null,651,null,null,null,null,null,null,null,null,null,null,null,null,null,null,null,null,"",""]
[null,null,652,null,null,null,null,null,null,null,null,null,null,null,null,null,null,null,null,"",""]
[null,null,653,null,null,null,null,null,null,null,null,null,null,null,null,null,null,null,null,"",""]
[null,null,654,null,null,null,null,null,null,null,null,null,null,null,null,null,null,null,null,"",""]
[null,null,655,null,null,null,null,null,null,null,null,null,null,null,null,null,null,null,null,"",""]
[null,null,656,null,null,null,null,null,null,null,null,null,null,null,null,null,null,null,null,"",""]
[null,null,657,null,null,null,null,null,null,null,null,null,null,null,null,null,null,null,{"$f":"CONCATENATE(\"Strona \",A656,\" z \",$AB$12)","v":"Strona 47 z 1"},"",""]
[null,null,658,null,null,null,null,null,null,null,null,null,null,null,null,null,null,null,null,"",""]
[48,null,659,null,null,null,null,null,null,null,null,null,null,null,null,null,null,null,null,"",""]
[null,null,660,null,null,null,null,null,null,null,null,null,null,null,null,null,null,null,null,"",""]
[null,null,661,null,null,null,null,null,null,null,null,null,null,null,null,null,null,null,null,"",""]
[null,null,662,null,null,null,null,null,null,null,null,null,null,null,null,null,null,null,null,"",""]
[null,null,663,null,null,null,null,null,null,null,null,null,null,null,null,null,null,null,null,{"$f":"IF(AND(K674=\"\",L674=\"\"),\"\",K674+L674/100)","v":""},{"$f":"IF(AND(M674=\"\",N674=\"\"),\"\",M674+N674/100)","v":""}]
[null,null,664,null,null,null,null,null,null,null,null,null,null,null,null,null,null,null,null,"",""]
[null,null,665,null,null,null,null,null,null,null,null,null,null,null,null,null,null,null,null,"",""]
[null,null,666,null,null,null,null,null,null,null,null,null,null,null,null,null,null,null,null,"",""]
[null,null,667,null,null,null,null,null,null,null,null,null,null,null,null,null,null,null,null,"",""]
[null,null,668,null,null,null,null,null,null,null,null,null,null,null,null,null,null,null,null,"",""]
[null,null,669,null,null,null,null,null,null,null,null,null,null,null,null,null,null,null,null,"",""]
[null,null,670,null,null,null,null,null,null,null,null,null,null,null,null,null,null,null,null,"",""]
[null,null,671,null,null,null,null,null,null,null,null,null,null,null,null,null,null,null,{"$f":"CONCATENATE(\"Strona \",A670,\" z \",$AB$12)","v":"Strona 48 z 1"},"",""]
[null,null,672,null,null,null,null,null,null,null,null,null,null,null,null,null,null,null,null,"",""]
[49,null,673,null,null,null,null,null,null,null,null,null,null,null,null,null,null,null,null,"",""]
[null,null,674,null,null,null,null,null,null,null,null,null,null,null,null,null,null,null,null,"",""]
[null,null,675,null,null,null,null,null,null,null,null,null,null,null,null,null,null,null,null,"",""]
[null,null,676,null,null,null,null,null,null,null,null,null,null,null,null,null,null,null,null,"",""]
[null,null,677,null,null,null,null,null,null,null,null,null,null,null,null,null,null,null,null,"",""]
[null,null,678,null,null,null,null,null,null,null,null,null,null,null,null,null,null,null,null,"",""]
[null,null,679,null,null,null,null,null,null,null,null,null,null,null,null,null,null,null,null,"",""]
[null,null,680,null,null,null,null,null,null,null,null,null,null,null,null,null,null,null,null,"",""]
[null,null,681,null,null,null,null,null,null,null,null,null,null,null,null,null,null,null,null,"",""]
[null,null,682,null,null,null,null,null,null,null,null,null,null,null,null,null,null,null,null,"",""]
[null,null,683,null,null,null,null,null,null,null,null,null,null,null,null,null,null,null,null,"",""]
[null,null,684,null,null,null,null,null,null,null,null,null,null,null,null,null,null,null,null,"",""]
[null,null,685,null,null,null,null,null,null,null,null,null,null,null,null,null,null,null,{"$f":"CONCATENATE(\"Strona \",A684,\" z \",$AB$12)","v":"Strona 49 z 1"},"",""]
[null,null,686,null,null,null,null,null,null,null,null,null,null,null,null,null,null,null,null,"",""]
[50,null,687,null,null,null,null,null,null,null,null,null,null,null,null,null,null,null,null,"",""]
[null,null,688,null,null,null,null,null,null,null,null,null,null,null,null,null,null,null,null,"",""]
[null,null,689,null,null,null,null,null,null,null,null,null,null,null,null,null,null,null,null,"",""]
[null,null,690,null,null,null,null,null,null,null,null,null,null,null,null,null,null,null,null,"",""]
[null,null,691,null,null,null,null,null,null,null,null,null,null,null,null,null,null,null,null,"",""]
[null,null,692,null,null,null,null,null,null,null,null,null,null,null,null,null,null,null,null,"",""]
[null,null,693,null,null,null,null,null,null,null,null,null,null,null,null,null,null,null,null,"",""]
[null,null,694,null,null,null,null,null,null,null,null,null,null,null,null,null,null,null,null,"",""]
[null,null,695,null,null,null,null,null,null,null,null,null,null,null,null,null,null,null,null,"",""]
[null,null,696,null,null,null,null,null,null,null,null,null,null,null,null,null,null,null,null,"",""]
[null,null,697,null,null,null,null,null,null,null,null,null,null,null,null,null,null,null,null,"",""]
[null,null,698,null,null,null,null,null,null,null,null,null,null,null,null,null,null,null,null,"",""]
[null,null,699,null,null,null,null,null,null,null,null,null,null,null,null,null,null,null,{"$f":"CONCATENATE(\"Strona \",A698,\" z \",$AB$12)","v":"Strona 50 z 1"},"",""]
[null,null,700,null,null,null,null,null,null,null,null,null,null,null,null,null,null,null,null,"",""]
[51,null,701,null,null,null,null,null,null,null,null,null,null,null,null,null,null,null,null,"",""]
[null,null,702,null,null,null,null,null,null,null,null,null,null,null,null,null,null,null,null,"",""]
[null,null,703,null,null,null,null,null,null,null,null,null,null,null,null,null,null,null,null,"",""]
[null,null,704,null,null,null,null,null,null,null,null,null,null,null,null,null,null,null,null,"",""]
[null,null,705,null,null,null,null,null,null,null,null,null,null,null,null,null,null,null,null,"",""]
[null,null,706,null,null,null,null,null,null,null,null,null,null,null,null,null,null,null,null,"",""]
[null,null,707,null,null,null,null,null,null,null,null,null,null,null,null,null,null,null,null,"",""]
[null,null,708,null,null,null,null,null,null,null,null,null,null,null,null,null,null,null,null,"",""]
[null,null,709,null,null,null,null,null,null,null,null,null,null,null,null,null,null,null,null,"",""]
[null,null,710,null,null,null,null,null,null,null,null,null,null,null,null,null,null,null,null,"",""]
[null,null,711,null,null,null,null,null,null,null,null,null,null,null,null,null,null,null,null,"",""]
[null,null,712,null,null,null,null,null,null,null,null,null,null,null,null,null,null,null,null,"",""]
[null,null,713,null,null,null,null,null,null,null,null,null,null,null,null,null,null,null,{"$f":"CONCATENATE(\"Strona \",A712,\" z \",$AB$12)","v":"Strona 51 z 1"},"",""]
[null,null,714,null,null,null,null,null,null,null,null,null,null,null,null,null,null,null,null,"",""]
[52,null,715,null,null,null,null,null,null,null,null,null,null,null,null,null,null,null,null,"",""]
[null,null,716,null,null,null,null,null,null,null,null,null,null,null,null,null,null,null,null,"",""]
[null,null,717,null,null,null,null,null,null,null,null,null,null,null,null,null,null,null,null,"",""]
[null,null,718,null,null,null,null,null,null,null,null,null,null,null,null,null,null,null,null,"",""]
[null,null,719,null,null,null,null,null,null,null,null,null,null,null,null,null,null,null,null,"",""]
[null,null,720,null,null,null,null,null,null,null,null,null,null,null,null,null,null,null,null,"",""]
[null,null,721,null,null,null,null,null,null,null,null,null,null,null,null,null,null,null,null,"",""]
[null,null,722,null,null,null,null,null,null,null,null,null,null,null,null,null,null,null,null,"",""]
[null,null,723,null,null,null,null,null,null,null,null,null,null,null,null,null,null,null,null,"",""]
[null,null,724,null,null,null,null,null,null,null,null,null,null,null,null,null,null,null,null,"",""]
[null,null,725,null,null,null,null,null,null,null,null,null,null,null,null,null,null,null,null,"",""]
[null,null,726,null,null,null,null,null,null,null,null,null,null,null,null,null,null,null,null,"",""]
[null,null,727,null,null,null,null,null,null,null,null,null,null,null,null,null,null,null,{"$f":"CONCATENATE(\"Strona \",A726,\" z \",$AB$12)","v":"Strona 52 z 1"},{"$f":"IF(AND(K738=\"\",L738=\"\"),\"\",K738+L738/100)","v":""},{"$f":"IF(AND(M738=\"\",N738=\"\"),\"\",M738+N738/100)","v":""}]
[null,null,728,null,null,null,null,null,null,null,null,null,null,null,null,null,null,null,null,"",""]
[53,null,729,null,null,null,null,null,null,null,null,null,null,null,null,null,null,null,null,"",""]
[null,null,730,null,null,null,null,null,null,null,null,null,null,null,null,null,null,null,null,"",""]
[null,null,731,null,null,null,null,null,null,null,null,null,null,null,null,null,null,null,null,"",""]
[null,null,732,null,null,null,null,null,null,null,null,null,null,null,null,null,null,null,null,"",""]
[null,null,733,null,null,null,null,null,null,null,null,null,null,null,null,null,null,null,null,"",""]
[null,null,734,null,null,null,null,null,null,null,null,null,null,null,null,null,null,null,null,"",""]
[null,null,735,null,null,null,null,null,null,null,null,null,null,null,null,null,null,null,null,"",""]
[null,null,736,null,null,null,null,null,null,null,null,null,null,null,null,null,null,null,null,"",""]
[null,null,737,null,null,null,null,null,null,null,null,null,null,null,null,null,null,null,null,"",""]
[null,null,738,null,null,null,null,null,null,null,null,null,null,null,null,null,null,null,null,"",""]
[null,null,739,null,null,null,null,null,null,null,null,null,null,null,null,null,null,null,null,"",""]
[null,null,740,null,null,null,null,null,null,null,null,null,null,null,null,null,null,null,null,"",""]
[null,null,741,null,null,null,null,null,null,null,null,null,null,null,null,null,null,null,{"$f":"CONCATENATE(\"Strona \",A740,\" z \",$AB$12)","v":"Strona 53 z 1"},"",""]
[null,null,742,null,null,null,null,null,null,null,null,null,null,null,null,null,null,null,null,"",""]
[54,null,743,null,null,null,null,null,null,null,null,null,null,null,null,null,null,null,null,"",""]
[null,null,744,null,null,null,null,null,null,null,null,null,null,null,null,null,null,null,null,"",""]
[null,null,745,null,null,null,null,null,null,null,null,null,null,null,null,null,null,null,null,"",""]
[null,null,746,null,null,null,null,null,null,null,null,null,null,null,null,null,null,null,null,"",""]
[null,null,747,null,null,null,null,null,null,null,null,null,null,null,null,null,null,null,null,"",""]
[null,null,748,null,null,null,null,null,null,null,null,null,null,null,null,null,null,null,null,"",""]
[null,null,749,null,null,null,null,null,null,null,null,null,null,null,null,null,null,null,null,"",""]
[null,null,750,null,null,null,null,null,null,null,null,null,null,null,null,null,null,null,null,"",""]
[null,null,751,null,null,null,null,null,null,null,null,null,null,null,null,null,null,null,null,"",""]
[null,null,752,null,null,null,null,null,null,null,null,null,null,null,null,null,null,null,null,"",""]
[null,null,753,null,null,null,null,null,null,null,null,null,null,null,null,null,null,null,null,"",""]
[null,null,754,null,null,null,null,null,null,null,null,null,null,null,null,null,null,null,null,"",""]
[null,null,755,null,null,null,null,null,null,null,null,null,null,null,null,null,null,null,{"$f":"CONCATENATE(\"Strona \",A754,\" z \",$AB$12)","v":"Strona 54 z 1"},"",""]
[null,null,756,null,null,null,null,null,null,null,null,null,null,null,null,null,null,null,null,"",""]
[55,null,757,null,null,null,null,null,null,null,null,null,null,null,null,null,null,null,null,"",""]
[null,null,758,null,null,null,null,null,null,null,null,null,null,null,null,null,null,null,null,"",""]
[null,null,759,null,null,null,null,null,null,null,null,null,null,null,null,null,null,null,null,"",""]
[null,null,760,null,null,null,null,null,null,null,null,null,null,null,null,null,null,null,null,"",""]
[null,null,761,null,null,null,null,null,null,null,null,null,null,null,null,null,null,null,null,"",""]
[null,null,762,null,null,null,null,null,null,null,null,null,null,null,null,null,null,null,null,"",""]
[null,null,763,null,null,null,null,null,null,null,null,null,null,null,null,null,null,null,null,"",""]
[null,null,764,null,null,null,null,null,null,null,null,null,null,null,null,null,null,null,null,"",""]
[null,null,765,null,null,null,null,null,null,null,null,null,null,null,null,null,null,null,null,"",""]
[null,null,766,null,null,null,null,null,null,null,null,null,null,null,null,null,null,null,null,"",""]
[null,null,767,null,null,null,null,null,null,null,null,null,null,null,null,null,null,null,null,"",""]
[null,null,768,null,null,null,null,null,null,null,null,null,null,null,null,null,null,null,null,"",""]
[null,null,769,null,null,null,null,null,null,null,null,null,null,null,null,null,null,null,{"$f":"CONCATENATE(\"Strona \",A768,\" z \",$AB$12)","v":"Strona 55 z 1"},"",""]
[null,null,770,null,null,null,null,null,null,null,null,null,null,null,null,null,null,null,null,"",""]
[56,null,771,null,null,null,null,null,null,null,null,null,null,null,null,null,null,null,null,"",""]
[null,null,772,null,null,null,null,null,null,null,null,null,null,null,null,null,null,null,null,"",""]
[null,null,773,null,null,null,null,null,null,null,null,null,null,null,null,null,null,null,null,"",""]
[null,null,774,null,null,null,null,null,null,null,null,null,null,null,null,null,null,null,null,"",""]
[null,null,775,null,null,null,null,null,null,null,null,null,null,null,null,null,null,null,null,"",""]
[null,null,776,null,null,null,null,null,null,null,null,null,null,null,null,null,null,null,null,"",""]
[null,null,777,null,null,null,null,null,null,null,null,null,null,null,null,null,null,null,null,"",""]
[null,null,778,null,null,null,null,null,null,null,null,null,null,null,null,null,null,null,null,"",""]
[null,null,779,null,null,null,null,null,null,null,null,null,null,null,null,null,null,null,null,"",""]
[null,null,780,null,null,null,null,null,null,null,null,null,null,null,null,null,null,null,null,"",""]
[null,null,781,null,null,null,null,null,null,null,null,null,null,null,null,null,null,null,null,"",""]
[null,null,782,null,null,null,null,null,null,null,null,null,null,null,null,null,null,null,null,"",""]
[null,null,783,null,null,null,null,null,null,null,null,null,null,null,null,null,null,null,{"$f":"CONCATENATE(\"Strona \",A782,\" z \",$AB$12)","v":"Strona 56 z 1"},"",""]
[null,null,784,null,null,null,null,null,null,null,null,null,null,null,null,null,null,null,null,"",""]
[57,null,785,null,null,null,null,null,null,null,null,null,null,null,null,null,null,null,null,"",""]
[null,null,786,null,null,null,null,null,null,null,null,null,null,null,null,null,null,null,null,"",""]
[null,null,787,null,null,null,null,null,null,null,null,null,null,null,null,null,null,null,null,"",""]
[null,null,788,null,null,null,null,null,null,null,null,null,null,null,null,null,null,null,null,"",""]
[null,null,789,null,null,null,null,null,null,null,null,null,null,null,null,null,null,null,null,"",""]
[null,null,790,null,null,null,null,null,null,null,null,null,null,null,null,null,null,null,null,"",""]
[null,null,791,null,null,null,null,null,null,null,null,null,null,null,null,null,null,null,null,{"$f":"IF(AND(K802=\"\",L802=\"\"),\"\",K802+L802/100)","v":""},{"$f":"IF(AND(M802=\"\",N802=\"\"),\"\",M802+N802/100)","v":""}]
[null,null,792,null,null,null,null,null,null,null,null,null,null,null,null,null,null,null,null,"",""]
[null,null,793,null,null,null,null,null,null,null,null,null,null,null,null,null,null,null,null,"",""]
[null,null,794,null,null,null,null,null,null,null,null,null,null,null,null,null,null,null,null,"",""]
[null,null,795,null,null,null,null,null,null,null,null,null,null,null,null,null,null,null,null,"",""]
[null,null,796,null,null,null,null,null,null,null,null,null,null,null,null,null,null,null,null,"",""]
[null,null,797,null,null,null,null,null,null,null,null,null,null,null,null,null,null,null,{"$f":"CONCATENATE(\"Strona \",A796,\" z \",$AB$12)","v":"Strona 57 z 1"},"",""]
[null,null,798,null,null,null,null,null,null,null,null,null,null,null,null,null,null,null,null,"",""]
[58,null,799,null,null,null,null,null,null,null,null,null,null,null,null,null,null,null,null,"",""]
[null,null,800,null,null,null,null,null,null,null,null,null,null,null,null,null,null,null,null,"",""]
[null,null,801,null,null,null,null,null,null,null,null,null,null,null,null,null,null,null,null,"",""]
[null,null,802,null,null,null,null,null,null,null,null,null,null,null,null,null,null,null,null,"",""]
[null,null,803,null,null,null,null,null,null,null,null,null,null,null,null,null,null,null,null,"",""]
[null,null,804,null,null,null,null,null,null,null,null,null,null,null,null,null,null,null,null,"",""]
[null,null,805,null,null,null,null,null,null,null,null,null,null,null,null,null,null,null,null,"",""]
[null,null,806,null,null,null,null,null,null,null,null,null,null,null,null,null,null,null,null,"",""]
[null,null,807,null,null,null,null,null,null,null,null,null,null,null,null,null,null,null,null,"",""]
[null,null,808,null,null,null,null,null,null,null,null,null,null,null,null,null,null,null,null,"",""]
[null,null,809,null,null,null,null,null,null,null,null,null,null,null,null,null,null,null,null,"",""]
[null,null,810,null,null,null,null,null,null,null,null,null,null,null,null,null,null,null,null,"",""]
[null,null,811,null,null,null,null,null,null,null,null,null,null,null,null,null,null,null,{"$f":"CONCATENATE(\"Strona \",A810,\" z \",$AB$12)","v":"Strona 58 z 1"},"",""]
[null,null,812,null,null,null,null,null,null,null,null,null,null,null,null,null,null,null,null,"",""]
[59,null,813,null,null,null,null,null,null,null,null,null,null,null,null,null,null,null,null,"",""]
[null,null,814,null,null,null,null,null,null,null,null,null,null,null,null,null,null,null,null,"",""]
[null,null,815,null,null,null,null,null,null,null,null,null,null,null,null,null,null,null,null,"",""]
[null,null,816,null,null,null,null,null,null,null,null,null,null,null,null,null,null,null,null,"",""]
[null,null,817,null,null,null,null,null,null,null,null,null,null,null,null,null,null,null,null,"",""]
[null,null,818,null,null,null,null,null,null,null,null,null,null,null,null,null,null,null,null,"",""]
[null,null,819,null,null,null,null,null,null,null,null,null,null,null,null,null,null,null,null,"",""]
[null,null,820,null,null,null,null,null,null,null,null,null,null,null,null,null,null,null,null,"",""]
[null,null,821,null,null,null,null,null,null,null,null,null,null,null,null,null,null,null,null,"",""]
[null,null,822,null,null,null,null,null,null,null,null,null,null,null,null,null,null,null,null,"",""]
[null,null,823,null,null,null,null,null,null,null,null,null,null,null,null,null,null,null,null,"",""]
[null,null,824,null,null,null,null,null,null,null,null,null,null,null,null,null,null,null,null,"",""]
[null,null,825,null,null,null,null,null,null,null,null,null,null,null,null,null,null,null,{"$f":"CONCATENATE(\"Strona \",A824,\" z \",$AB$12)","v":"Strona 59 z 1"},"",""]
[null,null,826,null,null,null,null,null,null,null,null,null,null,null,null,null,null,null,null,"",""]
[60,null,827,null,null,null,null,null,null,null,null,null,null,null,null,null,null,null,null,"",""]
[null,null,828,null,null,null,null,null,null,null,null,null,null,null,null,null,null,null,null,"",""]
[null,null,829,null,null,null,null,null,null,null,null,null,null,null,null,null,null,null,null,"",""]
[null,null,830,null,null,null,null,null,null,null,null,null,null,null,null,null,null,null,null,"",""]
[null,null,831,null,null,null,null,null,null,null,null,null,null,null,null,null,null,null,null,"",""]
[null,null,832,null,null,null,null,null,null,null,null,null,null,null,null,null,null,null,null,"",""]
[null,null,833,null,null,null,null,null,null,null,null,null,null,null,null,null,null,null,null,"",""]
[null,null,834,null,null,null,null,null,null,null,null,null,null,null,null,null,null,null,null,"",""]
[null,null,835,null,null,null,null,null,null,null,null,null,null,null,null,null,null,null,null,"",""]
[null,null,836,null,null,null,null,null,null,null,null,null,null,null,null,null,null,null,null,"",""]
[null,null,837,null,null,null,null,null,null,null,null,null,null,null,null,null,null,null,null,"",""]
[null,null,838,null,null,null,null,null,null,null,null,null,null,null,null,null,null,null,null,"",""]
[null,null,839,null,null,null,null,null,null,null,null,null,null,null,null,null,null,null,{"$f":"CONCATENATE(\"Strona \",A838,\" z \",$AB$12)","v":"Strona 60 z 1"},"",""]
[null,null,840,null,null,null,null,null,null,null,null,null,null,null,null,null,null,null,null,"",""]
[61,null,841,null,null,null,null,null,null,null,null,null,null,null,null,null,null,null,null,"",""]
[null,null,842,null,null,null,null,null,null,null,null,null,null,null,null,null,null,null,null,"",""]
[null,null,843,null,null,null,null,null,null,null,null,null,null,null,null,null,null,null,null,"",""]
[null,null,844,null,null,null,null,null,null,null,null,null,null,null,null,null,null,null,null,"",""]
[null,null,845,null,null,null,null,null,null,null,null,null,null,null,null,null,null,null,null,"",""]
[null,null,846,null,null,null,null,null,null,null,null,null,null,null,null,null,null,null,null,"",""]
[null,null,847,null,null,null,null,null,null,null,null,null,null,null,null,null,null,null,null,"",""]
[null,null,848,null,null,null,null,null,null,null,null,null,null,null,null,null,null,null,null,"",""]
[null,null,849,null,null,null,null,null,null,null,null,null,null,null,null,null,null,null,null,"",""]
[null,null,850,null,null,null,null,null,null,null,null,null,null,null,null,null,null,null,null,"",""]
[null,null,851,null,null,null,null,null,null,null,null,null,null,null,null,null,null,null,null,"",""]
[null,null,852,null,null,null,null,null,null,null,null,null,null,null,null,null,null,null,null,"",""]
[null,null,853,null,null,null,null,null,null,null,null,null,null,null,null,null,null,null,{"$f":"CONCATENATE(\"Strona \",A852,\" z \",$AB$12)","v":"Strona 61 z 1"},"",""]
[null,null,854,null,null,null,null,null,null,null,null,null,null,null,null,null,null,null,null,"",""]
[62,null,855,null,null,null,null,null,null,null,null,null,null,null,null,null,null,null,null,{"$f":"IF(AND(K866=\"\",L866=\"\"),\"\",K866+L866/100)","v":""},{"$f":"IF(AND(M866=\"\",N866=\"\"),\"\",M866+N866/100)","v":""}]
[null,null,856,null,null,null,null,null,null,null,null,null,null,null,null,null,null,null,null,"",""]
[null,null,857,null,null,null,null,null,null,null,null,null,null,null,null,null,null,null,null,"",""]
[null,null,858,null,null,null,null,null,null,null,null,null,null,null,null,null,null,null,null,"",""]
[null,null,859,null,null,null,null,null,null,null,null,null,null,null,null,null,null,null,null,"",""]
[null,null,860,null,null,null,null,null,null,null,null,null,null,null,null,null,null,null,null,"",""]
[null,null,861,null,null,null,null,null,null,null,null,null,null,null,null,null,null,null,null,"",""]
[null,null,862,null,null,null,null,null,null,null,null,null,null,null,null,null,null,null,null,"",""]
[null,null,863,null,null,null,null,null,null,null,null,null,null,null,null,null,null,null,null,"",""]
[null,null,864,null,null,null,null,null,null,null,null,null,null,null,null,null,null,null,null,"",""]
[null,null,865,null,null,null,null,null,null,null,null,null,null,null,null,null,null,null,null,"",""]
[null,null,866,null,null,null,null,null,null,null,null,null,null,null,null,null,null,null,null,"",""]
[null,null,867,null,null,null,null,null,null,null,null,null,null,null,null,null,null,null,{"$f":"CONCATENATE(\"Strona \",A866,\" z \",$AB$12)","v":"Strona 62 z 1"},"",""]
[null,null,868,null,null,null,null,null,null,null,null,null,null,null,null,null,null,null,null,"",""]
[63,null,869,null,null,null,null,null,null,null,null,null,null,null,null,null,null,null,null,"",""]
[null,null,870,null,null,null,null,null,null,null,null,null,null,null,null,null,null,null,null,"",""]
[null,null,871,null,null,null,null,null,null,null,null,null,null,null,null,null,null,null,null,"",""]
[null,null,872,null,null,null,null,null,null,null,null,null,null,null,null,null,null,null,null,"",""]
[null,null,873,null,null,null,null,null,null,null,null,null,null,null,null,null,null,null,null,"",""]
[null,null,874,null,null,null,null,null,null,null,null,null,null,null,null,null,null,null,null,"",""]
[null,null,875,null,null,null,null,null,null,null,null,null,null,null,null,null,null,null,null,"",""]
[null,null,876,null,null,null,null,null,null,null,null,null,null,null,null,null,null,null,null,"",""]
[null,null,877,null,null,null,null,null,null,null,null,null,null,null,null,null,null,null,null,"",""]
[null,null,878,null,null,null,null,null,null,null,null,null,null,null,null,null,null,null,null,"",""]
[null,null,879,null,null,null,null,null,null,null,null,null,null,null,null,null,null,null,null,"",""]
[null,null,880,null,null,null,null,null,null,null,null,null,null,null,null,null,null,null,null,"",""]
[null,null,881,null,null,null,null,null,null,null,null,null,null,null,null,null,null,null,{"$f":"CONCATENATE(\"Strona \",A880,\" z \",$AB$12)","v":"Strona 63 z 1"},"",""]
[null,null,882,null,null,null,null,null,null,null,null,null,null,null,null,null,null,null,null,"",""]
[64,null,883,null,null,null,null,null,null,null,null,null,null,null,null,null,null,null,null,"",""]
[null,null,884,null,null,null,null,null,null,null,null,null,null,null,null,null,null,null,null,"",""]
[null,null,885,null,null,null,null,null,null,null,null,null,null,null,null,null,null,null,null,"",""]
[null,null,886,null,null,null,null,null,null,null,null,null,null,null,null,null,null,null,null,"",""]
[null,null,887,null,null,null,null,null,null,null,null,null,null,null,null,null,null,null,null,"",""]
[null,null,888,null,null,null,null,null,null,null,null,null,null,null,null,null,null,null,null,"",""]
[null,null,889,null,null,null,null,null,null,null,null,null,null,null,null,null,null,null,null,"",""]
[null,null,890,null,null,null,null,null,null,null,null,null,null,null,null,null,null,null,null,"",""]
[null,null,891,null,null,null,null,null,null,null,null,null,null,null,null,null,null,null,null,"",""]
[null,null,892,null,null,null,null,null,null,null,null,null,null,null,null,null,null,null,null,"",""]
[null,null,893,null,null,null,null,null,null,null,null,null,null,null,null,null,null,null,null,"",""]
[null,null,894,null,null,null,null,null,null,null,null,null,null,null,null,null,null,null,null,"",""]
[null,null,895,null,null,null,null,null,null,null,null,null,null,null,null,null,null,null,{"$f":"CONCATENATE(\"Strona \",A894,\" z \",$AB$12)","v":"Strona 64 z 1"},"",""]
[null,null,896,null,null,null,null,null,null,null,null,null,null,null,null,null,null,null,null,"",""]
[65,null,897,null,null,null,null,null,null,null,null,null,null,null,null,null,null,null,null,"",""]
[null,null,898,null,null,null,null,null,null,null,null,null,null,null,null,null,null,null,null,"",""]
[null,null,899,null,null,null,null,null,null,null,null,null,null,null,null,null,null,null,null,"",""]
[null,null,900,null,null,null,null,null,null,null,null,null,null,null,null,null,null,null,null,"",""]
[null,null,901,null,null,null,null,null,null,null,null,null,null,null,null,null,null,null,null,"",""]
[null,null,902,null,null,null,null,null,null,null,null,null,null,null,null,null,null,null,null,"",""]
[null,null,903,null,null,null,null,null,null,null,null,null,null,null,null,null,null,null,null,"",""]
[null,null,904,null,null,null,null,null,null,null,null,null,null,null,null,null,null,null,null,"",""]
[null,null,905,null,null,null,null,null,null,null,null,null,null,null,null,null,null,null,null,"",""]
[null,null,906,null,null,null,null,null,null,null,null,null,null,null,null,null,null,null,null,"",""]
[null,null,907,null,null,null,null,null,null,null,null,null,null,null,null,null,null,null,null,"",""]
[null,null,908,null,null,null,null,null,null,null,null,null,null,null,null,null,null,null,null,"",""]
[null,null,909,null,null,null,null,null,null,null,null,null,null,null,null,null,null,null,{"$f":"CONCATENATE(\"Strona \",A908,\" z \",$AB$12)","v":"Strona 65 z 1"},"",""]
[null,null,910,null,null,null,null,null,null,null,null,null,null,null,null,null,null,null,null,"",""]
[66,null,911,null,null,null,null,null,null,null,null,null,null,null,null,null,null,null,null,"",""]
[null,null,912,null,null,null,null,null,null,null,null,null,null,null,null,null,null,null,null,"",""]
[null,null,913,null,null,null,null,null,null,null,null,null,null,null,null,null,null,null,null,"",""]
[null,null,914,null,null,null,null,null,null,null,null,null,null,null,null,null,null,null,null,"",""]
[null,null,915,null,null,null,null,null,null,null,null,null,null,null,null,null,null,null,null,"",""]
[null,null,916,null,null,null,null,null,null,null,null,null,null,null,null,null,null,null,null,"",""]
[null,null,917,null,null,null,null,null,null,null,null,null,null,null,null,null,null,null,null,"",""]
[null,null,918,null,null,null,null,null,null,null,null,null,null,null,null,null,null,null,null,"",""]
[null,null,919,null,null,null,null,null,null,null,null,null,null,null,null,null,null,null,null,{"$f":"IF(AND(K930=\"\",L930=\"\"),\"\",K930+L930/100)","v":""},{"$f":"IF(AND(M930=\"\",N930=\"\"),\"\",M930+N930/100)","v":""}]
[null,null,920,null,null,null,null,null,null,null,null,null,null,null,null,null,null,null,null,"",""]
[null,null,921,null,null,null,null,null,null,null,null,null,null,null,null,null,null,null,null,"",""]
[null,null,922,null,null,null,null,null,null,null,null,null,null,null,null,null,null,null,null,"",""]
[null,null,923,null,null,null,null,null,null,null,null,null,null,null,null,null,null,null,{"$f":"CONCATENATE(\"Strona \",A922,\" z \",$AB$12)","v":"Strona 66 z 1"},"",""]
[null,null,924,null,null,null,null,null,null,null,null,null,null,null,null,null,null,null,null,"",""]
[67,null,925,null,null,null,null,null,null,null,null,null,null,null,null,null,null,null,null,"",""]
[null,null,926,null,null,null,null,null,null,null,null,null,null,null,null,null,null,null,null,"",""]
[null,null,927,null,null,null,null,null,null,null,null,null,null,null,null,null,null,null,null,"",""]
[null,null,928,null,null,null,null,null,null,null,null,null,null,null,null,null,null,null,null,"",""]
[null,null,929,null,null,null,null,null,null,null,null,null,null,null,null,null,null,null,null,"",""]
[null,null,930,null,null,null,null,null,null,null,null,null,null,null,null,null,null,null,null,"",""]
[null,null,931,null,null,null,null,null,null,null,null,null,null,null,null,null,null,null,null,"",""]
[null,null,932,null,null,null,null,null,null,null,null,null,null,null,null,null,null,null,null,"",""]
[null,null,933,null,null,null,null,null,null,null,null,null,null,null,null,null,null,null,null,"",""]
[null,null,934,null,null,null,null,null,null,null,null,null,null,null,null,null,null,null,null,"",""]
[null,null,935,null,null,null,null,null,null,null,null,null,null,null,null,null,null,null,null,"",""]
[null,null,936,null,null,null,null,null,null,null,null,null,null,null,null,null,null,null,null,"",""]
[null,null,937,null,null,null,null,null,null,null,null,null,null,null,null,null,null,null,{"$f":"CONCATENATE(\"Strona \",A936,\" z \",$AB$12)","v":"Strona 67 z 1"},"",""]
[null,null,938,null,null,null,null,null,null,null,null,null,null,null,null,null,null,null,null,"",""]
[68,null,939,null,null,null,null,null,null,null,null,null,null,null,null,null,null,null,null,"",""]
[null,null,940,null,null,null,null,null,null,null,null,null,null,null,null,null,null,null,null,"",""]
[null,null,941,null,null,null,null,null,null,null,null,null,null,null,null,null,null,null,null,"",""]
[null,null,942,null,null,null,null,null,null,null,null,null,null,null,null,null,null,null,null,"",""]
[null,null,943,null,null,null,null,null,null,null,null,null,null,null,null,null,null,null,null,"",""]
[null,null,944,null,null,null,null,null,null,null,null,null,null,null,null,null,null,null,null,"",""]
[null,null,945,null,null,null,null,null,null,null,null,null,null,null,null,null,null,null,null,"",""]
[null,null,946,null,null,null,null,null,null,null,null,null,null,null,null,null,null,null,null,"",""]
[null,null,947,null,null,null,null,null,null,null,null,null,null,null,null,null,null,null,null,"",""]
[null,null,948,null,null,null,null,null,null,null,null,null,null,null,null,null,null,null,null,"",""]
[null,null,949,null,null,null,null,null,null,null,null,null,null,null,null,null,null,null,null,"",""]
[null,null,950,null,null,null,null,null,null,null,null,null,null,null,null,null,null,null,null,"",""]
[null,null,951,null,null,null,null,null,null,null,null,null,null,null,null,null,null,null,{"$f":"CONCATENATE(\"Strona \",A950,\" z \",$AB$12)","v":"Strona 68 z 1"},"",""]
[null,null,952,null,null,null,null,null,null,null,null,null,null,null,null,null,null,null,null,"",""]
[69,null,953,null,null,null,null,null,null,null,null,null,null,null,null,null,null,null,null,"",""]
[null,null,954,null,null,null,null,null,null,null,null,null,null,null,null,null,null,null,null,"",""]
[null,null,955,null,null,null,null,null,null,null,null,null,null,null,null,null,null,null,null,"",""]
[null,null,956,null,null,null,null,null,null,null,null,null,null,null,null,null,null,null,null,"",""]
[null,null,957,null,null,null,null,null,null,null,null,null,null,null,null,null,null,null,null,"",""]
[null,null,958,null,null,null,null,null,null,null,null,null,null,null,null,null,null,null,null,"",""]
[null,null,959,null,null,null,null,null,null,null,null,null,null,null,null,null,null,null,null,"",""]
[null,null,960,null,null,null,null,null,null,null,null,null,null,null,null,null,null,null,null,"",""]
[null,null,961,null,null,null,null,null,null,null,null,null,null,null,null,null,null,null,null,"",""]
[null,null,962,null,null,null,null,null,null,null,null,null,null,null,null,null,null,null,null,"",""]
[null,null,963,null,null,null,null,null,null,null,null,null,null,null,null,null,null,null,null,"",""]
[null,null,964,null,null,null,null,null,null,null,null,null,null,null,null,null,null,null,null,"",""]
[null,null,965,null,null,null,null,null,null,null,null,null,null,null,null,null,null,null,{"$f":"CONCATENATE(\"Strona \",A964,\" z \",$AB$12)","v":"Strona 69 z 1"},"",""]
[null,null,966,null,null,null,null,null,null,null,null,null,null,null,null,null,null,null,null,"",""]
[70,null,967,null,null,null,null,null,null,null,null,null,null,null,null,null,null,null,null,"",""]
[null,null,968,null,null,null,null,null,null,null,null,null,null,null,null,null,null,null,null,"",""]
[null,null,969,null,null,null,null,null,null,null,null,null,null,null,null,null,null,null,null,"",""]
[null,null,970,null,null,null,null,null,null,null,null,null,null,null,null,null,null,null,null,"",""]
[null,null,971,null,null,null,null,null,null,null,null,null,null,null,null,null,null,null,null,"",""]
[null,null,972,null,null,null,null,null,null,null,null,null,null,null,null,null,null,null,null,"",""]
[null,null,973,null,null,null,null,null,null,null,null,null,null,null,null,null,null,null,null,"",""]
[null,null,974,null,null,null,null,null,null,null,null,null,null,null,null,null,null,null,null,"",""]
[null,null,975,null,null,null,null,null,null,null,null,null,null,null,null,null,null,null,null,"",""]
[null,null,976,null,null,null,null,null,null,null,null,null,null,null,null,null,null,null,null,"",""]
[null,null,977,null,null,null,null,null,null,null,null,null,null,null,null,null,null,null,null,"",""]
[null,null,978,null,null,null,null,null,null,null,null,null,null,null,null,null,null,null,null,"",""]
[null,null,979,null,null,null,null,null,null,null,null,null,null,null,null,null,null,null,{"$f":"CONCATENATE(\"Strona \",A978,\" z \",$AB$12)","v":"Strona 70 z 1"},"",""]
[null,null,980,null,null,null,null,null,null,null,null,null,null,null,null,null,null,null,null,"",""]
[71,null,981,null,null,null,null,null,null,null,null,null,null,null,null,null,null,null,null,"",""]
[null,null,982,null,null,null,null,null,null,null,null,null,null,null,null,null,null,null,null,"",""]
[null,null,983,null,null,null,null,null,null,null,null,null,null,null,null,null,null,null,null,{"$f":"IF(AND(K994=\"\",L994=\"\"),\"\",K994+L994/100)","v":""},{"$f":"IF(AND(M994=\"\",N994=\"\"),\"\",M994+N994/100)","v":""}]
[null,null,984,null,null,null,null,null,null,null,null,null,null,null,null,null,null,null,null,"",""]
[null,null,985,null,null,null,null,null,null,null,null,null,null,null,null,null,null,null,null,"",""]
[null,null,986,null,null,null,null,null,null,null,null,null,null,null,null,null,null,null,null,"",""]
[null,null,987,null,null,null,null,null,null,null,null,null,null,null,null,null,null,null,null,"",""]
[null,null,988,null,null,null,null,null,null,null,null,null,null,null,null,null,null,null,null,"",""]
[null,null,989,null,null,null,null,null,null,null,null,null,null,null,null,null,null,null,null,"",""]
[null,null,990,null,null,null,null,null,null,null,null,null,null,null,null,null,null,null,null,"",""]
[null,null,991,null,null,null,null,null,null,null,null,null,null,null,null,null,null,null,null,"",""]
[null,null,992,null,null,null,null,null,null,null,null,null,null,null,null,null,null,null,null,"",""]
[null,null,993,null,null,null,null,null,null,null,null,null,null,null,null,null,null,null,{"$f":"CONCATENATE(\"Strona \",A992,\" z \",$AB$12)","v":"Strona 71 z 1"},"",""]
[null,null,994,null,null,null,null,null,null,null,null,null,null,null,null,null,null,null,null,"",""]

{"sheet":"ZLECENIE CERTYFIKACJI","index":4,"n_rows":133,"n_cols":49,"rows_kept":133,"cut":false,"hidden":false,"merged":[[31,2,32,2],[31,3,32,43],[80,2,80,43],[2,19,3,19],[2,20,3,20],[2,21,3,37],[2,16,3,16],[2,2,3,11],[2,12,3,12],[2,13,3,13],[2,14,3,14],[2,15,3,15],[2,17,3,17],[2,18,3,18],[75,3,76,9],[75,14,76,20],[132,2,132,43],[131,2,131,43],[21,3,21,43],[23,3,24,43],[5,39,7,43],[29,3,29,10],[29,12,29,18],[29,20,29,26],[29,28,29,43],[16,2,17,2],[16,3,17,43],[19,3,20,43],[5,2,5,38],[42,27,42,43],[7,8,12,37],[72,36,74,42],[24,46,24,47],[25,3,25,43],[27,3,28,10],[27,12,28,18],[27,20,28,26],[27,28,28,43],[42,46,42,47],[34,25,34,43],[46,4,46,22],[36,4,36,22],[38,4,38,22],[40,4,40,22],[42,4,42,22],[44,4,44,22],[34,4,34,22],[36,25,36,43],[38,25,38,26],[38,27,38,43],[40,25,40,26],[40,27,40,43],[42,25,42,26],[44,25,44,26],[78,2,78,43],[63,44,76,44],[64,3,64,43],[66,3,66,15],[63,20,63,43],[75,25,76,31],[75,36,76,42],[66,16,66,27],[66,28,66,34],[72,3,74,9],[72,14,74,20],[66,35,66,43],[68,2,69,43],[72,25,74,31],[52,3,52,43],[53,3,53,43],[62,20,62,43],[61,3,61,43],[59,10,59,43],[59,5,59,6],[59,8,59,9],[55,5,55,6],[55,8,55,9],[62,7,62,16],[57,3,57,43],[44,27,44,43],[46,25,46,26],[46,27,46,43],[49,2,50,2],[49,3,50,43]]}
[]
[2]
[null,null,"NR KLIENTA (rejestracyjny)",null,null,null,null,null,null,null,null,null,null,null,null,null,null,null,null,null,"→","(Wypełnia TÜV Rheinland Polska)"]
[]
[]
[null,null,null,null,null,null,null,null,null,null,null,null,null,null,null,null,null,null,null,null,null,null,null,null,null,null,null,null,null,null,null,null,null,null,null,null,null,null,null,"Strona 1 z 1"]
[]
[null,null,null,null,null,null,null,null,"ZLECENIE CERTYFIKACJI"]
[]
[]
[]
[]
[]
[]
[]
[]
[null,null,"A","DANE IDENTYFIKACYJNE ZLECAJĄCEGO (dane do faktury)"]
[]
[]
[null,null,null,{"$f":"IF(LEN(AW26)<5,\"\",AW26)","v":""}]
[]
[null,null,null,"imię i nazwisko lub nazwa firmy"]
[]
[null,null,null,{"$f":"IF(LEN(AV34)<5,\"\",CONCATENATE(AW27,\", \",AW28))","v":""}]
[null,null,null,null,null,null,null,null,null,null,null,null,null,null,null,null,null,null,null,null,null,null,null,null,null,null,null,null,null,null,null,null,null,null,null,null,null,null,null,null,null,null,null,null,null,null,"Zgłoszenie"]
[null,null,null,"adres zameldowania",null,null,null,null,null,null,null,null,null,null,null,null,null,null,null,null,null,null,null,null,null,null,null,null,null,null,null,null,null,null,null,null,null,null,null,null,null,null,null,null,null,null,"imię",{"$f":"IF(ZGŁOSZENIE!M18=\"\",\"\",ZGŁOSZENIE!M18)","v":""},{"$f":"TRIM(CONCATENATE(AV26,\" \",AV27,\" \",AV28))","v":""}]
[null,null,null,null,null,null,null,null,null,null,null,null,null,null,null,null,null,null,null,null,null,null,null,null,null,null,null,null,null,null,null,null,null,null,null,null,null,null,null,null,null,null,null,null,null,null,"imię",{"$f":"IF(ZGŁOSZENIE!B20=\"\",\"\",ZGŁOSZENIE!B20)","v":""},{"$f":"TRIM(CONCATENATE(IF(OR(AV33=\"\",AV33=0),CONCATENATE(AV29,\" \",AV30,\" \",AV31,\" \",AV32),CONCATENATE(AV29,\" \",AV30,\" \",AV31,\" \",AV32,\"/\",AV33))))","v":""}]
[null,null,null,{"$f":"IF(OR(AV39=0,AV39=\"\"),\"\",AV39)","v":""},null,null,null,null,null,null,null,null,{"$f":"IF(OR(AV40=0,AV40=\"\"),\"\",AV40)","v":""},null,null,null,null,null,null,null,{"$f":"IF(OR(AV41=0,AV41=\"\"),\"\",AV41)","v":""},null,null,null,null,null,null,null,{"$f":"IF(OR(AV42=0,AV42=\"\"),\"\",AV42)","v":""},null,null,null,null,null,null,null,null,null,null,null,null,null,null,null,null,null,"nazwisko",{"$f":"IF(ZGŁOSZENIE!B18=\"\",\"\",ZGŁOSZENIE!B18)","v":""},{"$f":"TRIM(CONCATENATE(AV34,\" \",AV35))","v":""}]
[null,null,null,null,null,null,null,null,null,null,null,null,null,null,null,null,null,null,null,null,null,null,null,null,null,null,null,null,null,null,null,null,null,null,null,null,null,null,null,null,null,null,null,null,null,null,"miejscowość",{"$f":"IF(ZGŁOSZENIE!J27=\"\",\"\",ZGŁOSZENIE!J27)","v":""}]
[null,null,null,"PESEL",null,null,null,null,null,null,null,null,"NIP",null,null,null,null,null,null,null,"nr ARIMR",null,null,null,null,null,null,null,"telefon",null,null,null,null,null,null,null,null,null,null,null,null,null,null,null,null,null,"ulica",{"$f":"IF(OR(AV31=0,AV31=\"\"),\"\",\"ul.\")","v":""}]
[null,null,null,null,null,null,null,null,null,null,null,null,null,null,null,null,null,null,null,null,null,null,null,null,null,null,null,null,null,null,null,null,null,null,null,null,null,null,null,null,null,null,null,null,null,null,"ulica",{"$f":"IF(ZGŁOSZENIE!O27=\"\",\"\",ZGŁOSZENIE!O27)","v":""}]
[null,null,"B","ZAŁĄCZNIKI",null,null,null,null,null,null,null,null,null,null,null,null,null,null,null,null,null,null,null,null,null,null,null,null,null,null,null,null,null,null,null,null,null,null,null,null,null,null,null,null,null,null,"nr domu",{"$f":"IF(ZGŁOSZENIE!T27=\"\",\"\",ZGŁOSZENIE!T27)","v":""}]
[null,null,null,null,null,null,null,null,null,null,null,null,null,null,null,null,null,null,null,null,null,null,null,null,null,null,null,null,null,null,null,null,null,null,null,null,null,null,null,null,null,null,null,null,null,null,"nr lokalu",{"$f":"IF(ZGŁOSZENIE!V27=\"\",\"\",ZGŁOSZENIE!V27)","v":""}]
[null,null,null,null,null,null,null,null,null,null,null,null,null,null,null,null,null,null,null,null,null,null,null,null,null,null,null,null,null,null,null,null,null,null,null,null,null,null,null,null,null,null,null,null,null,null,"kod pocztowy",{"$f":"IF(ZGŁOSZENIE!B27=\"\",\"\",ZGŁOSZENIE!B27)","v":""}]
[null,null,null,"x","Zgłoszenie działalności",null,null,null,null,null,null,null,null,null,null,null,null,null,null,null,null,null,null,null,{"$f":"IF(SUM(COUNTA(ZGŁOSZENIE!R48:R63),COUNTA(ZGŁOSZENIE!R68:R89),COUNTA(ZGŁOSZENIE!R94:R115),COUNTA(ZGŁOSZENIE!R120:R141),COUNTA(ZGŁOSZENIE!R148:R169),COUNTA(ZGŁOSZENIE!R174:R195)>0),\"x\",\"\")","v":""},"Umowa z podwykonawcą oraz wykaz podwykonawców",null,null,null,null,null,null,null,null,null,null,null,null,null,null,null,null,null,null,null,null,"poczta",{"$f":"IF(ZGŁOSZENIE!E27=\"\",\"\",ZGŁOSZENIE!E27)","v":""}]
[null,null,null,null,null,null,null,null,null,null,null,null,null,null,null,null,null,null,null,null,null,null,null,null,null,null,null,null,null,null,null,null,null,null,null,null,null,null,null,null,null,null,null,null,null,null,"data podpisania ",{"$f":"IF(ZGŁOSZENIE!C202=\"\",\"\",ZGŁOSZENIE!C202)","v":""},{"$f":"IF(AV38=0,\"\",TEXT(CONCATENATE(TEXT(AV36,\"00\"),\"-\",TEXT(AV37,\"00\"),\"-\",AV38),\"dd.mm.rrrr\"))","v":"--"}]
[null,null,null,null,"Pełnomocnictwo",null,null,null,null,null,null,null,null,null,null,null,null,null,null,null,null,null,null,null,null,"Dokumentacja poprzedniej Jednostki certyfikującej",null,null,null,null,null,null,null,null,null,null,null,null,null,null,null,null,null,null,null,null,"data podpisania ",{"$f":"IF(ZGŁOSZENIE!F202=\"\",\"\",ZGŁOSZENIE!F202)","v":""}]
[null,null,null,null,null,null,null,null,null,null,null,null,null,null,null,null,null,null,null,null,null,null,null,null,null,null,null,null,null,null,null,null,null,null,null,null,null,null,null,null,null,null,null,null,null,null,"data podpisania ",{"$f":"IF(ZGŁOSZENIE!I202=\"\",\"\",ZGŁOSZENIE!I202)","v":""}]
[null,null,null,{"$f":"IF(COUNTA('Zał. 1. Obiekty'!D11:K20)>0,\"x\",\"\")","v":""},"Załącznik 1 do zlecenia certyfikacji: Lokalizacja obiektów",null,null,null,null,null,null,null,null,null,null,null,null,null,null,null,null,null,null,null,null,"Inne:",null,null,null,null,null,null,null,null,null,null,null,null,null,null,null,null,null,null,null,null,"Pesel",{"$f":"IF(ZGŁOSZENIE!M20=\"\",\"\",ZGŁOSZENIE!M20)","v":""}]
[null,null,null,null,null,null,null,null,null,null,null,null,null,null,null,null,null,null,null,null,null,null,null,null,null,null,null,null,null,null,null,null,null,null,null,null,null,null,null,null,null,null,null,null,null,null,"NIP",{"$f":"IF(ZGŁOSZENIE!B22=\"\",\"\",ZGŁOSZENIE!B22)","v":""}]
[null,null,null,null,"Załącznik 2 do zlecenia certyfikacji: Lokalizacja działek",null,null,null,null,null,null,null,null,null,null,null,null,null,null,null,null,null,null,null,null,"Inne:",null,null,null,null,null,null,null,null,null,null,null,null,null,null,null,null,null,null,null,null,"ARMIR",{"$f":"IF(ZGŁOSZENIE!K22=\"\",\"\",ZGŁOSZENIE!K22)","v":""}]
[null,null,null,null,null,null,null,null,null,null,null,null,null,null,null,null,null,null,null,null,null,null,null,null,null,null,null,null,null,null,null,null,null,null,null,null,null,null,null,null,null,null,null,null,null,null,"telefon",{"$f":"IF(ZGŁOSZENIE!B29=\"\",\"\",ZGŁOSZENIE!B29)","v":""}]
[null,null,null,{"$f":"IF(COUNTA('OPIS JEDNOSTKI'!C25,'OPIS JEDNOSTKI'!E25,'OPIS JEDNOSTKI'!G25,'OPIS JEDNOSTKI'!C27,'OPIS JEDNOSTKI'!E27,'OPIS JEDNOSTKI'!G27,'OPIS JEDNOSTKI'!C29,'OPIS JEDNOSTKI'!E29,'OPIS JEDNOSTKI'!G29)>0,\"x\",\"\")","v":""},"Opis jednostki/ środki praktyczne",null,null,null,null,null,null,null,null,null,null,null,null,null,null,null,null,null,null,null,null,"Inne:",null,null,null,null,null,null,null,null,null,null,null,null,null,null,null,null,null,null,null,null,"Zał.2"]
[null,null,null,null,null,null,null,null,null,null,null,null,null,null,null,null,null,null,null,null,null,null,null,null,null,null,null,null,null,null,null,null,null,null,null,null,null,null,null,null,null,null,null,null,null,null,"pow.całk",{"$f":"'Zał. 2. Działki'!AC32","v":0}]
[null,null,null,{"$f":"IF(COUNTA('PROGNOZA PRODUKCJI ROŚLINNEJ'!D24:G30)>0,\"x\",\"\")","v":""},"Prognoza produkcji roślinnej/ Wniosek o przyznanie płatności",null,null,null,null,null,null,null,null,null,null,null,null,null,null,null,null,null,null,null,null,"Inne:",null,null,null,null,null,null,null,null,null,null,null,null,null,null,null,null,null,null,null,null,"pow UR",{"$f":"'Zał. 2. Działki'!AC33","v":0}]
[null,null,null,null,null,null,null,null,null,null,null,null,null,null,null,null,null,null,null,null,null,null,null,null,null,null,null,null,null,null,null,null,null,null,null,null,null,null,null,null,null,null,null,null,null,null,"pow UR E",{"$f":"'Zał. 2. Działki'!AC34","v":0}]
[null,null,null,{"$f":"IF(COUNTA('PROGNOZA PRODUKCJI ZWIERZĘCEJ'!D23:I28)>0,\"x\",\"\")","v":""},"Prognoza produkcji zwierzęcej",null,null,null,null,null,null,null,null,null,null,null,null,null,null,null,null,null,null,null,null,"Inne:",null,null,null,null,null,null,null,null,null,null,null,null,null,null,null,null,null,null,null,null,"pow UR K",{"$f":"'Zał. 2. Działki'!AC35","v":0}]
[null,null,null,null,null,null,null,null,null,null,null,null,null,null,null,null,null,null,null,null,null,null,null,null,null,null,null,null,null,null,null,null,null,null,null,null,null,null,null,null,null,null,null,null,null,null,"pow.całk",{"$f":"'Zał. 2. Działki'!AC36","v":0}]
[]
[null,null,"C","WARUNKI UMOWY I PODPIS ZLECAJĄCEGO"]
[]
[]
[null,null,null,"1. Podpisanie zlecenia certyfikacji jest równoznaczne z zaakceptowaniem warunków umowy określonych w Programie certyfikacji (PCRE), kosztów certyfikacji określonych w Cenniku Rolnictwo ekologiczne_wersja 0_01.03.2024 oraz w Ogólnych Warunkach Transakcyjnych stosowanych przez TÜV Rheinland Polska Sp. z o. o. w wersji doręczonej klientowi oraz w chwili podpisania zlecenia dostępnych na stronie www.tuv.com (nawigacja po stronie: Strona główna → Certyfikacja i audytowanie → Systemy i procesy → Żywność i higiena → Bezpieczeństwo żywności → Rolnictwo ekologiczne)."]
[null,null,null,"2. Wyrażam zgodę na przesyłanie drogą elektroniczną (na wskazany w sekcji II lub III Zgłoszenia adres e-mail) dokumentów związanych z procesem certyfikacji (nie dotyczy certyfikatu i faktury, które wysyłane są w wersji papierowej)."]
[]
[null,null,null,null,null,"nie",null,null,"tak"]
[]
[null,null,null,"3. Upoważniam najbliższych członków mojej rodziny (małżonek, rodzeństwo, rodzice, dzieci) do podpisania w moim imieniu i na moją rzecz raportu z kontroli. "]
[]
[null,null,null,null,null,"nie",null,null,"tak:"]
[]
[null,null,null,"Oświadczam, iż przed podpisaniem zlecenia certyfikacji doręczono mi aktualną wersję Programu Certyfikacji (PCRE) oraz Ogólnych Warunków Transakcyjnych stosowanych przez TÜV Rheinland Polska Sp. z o. o., zapoznałem się z ich postanowieniami i akceptuje je w całości. Ponadto wyrażam zgodę na udostępnienie danych doradcy (konsultanta) celem właściwej realizacji usługi."]
[null,null,null,null,null,null,null,null,null,null,null,null,null,null,null,null,null,null,null,null,{"$f":"TEXT(AW36,\"dd.mm.rrrr\")","v":"--"}]
[null,null,null,null,null,null,null,null,null,null,null,null,null,null,null,null,null,null,null,null,"Data i czytelny podpis zlecającego lub osoby upoważnionej odrębnym pełnomocnictwem"]
[null,null,null,"Dane kontaktowe: TÜV Rheinland Polska Sp. z o.o; ul. Wielicka 250; 30-663 Kraków (tel. 12 340 94 37; ekologia@pl.tuv.com)"]
[]
[null,null,null,"Dane doradcy (konsultanta):",null,null,null,null,null,null,null,null,null,null,null,null,null,null,null,null,null,null,null,null,null,null,null,null,"Telefon kontaktowy:"]
[]
[null,null,"POTWIERDZENIE ZŁOŻENIA ZLECENIA CERTYFIKACJI I ZAWARCIE UMOWY  (Wypełnia TÜV Rheinland Polska)"]
[]
[]
[]
[]
[]
[]
[null,null,null,"Data zawarcia umowy oraz data objęcia systemem kontroli urzędowej",null,null,null,null,null,null,null,null,null,null,"Numer rejestracyjny",null,null,null,null,null,null,null,null,null,null,"Podpis osoby weryfikującej \nzlecenie\n",null,null,null,null,null,null,null,null,null,null,"Podpis osoby odpowiedzialnej \nza umowę"]
[]
[]
[null,null,"Koszt certyfikacji: ................................................................ PLN wyliczony na podstawie: \n \u009f Zgłoszenie działalności  \u009f\u009f Załącznik 2 do zlecenia certyfikacji: Lokalizacja działek  \u009f Kalkulacja kosztów  \u009f Opis jednostki  \u009f brak danych do wyliczenia kosztów certyfikacji na etapie zawarcia umowy \u009f inne: \n"]
[null,null," "]
[null,null,"F01 do MS-0046527 Zlecenie certyfikacji, wersja 3, obowiązuje od 15.04.2024 r."]
[]
[null,"Kategoria działalności","podkategoria",null,"złączone pośrednie","złącze główne"]
[null,"PRODUKCJA","Nieprzetworzone rośliny i produkty roślinne",{"$f":"IF(OR(ZGŁOSZENIE!O48=\"x\",ZGŁOSZENIE!R48=\"x\",ZGŁOSZENIE!U48=\"x\"),\"x\",\"\")","v":""},{"$f":"TRIM(IF(OR(D84=\"x\",D85=\"x\",D86=\"x\",D87=\"x\",D88=\"x\",D89=\"x\"),CONCATENATE($B$84,\" - w zakresie:\",CHAR(10),IF(D84=\"x\",CONCATENATE(CHAR(149),C84,CHAR(10)),\"\"),IF(D85=\"x\",CONCATENATE(CHAR(149),C85,CHAR(10)),\"\"),IF(D86=\"x\",CONCATENATE(CHAR(149),C86,CHAR(10)),\"\"),IF(D87=\"x\",CONCATENATE(CHAR(149),C87,CHAR(10)),\"\"),IF(D88=\"x\",CONCATENATE(CHAR(149),C88,CHAR(10)),\"\"),IF(D89=\"x\",CONCATENATE(CHAR(149),C89,CHAR(10),CHAR(10)),\"\")),\"\"))","v":""},{"$f":"TRIM(CONCATENATE(E84,E90,E98,E106,E114,E122))","v":""}]
[null,"PRODUKCJA","Nasiona i inny materiał przeznaczony do reprodukcji roślin",{"$f":"IF(OR(ZGŁOSZENIE!O51=\"x\",ZGŁOSZENIE!R51=\"x\",ZGŁOSZENIE!U51=\"x\"),\"x\",\"\")","v":""}," "]
[null,"PRODUKCJA","Pasze ",{"$f":"IF(OR(ZGŁOSZENIE!O54=\"x\",ZGŁOSZENIE!R54=\"x\",ZGŁOSZENIE!U54=\"x\"),\"x\",\"\")","v":""}," ",null,{"$f":"IF(OR(D84=\"x\",D85=\"x\",D86=\"x\",D87=\"x\",D88=\"x\",D89),\"ok\",\"nie\")","v":"nie"}]
[null,"PRODUKCJA","Zwierzęta gospodarskie i nieprzetworzone produkty zwierzęce",{"$f":"IF(OR(ZGŁOSZENIE!O57=\"x\",ZGŁOSZENIE!R57=\"x\",ZGŁOSZENIE!U57=\"x\"),\"x\",\"\")","v":""}," "]
[null,"PRODUKCJA","Algi i nieprzetworzone produkty z akwakultury",{"$f":"IF(OR(ZGŁOSZENIE!O60=\"x\",ZGŁOSZENIE!R60=\"x\",ZGŁOSZENIE!U60=\"x\"),\"x\",\"\")","v":""}," "]
[null,"PRODUKCJA","Inne produkty wymienione w załączniku I do rozporządzenia 2018/848 lub nieobjęte poprzednimi kategoriami",{"$f":"IF(OR(ZGŁOSZENIE!O63=\"x\",ZGŁOSZENIE!R63=\"x\",ZGŁOSZENIE!U63=\"x\"),\"x\",\"\")","v":""}," "]
[null,"PRZYGOTOWANIE","Nieprzetworzone rośliny i produkty roślinne",{"$f":"IF(OR(ZGŁOSZENIE!O68=\"x\",ZGŁOSZENIE!R68=\"x\",ZGŁOSZENIE!S68=\"x\"),\"x\",\"\")","v":""},{"$f":"TRIM(IF(OR(D90=\"x\",D91=\"x\",D92=\"x\",D93=\"x\",D94=\"x\",D95=\"x\",D96=\"x\",D97=\"x\"),CONCATENATE($B$90,\" - w zakresie:\",CHAR(10),IF(D90=\"x\",CONCATENATE(CHAR(149),C90,CHAR(10)),\"\"),IF(D91=\"x\",CONCATENATE(CHAR(149),C91,CHAR(10)),\"\"),IF(D92=\"x\",CONCATENATE(CHAR(149),C92,CHAR(10)),\"\"),IF(D93=\"x\",CONCATENATE(CHAR(149),C93,CHAR(10)),\"\"),IF(D94=\"x\",CONCATENATE(CHAR(149),C94,CHAR(10)),\"\"),IF(D95=\"x\",CONCATENATE(CHAR(149),C95,CHAR(10)),\"\"),IF(D96=\"x\",CONCATENATE(CHAR(149),C96,CHAR(10)),\"\"),IF(D97=\"x\",CONCATENATE(CHAR(149),C97,CHAR(10),CHAR(10)),\"\")),\"\"))","v":""}]
[null,"PRZYGOTOWANIE","Nasiona i inny materiał przeznaczony do reprodukcji roślin",{"$f":"IF(OR(ZGŁOSZENIE!O71=\"x\",ZGŁOSZENIE!R71=\"x\",ZGŁOSZENIE!S71=\"x\"),\"x\",\"\")","v":""}]
[null,"PRZYGOTOWANIE","Zwierzęta gospodarskie i nieprzetworzone produkty zwierzęce",{"$f":"IF(OR(ZGŁOSZENIE!O74=\"x\",ZGŁOSZENIE!R74=\"x\",ZGŁOSZENIE!S74=\"x\"),\"x\",\"\")","v":""}]
[null,"PRZYGOTOWANIE","Algi i nieprzetworzone produkty z akwakultury",{"$f":"IF(OR(ZGŁOSZENIE!O77=\"x\",ZGŁOSZENIE!R77=\"x\",ZGŁOSZENIE!S77=\"x\"),\"x\",\"\")","v":""}]
[null,"PRZYGOTOWANIE","Przetworzone produkty rolne, w tym produkty akwakultury do wykorzystania jako żywność",{"$f":"IF(OR(ZGŁOSZENIE!O80=\"x\",ZGŁOSZENIE!R80=\"x\",ZGŁOSZENIE!S80=\"x\"),\"x\",\"\")","v":""}]
[null,"PRZYGOTOWANIE","Pasze",{"$f":"IF(OR(ZGŁOSZENIE!O83=\"x\",ZGŁOSZENIE!R83=\"x\",ZGŁOSZENIE!S83=\"x\"),\"x\",\"\")","v":""}]
[null,"PRZYGOTOWANIE","Wino",{"$f":"IF(OR(ZGŁOSZENIE!O86=\"x\",ZGŁOSZENIE!R86=\"x\",ZGŁOSZENIE!S86=\"x\"),\"x\",\"\")","v":""}]
[null,"PRZYGOTOWANIE","Inne produkty wymienione w załączniku I do rozporządzenia 2018/848 lub nieobjęte poprzednimi kategoriami",{"$f":"IF(OR(ZGŁOSZENIE!O89=\"x\",ZGŁOSZENIE!R89=\"x\",ZGŁOSZENIE!S89=\"x\"),\"x\",\"\")","v":""}]
[null,"DYSTRYBUCJA/WPROWADZANIE DO OBROTU","Nieprzetworzone rośliny i produkty roślinne",{"$f":"IF(OR(ZGŁOSZENIE!O94=\"x\",ZGŁOSZENIE!R94=\"x\",ZGŁOSZENIE!S94=\"x\"),\"x\",\"\")","v":""},{"$f":"TRIM(IF(OR(D98=\"x\",D99=\"x\",D100=\"x\",D101=\"x\",D102=\"x\",D103=\"x\",D104=\"x\",D105=\"x\"),CONCATENATE($B$98,\" - w zakresie:\",CHAR(10),IF(D98=\"x\",CONCATENATE(CHAR(149),C98,CHAR(10)),\"\"),IF(D99=\"x\",CONCATENATE(CHAR(149),C99,CHAR(10)),\"\"),IF(D100=\"x\",CONCATENATE(CHAR(149),C100,CHAR(10)),\"\"),IF(D101=\"x\",CONCATENATE(CHAR(149),C101,CHAR(10)),\"\"),IF(D102=\"x\",CONCATENATE(CHAR(149),C102,CHAR(10)),\"\"),IF(D103=\"x\",CONCATENATE(CHAR(149),C103,CHAR(10)),\"\"),IF(D104=\"x\",CONCATENATE(CHAR(149),C104,CHAR(10)),\"\"),IF(D105=\"x\",CONCATENATE(CHAR(149),C105,CHAR(10),CHAR(10)),\"\")),\"\"))","v":""}]
[null,"DYSTRYBUCJA/WPROWADZANIE DO OBROTU","Nasiona i inny materiał przeznaczony do reprodukcji roślin",{"$f":"IF(OR(ZGŁOSZENIE!O97=\"x\",ZGŁOSZENIE!R97=\"x\",ZGŁOSZENIE!S97=\"x\"),\"x\",\"\")","v":""}]
[null,"DYSTRYBUCJA/WPROWADZANIE DO OBROTU","Zwierzęta gospodarskie i nieprzetworzone produkty zwierzęce",{"$f":"IF(OR(ZGŁOSZENIE!O100=\"x\",ZGŁOSZENIE!R100=\"x\",ZGŁOSZENIE!S100=\"x\"),\"x\",\"\")","v":""}]
[null,"DYSTRYBUCJA/WPROWADZANIE DO OBROTU","Algi i nieprzetworzone produkty z akwakultury",{"$f":"IF(OR(ZGŁOSZENIE!O103=\"x\",ZGŁOSZENIE!R103=\"x\",ZGŁOSZENIE!S103=\"x\"),\"x\",\"\")","v":""}]
[null,"DYSTRYBUCJA/WPROWADZANIE DO OBROTU","Przetworzone produkty rolne, w tym produkty akwakultury do wykorzystania jako żywność",{"$f":"IF(OR(ZGŁOSZENIE!O106=\"x\",ZGŁOSZENIE!R106=\"x\",ZGŁOSZENIE!S106=\"x\"),\"x\",\"\")","v":""}]
[null,"DYSTRYBUCJA/WPROWADZANIE DO OBROTU","Pasze",{"$f":"IF(OR(ZGŁOSZENIE!O109=\"x\",ZGŁOSZENIE!R109=\"x\",ZGŁOSZENIE!S109=\"x\"),\"x\",\"\")","v":""}]
[null,"DYSTRYBUCJA/WPROWADZANIE DO OBROTU","Wino",{"$f":"IF(OR(ZGŁOSZENIE!O112=\"x\",ZGŁOSZENIE!R112=\"x\",ZGŁOSZENIE!S112=\"x\"),\"x\",\"\")","v":""}]
[null,"DYSTRYBUCJA/WPROWADZANIE DO OBROTU","Inne produkty wymienione w załączniku I do rozporządzenia 2018/848 lub nieobjęte poprzednimi kategoriami",{"$f":"IF(OR(ZGŁOSZENIE!O115=\"x\",ZGŁOSZENIE!R115=\"x\",ZGŁOSZENIE!S115=\"x\"),\"x\",\"\")","v":""}]
[null,"PRZECHOWYWANIE","Nieprzetworzone rośliny i produkty roślinne",{"$f":"IF(OR(ZGŁOSZENIE!O120=\"x\",ZGŁOSZENIE!R120=\"x\",ZGŁOSZENIE!S120=\"x\"),\"x\",\"\")","v":""},{"$f":"TRIM(IF(OR(D106=\"x\",D107=\"x\",D108=\"x\",D109=\"x\",D110=\"x\",D111=\"x\",D112=\"x\",D113=\"x\"),CONCATENATE($B$106,\" - w zakresie:\",CHAR(10),IF(D106=\"x\",CONCATENATE(CHAR(149),C106,CHAR(10)),\"\"),IF(D107=\"x\",CONCATENATE(CHAR(149),C107,CHAR(10)),\"\"),IF(D108=\"x\",CONCATENATE(CHAR(149),C108,CHAR(10)),\"\"),IF(D109=\"x\",CONCATENATE(CHAR(149),C109,CHAR(10)),\"\"),IF(D110=\"x\",CONCATENATE(CHAR(149),C110,CHAR(10)),\"\"),IF(D111=\"x\",CONCATENATE(CHAR(149),C111,CHAR(10)),\"\"),IF(D112=\"x\",CONCATENATE(CHAR(149),C112,CHAR(10)),\"\"),IF(D113=\"x\",CONCATENATE(CHAR(149),C113,CHAR(10),CHAR(10)),\"\")),\"\"))","v":""}]
[null,"PRZECHOWYWANIE","Nasiona i inny materiał przeznaczony do reprodukcji roślin",{"$f":"IF(OR(ZGŁOSZENIE!O123=\"x\",ZGŁOSZENIE!R123=\"x\",ZGŁOSZENIE!S123=\"x\"),\"x\",\"\")","v":""}]
[null,"PRZECHOWYWANIE","Zwierzęta gospodarskie i nieprzetworzone produkty zwierzęce",{"$f":"IF(OR(ZGŁOSZENIE!O126=\"x\",ZGŁOSZENIE!R126=\"x\",ZGŁOSZENIE!S126=\"x\"),\"x\",\"\")","v":""}]
[null,"PRZECHOWYWANIE","Algi i nieprzetworzone produkty z akwakultury",{"$f":"IF(OR(ZGŁOSZENIE!O129=\"x\",ZGŁOSZENIE!R129=\"x\",ZGŁOSZENIE!S129=\"x\"),\"x\",\"\")","v":""}]
[null,"PRZECHOWYWANIE","Przetworzone produkty rolne, w tym produkty akwakultury do wykorzystania jako żywność",{"$f":"IF(OR(ZGŁOSZENIE!O132=\"x\",ZGŁOSZENIE!R132=\"x\",ZGŁOSZENIE!S132=\"x\"),\"x\",\"\")","v":""}]
[null,"PRZECHOWYWANIE","Pasze",{"$f":"IF(OR(ZGŁOSZENIE!O135=\"x\",ZGŁOSZENIE!R135=\"x\",ZGŁOSZENIE!S135=\"x\"),\"x\",\"\")","v":""}]
[null,"PRZECHOWYWANIE","Wino",{"$f":"IF(OR(ZGŁOSZENIE!O138=\"x\",ZGŁOSZENIE!R138=\"x\",ZGŁOSZENIE!S138=\"x\"),\"x\",\"\")","v":""}]
[null,"PRZECHOWYWANIE","Inne produkty wymienione w załączniku I do rozporządzenia 2018/848 lub nieobjęte poprzednimi kategoriami",{"$f":"IF(OR(ZGŁOSZENIE!O141=\"x\",ZGŁOSZENIE!R141=\"x\",ZGŁOSZENIE!S141=\"x\"),\"x\",\"\")","v":""}]
[null,"IMPORT","Nieprzetworzone rośliny i produkty roślinne",{"$f":"IF(OR(ZGŁOSZENIE!O148=\"x\",ZGŁOSZENIE!R148=\"x\",ZGŁOSZENIE!S148=\"x\"),\"x\",\"\")","v":""},{"$f":"TRIM(IF(OR(D114=\"x\",D115=\"x\",D116=\"x\",D117=\"x\",D118=\"x\",D119=\"x\",D120=\"x\",D121=\"x\"),CONCATENATE($B$114,\" - w zakresie:\",CHAR(10),IF(D114=\"x\",CONCATENATE(CHAR(149),C114,CHAR(10)),\"\"),IF(D115=\"x\",CONCATENATE(CHAR(149),C115,CHAR(10)),\"\"),IF(D116=\"x\",CONCATENATE(CHAR(149),C116,CHAR(10)),\"\"),IF(D117=\"x\",CONCATENATE(CHAR(149),C117,CHAR(10)),\"\"),IF(D118=\"x\",CONCATENATE(CHAR(149),C118,CHAR(10)),\"\"),IF(D119=\"x\",CONCATENATE(CHAR(149),C119,CHAR(10)),\"\"),IF(D120=\"x\",CONCATENATE(CHAR(149),C120,CHAR(10)),\"\"),IF(D121=\"x\",CONCATENATE(CHAR(149),C121,CHAR(10),CHAR(10)),\"\")),\"\"))","v":""}]
[null,"IMPORT","Nasiona i inny materiał przeznaczony do reprodukcji roślin",{"$f":"IF(OR(ZGŁOSZENIE!O151=\"x\",ZGŁOSZENIE!R151=\"x\",ZGŁOSZENIE!S151=\"x\"),\"x\",\"\")","v":""}]
[null,"IMPORT","Zwierzęta gospodarskie i nieprzetworzone produkty zwierzęce",{"$f":"IF(OR(ZGŁOSZENIE!O154=\"x\",ZGŁOSZENIE!R154=\"x\",ZGŁOSZENIE!S154=\"x\"),\"x\",\"\")","v":""}]
[null,"IMPORT","Algi i nieprzetworzone produkty z akwakultury",{"$f":"IF(OR(ZGŁOSZENIE!O157=\"x\",ZGŁOSZENIE!R157=\"x\",ZGŁOSZENIE!S157=\"x\"),\"x\",\"\")","v":""}]
[null,"IMPORT","Przetworzone produkty rolne, w tym produkty akwakultury do wykorzystania jako żywność",{"$f":"IF(OR(ZGŁOSZENIE!O160=\"x\",ZGŁOSZENIE!R160=\"x\",ZGŁOSZENIE!S160=\"x\"),\"x\",\"\")","v":""}]
[null,"IMPORT","Pasze",{"$f":"IF(OR(ZGŁOSZENIE!O163=\"x\",ZGŁOSZENIE!R163=\"x\",ZGŁOSZENIE!S163=\"x\"),\"x\",\"\")","v":""}]
[null,"IMPORT","Wino",{"$f":"IF(OR(ZGŁOSZENIE!O166=\"x\",ZGŁOSZENIE!R166=\"x\",ZGŁOSZENIE!S166=\"x\"),\"x\",\"\")","v":""}]
[null,"IMPORT","Inne produkty wymienione w załączniku I do rozporządzenia 2018/848 lub nieobjęte poprzednimi kategoriami",{"$f":"IF(OR(ZGŁOSZENIE!O169=\"x\",ZGŁOSZENIE!R169=\"x\",ZGŁOSZENIE!S169=\"x\"),\"x\",\"\")","v":""}]
[null,"EKSPORT","Nieprzetworzone rośliny i produkty roślinne",{"$f":"IF(OR(ZGŁOSZENIE!O174=\"x\",ZGŁOSZENIE!R174=\"x\",ZGŁOSZENIE!S174=\"x\"),\"x\",\"\")","v":""},{"$f":"TRIM(IF(OR(D122=\"x\",D123=\"x\",D124=\"x\",D125=\"x\",D126=\"x\",D127=\"x\",D128=\"x\",D129=\"x\"),CONCATENATE($B$122,\" - w zakresie:\",CHAR(10),IF(D122=\"x\",CONCATENATE(CHAR(149),C122,CHAR(10)),\"\"),IF(D123=\"x\",CONCATENATE(CHAR(149),C123,CHAR(10)),\"\"),IF(D124=\"x\",CONCATENATE(CHAR(149),C124,CHAR(10)),\"\"),IF(D125=\"x\",CONCATENATE(CHAR(149),C125,CHAR(10)),\"\"),IF(D126=\"x\",CONCATENATE(CHAR(149),C126,CHAR(10)),\"\"),IF(D127=\"x\",CONCATENATE(CHAR(149),C127,CHAR(10)),\"\"),IF(D128=\"x\",CONCATENATE(CHAR(149),C128,CHAR(10)),\"\"),IF(D129=\"x\",CONCATENATE(CHAR(149),C129,CHAR(10)),\"\")),\"\"))","v":""}]
[null,"EKSPORT","Nasiona i inny materiał przeznaczony do reprodukcji roślin",{"$f":"IF(OR(ZGŁOSZENIE!O175=\"x\",ZGŁOSZENIE!R175=\"x\",ZGŁOSZENIE!S175=\"x\"),\"x\",\"\")","v":""}]
[null,"EKSPORT","Zwierzęta gospodarskie i nieprzetworzone produkty zwierzęce",{"$f":"IF(OR(ZGŁOSZENIE!O180=\"x\",ZGŁOSZENIE!R180=\"x\",ZGŁOSZENIE!S180=\"x\"),\"x\",\"\")","v":""}]
[null,"EKSPORT","Algi i nieprzetworzone produkty z akwakultury",{"$f":"IF(OR(ZGŁOSZENIE!O183=\"x\",ZGŁOSZENIE!R183=\"x\",ZGŁOSZENIE!S183=\"x\"),\"x\",\"\")","v":""}]
[null,"EKSPORT","Przetworzone produkty rolne, w tym produkty akwakultury do wykorzystania jako żywność",{"$f":"IF(OR(ZGŁOSZENIE!O186=\"x\",ZGŁOSZENIE!R186=\"x\",ZGŁOSZENIE!S186=\"x\"),\"x\",\"\")","v":""}]
[null,"EKSPORT","Pasze",{"$f":"IF(OR(ZGŁOSZENIE!O189=\"x\",ZGŁOSZENIE!R189=\"x\",ZGŁOSZENIE!S189=\"x\"),\"x\",\"\")","v":""}]
[null,"EKSPORT","Wino",{"$f":"IF(OR(ZGŁOSZENIE!O192=\"x\",ZGŁOSZENIE!R192=\"x\",ZGŁOSZENIE!S192=\"x\"),\"x\",\"\")","v":""}]
[null,"EKSPORT","Inne produkty wymienione w załączniku I do rozporządzenia 2018/848 lub nieobjęte poprzednimi kategoriami",{"$f":"IF(OR(ZGŁOSZENIE!O195=\"x\",ZGŁOSZENIE!R195=\"x\",ZGŁOSZENIE!S195=\"x\"),\"x\",\"\")","v":""}]
[]
[]
[null,null,"Cennik [Cennik Rolnictwo ekologiczne_wersja 0_01.03.2024] - fragment dla rolników"]
[null,null,"Kategoria działalności: Produkcja \n1. Kategoria produktów: Nieprzetworzone rośliny i produkty roślinne, Nasiona i inny materiał przeznaczony do reprodukcji roślin, Pasze\n1.1. Powierzchnia gospodarstwa:\n1.1.1. poniżej 5,00 ha UR - 900,00 PLN\n1.1.2. 5,01 - 10,00 ha UR – 1250,00 PLN\n1.1.3. 10,01 - 20,00 ha UR – 1350,00 PLN\n1.1.4. 20,01 - 50,00 ha UR – 1500,00 PLN\n1.1.5. 50,01 - 100,00 ha UR – 1750,00 PLN\n1.1.6. 100,01 - 200,00 ha UR – 2400,00 PLN\n1.1.7. 200,01 - 500,00 ha UR – 3000,00 PLN\n1.1.8. powyżej 500,01 ha UR – 4300,00 PLN\n1.2. Rozproszenie działek lub obiektów powyżej 100 km – 200,00 PLN\n1.3. Uprawa pod osłonami (obiekty np.: tunel/hala/szklarnia, + każdy kolejny obiekt użytkowany ekologicznie: 150,00 PLN; + każdy kolejny obiekt użytkowany konwencjonalnie: 50,00PLN) - 1700,00 PLN\n2. Podkategoria produktów: Zbiór dziko rosnących roślin. 2.1. Zbiór dziko rosnących roślin: 1 punkt skupu (+ każdy kolejny punkt skupu: 800,00 PLN) – 1350,00 PLN + delegacja \n3. Kategoria produktów: Zwierzęta gospodarskie i nieprzetworzone produkty pochodzenia zwierzęcego\n3.1. Produkcja ekologiczna - 400,00 PLN \n4. Podkategoria produktów: Pszczoły 4.1. Pasieka wędrowna (+ każde kolejne miejsce stacjonowania pasieki: 150,00 PLN) - 1350,00 + delegacja 4.2. Pasieka stacjonarna ≤ 30 uli (+ każde kolejne 10 uli: 100,00 PLN) 1350,00 + delegacja \n"]

{"sheet":"OPIS JEDNOSTKI","index":5,"n_rows":140,"n_cols":45,"rows_kept":140,"cut":false,"hidden":false,"merged":[[139,2,139,6],[13,44,87,44],[133,2,133,43],[134,2,134,43],[131,2,131,10],[131,11,131,43],[130,2,130,10],[130,11,130,43],[132,2,132,43],[126,11,126,43],[127,2,127,10],[127,11,127,43],[128,2,128,10],[128,11,128,43],[126,2,126,10],[129,2,129,10],[129,11,129,43],[125,2,125,43],[80,2,87,43],[112,2,118,43],[2,2,2,38],[3,2,3,43],[7,2,10,43],[6,2,6,43],[13,2,14,43],[15,2,21,43],[22,2,23,2],[98,2,111,43],[122,2,122,43],[119,7,119,16],[119,20,119,43],[120,20,120,43],[32,2,79,43],[120,44,121,44],[22,4,23,4],[22,5,23,7],[30,2,31,43],[89,2,90,43],[91,2,97,43],[24,8,24,43],[26,8,26,43],[28,8,28,43]]}
[]
[]
[]
[null,null,"Środki praktyczne \n(opis jednostki)\nPRODUKCJA"]
[]
[]
[null,null,"DANE OSOBOWE"]
[null,null,{"$f":"'PROGNOZA PRODUKCJI ROŚLINNEJ'!C9","v":"; "}]
[]
[]
[]
[]
[]
[null,null,"ŚRODKI OSTROŻNOŚCI",null,null,null,null,null,null,null,null,null,null,null,null,null,null,null,null,null,null,null,null,null,null,null,null,null,null,null,null,null,null,null,null,null,null,null,null,null,null,null,null,null,{"$f":"CONCATENATE(C140,\" \",'Zał. 2. Działki'!W42)","v":"Kategorie produktów: Sąsiedztwo działki: "}]
[]
[null,null,"Środki ostrożności, które mają być podejmowane na etapie produkcji w celu zapobieżenia zanieczyszczeniu produktami lub substancjami, które nie są dopuszczone do stosowania w produkcji ekologicznej zgodnie z rozporządzeniem 848/2018 oraz w celu zapobieżenia pomieszaniu produktów ekologicznych z nieekologicznymi (Należy zidentyfikować punkty krytyczne, ocenić ryzyko oraz wprowadzić stosowane środki (punkty krytyczne oraz środki należy regularnie przeglądać i dostosowywać do prowadzonej kategori działalności):"]
[]
[]
[]
[]
[]
[]
[null,null,"tak",null,"nie","niewiem"]
[]
[null,null,null,null,null,null,null,null,"Czy planowany jest zakup materiału rozmnożeniowego (nasion) lub pasz (ad. 2)?"]
[]
[null,null,null,null,null,null,null,null,"Czy planowane jest użycie nawozów i środków ochrony roślin dozwolonych w produkcji ekologicznej (ad. 3)?"]
[]
[null,null,null,null,null,null,null,null,"Czy planowane jest wprowadzanie na rynek produktów ekologicznych lub produktów w okresie konwersji (ad. 5)?"]
[]
[null,null,"Identyfikacja punktów krytycznych, ocena ryzyka oraz środki:"]
[]
[null,null,{"$f":"IF(AND(C25=\"\",E25=\"\",G25=\"\",C27=\"\",E27=\"\",G27=\"\",C29=\"\",E29=\"\",G29=\"\"),\"Uzupełnij środki ostrożności:\",\nCONCATENATE(C127,CHAR(10),L127,\nIF(OR(OR(C25<>\"\",G25<>\"\"),AND(C25=\"\",E25=\"\",G25=\"\")),CONCATENATE(CHAR(10),CHAR(10),C128,CHAR(10),L128),CONCATENATE(CHAR(10),CHAR(10),C128,\" Ryzyko niskie: nie dotyczy\")),\nIF(OR(OR(C27<>\"\",G27<>\"\"),AND(C27=\"\",E27=\"\",G27=\"\")),CONCATENATE(CHAR(10),CHAR(10),C129,CHAR(10),L129),CONCATENATE(CHAR(10),CHAR(10),C129,\" Ryzyko niskie: nie dotyczy\")),CHAR(10),CHAR(10),\nC130,CHAR(10),L130,\nIF(OR(OR(C29<>\"\",G29<>\"\"),AND(C29=\"\",E29=\"\",G29=\"\")),CONCATENATE(CHAR(10),CHAR(10),C131,CHAR(10),L131),CONCATENATE(CHAR(10),CHAR(10),C131,\" Ryzyko niskie: nie dotyczy\")),CHAR(10),CHAR(10),\nC132,CHAR(10),L132))","v":"Uzupełnij środki ostrożności:"}]
[]
[]
[]
[]
[]
[]
[]
[]
[]
[]
[]
[]
[]
[]
[]
[]
[]
[]
[]
[]
[]
[]
[]
[]
[]
[]
[]
[]
[]
[]
[]
[]
[]
[]
[]
[]
[]
[]
[]
[]
[]
[]
[]
[]
[]
[]
[]
[null,null,"Inne:"]
[]
[]
[]
[]
[]
[]
[]
[]
[null,null,"ŚRODKI ZAPOBIEGAWCZE"]
[]
[null,null,"Środki które mają być podejmowane na każdym etapie produkcji w celu zapewnienia ochrony różnorodności biologicznej oraz jakości gleby, środki zapobiegające szkodnikom i chorobom oraz kontroli nad nimi oraz środki, które mają być podejmowane w celu uniknięcia negatywnych skutków dla środowiska oraz zdrowia zwierząt i roślin"]
[]
[]
[]
[]
[]
[]
[null,null,{"$f":"IF(COUNTA(C25:G29)>0,IF(ZGŁOSZENIE!O57<>\"\",CONCATENATE('OPIS JEDNOSTKI'!C134,CHAR(10),'OPIS JEDNOSTKI'!C135),'OPIS JEDNOSTKI'!C134),\"Uzupełnij środki zapobiegawcze\")","v":"Uzupełnij środki zapobiegawcze"}]
[]
[]
[]
[]
[]
[]
[]
[]
[]
[]
[]
[]
[]
[null,null,"Inne:"]
[]
[]
[]
[]
[]
[]
[null,null,null,null,null,null,null,null,null,null,null,null,null,null,null,null,null,null,null,null,{"$f":"'ZLECENIE CERTYFIKACJI'!U63:AR63","v":"--"}]
[null,null,null,null,null,null,null,null,null,null,null,null,null,null,null,null,null,null,null,null,"Data i czytelny podpis zlecającego lub osoby upoważnionej odrębnym pełnomocnictwem"]
[]
[]
[]
[]
[null,null,"ŚRODKI OSTROŻNOŚCI"]
[null,null,"1. Sądziedztwo działek ekologicznych z uprawami wymagającymi stosowania środków ochrony roślin:",null,null,null,null,null,null,null,null,{"$f":"'Zał. 2. Działki'!Y38","v":"Ryzyko niskie: Sąsiedztwo działek ekologicznych z uprawami które nie wymagają stosowania środków ochrony roślin."}]
[null,null,"2. Zakup środków do produkcji (materiał rozmnożeniowy roślin (nasiona), pasze):",null,null,null,null,null,null,null,null,"Ryzyko wysokie: Czyszczenie środka transportu przed załadunkiem jesli za transport odpowiada kupujący. Czyszczenie magazynu przed składowaniem. Kontrola zamknięcia opakowań lub pojemników w przypadku gdy jest to wymagane oraz kontrola etykiety produktu z certyfikatem. Weryfikacja certyfikatu na stronie internetowej Jednostki wystawiającej certyfikat. Prowadzenie zapisów w Rejestrze zakupu środków do produkcji."]
[null,null,"3. Użycie nawozów i środków ochrony roślin dozwolonych w produkcji ekologicznej:",null,null,null,null,null,null,null,null,"Ryzyko wysokie: Użycie tylko w koniecznym zakresie lub w przypadku stwierdzonego zagrożenia dla uprawy - wyłącznie nawozów lub środków ochrony roślin dopuszczonych do stosowania w produkcji ekologicznej. Czyszczenie maszyny przed zastosowaniem dozwolonego nawozu lub środka ochrony roślin. Kalibracja opryskiwacza. Prowadzenie zapisów w Rejestrze użycia nawozów i środków ochrony roślin."]
[null,null,"4. Zbiór produktów ekologicznych lub produktów w okresie konwersji:",null,null,null,null,null,null,null,null,"Ryzyko wysokie: Czyszczenie maszyny przed zbiorem. Czyszczenie magazynu przed składowaniem. Prowadzenie zapisów w Rejestrze zbiorów (produkcji)."]
[null,null,"5. Wprowadzanie na rynek produktów ekologicznych lub w okresie konwersji:",null,null,null,null,null,null,null,null,{"$f":"CONCATENATE(IF(OR(AND(ZGŁOSZENIE!O48<>\"\",ZGŁOSZENIE!U48<>\"\"),AND(ZGŁOSZENIE!O51<>\"\",ZGŁOSZENIE!U51<>\"\"),AND(ZGŁOSZENIE!O54<>\"\",ZGŁOSZENIE!U54<>\"\"),AND(ZGŁOSZENIE!O57<>\"\",ZGŁOSZENIE!U57<>\"\")),\"Ryzyko wysokie: \",IF(AND(ZGŁOSZENIE!U48=\"\",ZGŁOSZENIE!U51=\"\",ZGŁOSZENIE!U54=\"\",ZGŁOSZENIE!U57=\"\"),\"Ryzyko niskie: \",\"Ryzyko średnie: \")),\" Czyszczenie środka transportu przed załadunkiem jeśli za transport odpowiada sprzedający. Prowadzenie zapisów w Rejestrze odbiorców/nabywców produktów wprowadzanych na rynek.\")","v":"Ryzyko niskie:  Czyszczenie środka transportu przed załadunkiem jeśli za transport odpowiada sprzedający. Prowadzenie zapisów w Rejestrze odbiorców/nabywców produktów wprowadzanych na rynek."}]
[null,null,"6. Identyfikowalność:",null,null,null,null,null,null,null,null,{"$f":"CONCATENATE(IF(OR(AND(ZGŁOSZENIE!O48<>\"\",ZGŁOSZENIE!U48<>\"\"),AND(ZGŁOSZENIE!O51<>\"\",ZGŁOSZENIE!U51<>\"\"),AND(ZGŁOSZENIE!O54<>\"\",ZGŁOSZENIE!U54<>\"\"),AND(ZGŁOSZENIE!O57<>\"\",ZGŁOSZENIE!U57<>\"\")),\"Ryzyko wysokie: \",IF(AND(ZGŁOSZENIE!U48=\"\",ZGŁOSZENIE!U51=\"\",ZGŁOSZENIE!U54=\"\",ZGŁOSZENIE!U57=\"\"),\"Ryzyko niskie: \",\"Ryzyko średnie: \")),IF(ZGŁOSZENIE!O57<>\"\",\"Prowadzenie zapisów wymaganych w rejestrze produkcji roślinnej i zwierzęcej.\",\"Prowadzenie zapisów wymaganych w rejestrze produkcji roślinnej.\"),IF(OR(ZGŁOSZENIE!U48<>\"\",ZGŁOSZENIE!U51<>\"\",ZGŁOSZENIE!U54<>\"\",ZGŁOSZENIE!U57<>\"\"),\" Oddzielenie produktów ekologicznych, produktów w okresie konwersji i produktów nieekologicznych.\",\" Oddzielenie produktów ekologicznych od produktów w okresie konwersji.\"))","v":"Ryzyko niskie: Prowadzenie zapisów wymaganych w rejestrze produkcji roślinnej. Oddzielenie produktów ekologicznych od produktów w okresie konwersji."}]
[null,null,"ŚRODKI ZAPOBIEGAWCZE"]
[null,null,"Produkcja roślinna: Zapobieganie szkodom wyrządzanym przez szkodniki i chwasty polega przede wszystkim na ochronie poprzez ich naturalnych wrogów, wybór gatunków, odmian i heterogenicznego materiału, płodozmian, techniki uprawy, takie jak  biofumigacja, metody mechaniczne i fizyczne, oraz procesy termiczne, takie jak solaryzacja.\nGleba: utrzymywanie i poprawa życia w glebie i naturalnej żyzności gleby, stabilności gleby, potencjału retencyjnego gleby i jej różnorodności biologicznej, zapobieganie utraty przez glebę materii organicznej, zagęszczaniu i erozji gleby oraz zwalczanie tych zjawisk, a także odżywianie roślin głównie poprzez ekosystem gleby."]
[null,null,"Produkcja zwierzęca: Zapobieganie chorobom opiera się na doborze ras i linii, praktykach gospodarskich, stosowaniu paszy wysokiej jakości, zapewnianiu możliwości ruchu, odpowiedniej obsady oraz adekwatnych i odpowiednich pomieszczeń utrzymywanych w higienicznym stanie."]
[null,null,"36a",{"$f":"IF(ZGŁOSZENIE!O48<>\"\",\"E\",\"\")","v":""},{"$f":"IF(ZGŁOSZENIE!R48<>\"\",\"Z\",\"\")","v":""},{"$f":"IF(ZGŁOSZENIE!U48<>\"\",\"K\",\"\")","v":""},{"$f":"IF(AND(D136=\"\",E136=\"\",F136=\"\"),\"\",TRIM(CONCATENATE(C136,\"[\",D136,E136,F136,\"]\")))","v":""}]
[null,null,"36b",{"$f":"IF(ZGŁOSZENIE!O51<>\"\",\"E\",\"\")","v":""},{"$f":"IF(ZGŁOSZENIE!R51<>\"\",\"Z\",\"\")","v":""},{"$f":"IF(ZGŁOSZENIE!U51<>\"\",\"K\",\"\")","v":""},{"$f":"IF(AND(D137=\"\",E137=\"\",F137=\"\"),\"\",TRIM(CONCATENATE(C137,\"[\",D137,E137,F137,\"]\")))","v":""}]
[null,null,37,{"$f":"IF(ZGŁOSZENIE!O54<>\"\",\"E\",\"\")","v":""},{"$f":"IF(ZGŁOSZENIE!R54<>\"\",\"Z\",\"\")","v":""},{"$f":"IF(ZGŁOSZENIE!U54<>\"\",\"K\",\"\")","v":""},""]
[null,null,38,{"$f":"IF(ZGŁOSZENIE!O57<>\"\",\"E\",\"\")","v":""},{"$f":"IF(ZGŁOSZENIE!R57<>\"\",\"Z\",\"\")","v":""},{"$f":"IF(ZGŁOSZENIE!U57<>\"\",\"K\",\"\")","v":""},""]
[null,null,{"$f":"TRIM(CONCATENATE(\"Kategorie produktów: \",G136,G137,G138,G139))","v":"Kategorie produktów:"}]

{"sheet":"PROGNOZA PRODUKCJI ROŚLINNEJ","index":6,"n_rows":16,"n_cols":7,"rows_kept":16,"cut":false,"hidden":false,"merged":[[15,2,22,2],[15,3,22,3],[15,4,22,4],[15,5,22,5],[15,6,22,6],[13,2,14,6],[2,2,2,5],[8,2,10,6],[11,2,11,6],[3,2,3,6],[6,2,6,6]]}
[]
[]
[]
[null,null,"Prognoza produkcji\n \"Nieprzetworzone rośliny i produkty roślinne\" \nplanowana na rok 2024 "]
[]
[]
[null,null,"DANE OSOBOWE"]
[]
[null,null,{"$f":"CONCATENATE('ZLECENIE CERTYFIKACJI'!$D$20,\"; \",'ZLECENIE CERTYFIKACJI'!$D$24)","v":"; "}]
[]
[]
[]
[]
[null,null,"Prognoza produkcji może zostać przekazana na wniosku o przyznanie płatności."]
[]
[null,null,"Lp.","Oznaczenie działki/ \nNr działki ewidencyjnej","Uprawa","Produkt\n(np. owoce, ziarno, zielonka)","Planowany termin zakończenia zbioru [mc]"]

{"sheet":"PROGNOZA PRODUKCJI ZWIERZĘCEJ","index":7,"n_rows":72,"n_cols":9,"rows_kept":72,"cut":false,"hidden":false,"merged":[[2,2,2,7],[3,2,3,8],[6,2,6,6],[8,2,10,8],[18,8,21,8],[14,2,21,2],[14,3,21,3],[14,4,21,4],[14,5,17,8],[18,5,21,5],[18,6,21,6],[18,7,21,7]]}
[]
[]
[]
[null,null,"Prognoza produkcji\n    \"Zwierzęta gospodarskie i nieprzetworzone produkty zwierzęce\" \nplanowana na rok 2024 "]
[]
[]
[null,null,"DANE OSOBOWE"]
[]
[null,null,{"$f":"CONCATENATE('ZLECENIE CERTYFIKACJI'!$D$20,\"; \",'ZLECENIE CERTYFIKACJI'!$D$24)","v":"; "}]
[]
[]
[]
[]
[]
[null,null,"Lp.","Grupa zwierząt","Średnia liczba zwierząt/rok","Wielkość produkcji"]
[]
[]
[]
[null,null,null,null,null,"do chowu [szt]","żywiec [szt]","mleko [l]","jaja [szt]"]
[]
[]
[]
[]
[]
[]
[]
[]
[]
[]
[]
[]
[]
[]
[]
[]
[]
[]
[]
[]
[]
[]
[]
[]
[]
[]
[]
[]
[]
[]
[]
[]
[]
[]
[null,null,"Zwierzęta lista"]
[null,null,"Bydło"]
[null,null,"Bydło mięsne"]
[null,null,"Bydło mleczne"]
[null,null,"Konie"]
[null,null,"Owce"]
[null,null,"Kozy"]
[null,null,"Świnie"]
[null,null,"Kury"]
[null,null,"Brojlery"]
[null,null,"Kaczki"]
[null,null,"Gęsi"]
[null,null,"Indyki"]
[null,null,"Perlice"]
[null,null,"Jelenie Szlachetne"]
[null,null,"Jelenie Sika (Wschodnie)"]
[null,null,"Daniele"]
[null,null,"Króliki"]
[null,null,"Inne (jakie?)"]

{"sheet":"PEŁNOMOCNICTWO","index":8,"n_rows":144,"n_cols":102,"rows_kept":144,"cut":false,"hidden":false,"merged":[[68,2,68,97],[55,2,56,97],[57,2,60,97],[61,2,61,97],[62,2,63,97],[64,2,67,97],[1,1,3,98],[34,2,45,97],[46,2,49,97],[50,2,53,97],[54,2,54,97],[24,2,24,97],[15,2,15,57],[20,2,20,57],[25,2,25,57],[11,2,13,57],[16,2,18,57],[21,2,23,57],[14,2,14,97],[19,2,19,97],[114,18,119,56],[114,59,119,97],[69,2,70,97],[71,2,74,97],[75,2,75,97],[76,2,77,97],[80,2,83,97],[85,2,88,97],[89,6,101,97],[90,3,91,4],[102,6,105,13],[103,3,104,4],[106,6,112,97],[120,18,120,56],[120,59,120,97],[121,18,122,56],[121,59,122,97],[143,2,148,97]]}
[]
[null,null,null,null,null,null,null,null,null,null,null,null,null,null,null,null,null,null,null,null,null,null,null,null,null,null,null,null,null,null,null,null,null,null,null,null,null,null,null,null,null,null,null,null,null,null,null,null,null,null,null,null,null,null,null,null,null,null,null,null,null,null,null,null,null,null,null,null,null,null,null,null,null,null,null,null,null,null,null,null,null,null,null,null,null,null,null,null,null,null,null,null,null,null,null,null,null,null,null,null,"dane",{"$f":"'ZLECENIE CERTYFIKACJI'!AW26","v":""}]
[null,null,null,null,null,null,null,null,null,null,null,null,null,null,null,null,null,null,null,null,null,null,null,null,null,null,null,null,null,null,null,null,null,null,null,null,null,null,null,null,null,null,null,null,null,null,null,null,null,null,null,null,null,null,null,null,null,null,null,null,null,null,null,null,null,null,null,null,null,null,null,null,null,null,null,null,null,null,null,null,null,null,null,null,null,null,null,null,null,null,null,null,null,null,null,null,null,null,null,null,"dane",{"$f":"'ZLECENIE CERTYFIKACJI'!AW27","v":""}]
[null,null,null,null,null,null,null,null,null,null,null,null,null,null,null,null,null,null,null,null,null,null,null,null,null,null,null,null,null,null,null,null,null,null,null,null,null,null,null,null,null,null,null,null,null,null,null,null,null,null,null,null,null,null,null,null,null,null,null,null,null,null,null,null,null,null,null,null,null,null,null,null,null,null,null,null,null,null,null,null,null,null,null,null,null,null,null,null,null,null,null,null,null,null,null,null,null,null,null,null,"dane",{"$f":"'ZLECENIE CERTYFIKACJI'!AW28","v":""}]
[null,null,null,null,null,null,null,null,null,null,null,null,null,null,null,null,null,null,null,null,null,null,null,null,null,null,null,null,null,null,null,null,null,null,null,null,null,null,null,null,null,null,null,null,null,null,null,null,null,null,null,null,null,null,null,null,null,null,null,null,null,null,null,null,null,null,null,null,null,null,null,null,null,null,null,null,null,null,null,null,null,null,null,null,null,null,null,null,null,null,null,null,null,null,null,null,null,null,null,null,"data",{"$f":"'ZLECENIE CERTYFIKACJI'!AW36","v":"--"}]
[]
[]
[]
[]
[]
[]
[null,null,{"$f":"'ZLECENIE CERTYFIKACJI'!D20","v":""}]
[]
[]
[null,null,". . . . . . . . . . . . . . . . . . . . . . . . . . . . . . . . . . . . . . . . . . . . . . . . . . . . . . . . . . . . . . . . . . . . . . . . . . . . . . . . . . . ."]
[null,null,"(imię i nazwisko klienta/ nazwa firmy)"]
[null,null,{"$f":"'ZLECENIE CERTYFIKACJI'!AW27","v":""}]
[]
[]
[null,null,". . . . . . . . . . . . . . . . . . . . . . . . . . . . . . . . . . . . . . . . . . . . . . . . . . . . . . . . . . . . . . . . . . . . . . . . . . . . . . . . . . . ."]
[null,null,"(adres zamieszkania)"]
[null,null,{"$f":"'ZLECENIE CERTYFIKACJI'!AW28","v":""}]
[]
[]
[null,null,". . . . . . . . . . . . . . . . . . . . . . . . . . . . . . . . . . . . . . . . . . . . . . . . . . . . . . . . . . . . . . . . . . . . . . . . . . . . . . . . . . . ."]
[null,null,"(adres zamieszkania)"]
[]
[]
[]
[]
[]
[]
[]
[]
[null,null,"PEŁNOMOCNICTWO*"]
[]
[]
[]
[]
[]
[]
[]
[]
[]
[]
[]
[null,null,"Udzielam pełnomocnictwa:"]
[]
[]
[]
[]
[]
[]
[]
[null,null,". . . . . . . . . . . . . . . . . . . . . . . . . . . . . . . . . . . . . . . . . . . . . . . . . . . . . . . . . . . . . . . . . . . . . . . . . . . . . . . . . . . . . . . . . . . . . . . . . . . . . . . . . . . . . . . . . . . . . . . . . . . . . . . . . . . . . . . . . . . . . . . "]
[null,null,"(imię i nazwisko osoby upoważnionej do reprezentacji)"]
[]
[]
[]
[]
[]
[null,null,". . . . . . . . . . . . . . . . . . . . . . . . . . . . . . . . . . . . . . . . . . . . . . . . . . . . . . . . . . . . . . . . . . . . . . . . . . . . . . . . . . . . . . . . . . . . . . . . . . . . . . . . . . . . . . . . . . . . . . . . . . . . . . . . . . . . . . . . . . . . . . . "]
[null,null,"(seria i numer dowodu osobistego)"]
[]
[]
[]
[]
[]
[null,null,". . . . . . . . . . . . . . . . . . . . . . . . . . . . . . . . . . . . . . . . . . . . . . . . . . . . . . . . . . . . . . . . . . . . . . . . . . . . . . . . . . . . . . . . . . . . . . . . . . . . . . . . . . . . . . . . . . . . . . . . . . . . . . . . . . . . . . . . . . . . . . . "]
[null,null,"(adres zamieszkania)"]
[]
[]
[]
[]
[]
[null,null,". . . . . . . . . . . . . . . . . . . . . . . . . . . . . . . . . . . . . . . . . . . . . . . . . . . . . . . . . . . . . . . . . . . . . . . . . . . . . . . . . . . . . . . . . . . . . . . . . . . . . . . . . . . . . . . . . . . . . . . . . . . . . . . . . . . . . . . . . . . . . . . "]
[null,null,"(dane kontaktowe (telefon, e-mail))"]
[]
[]
[]
[null,null,"do występowania w moim imieniu przed TÜV Rheinland Polska Sp. z o.o."]
[]
[]
[]
[]
[null,null,"Pełnomocnictwo obejmuje:"]
[]
[]
[]
[null,null,null,null,null,null,"reprezentowanie mnie i wykonywanie wszelkich czynności w sprawach związanych z certyfikacją gospodarstwa ekologicznego zgodnie z warunkami umowy określonymi w Programie certyfikacji (PCRE) oraz w Ogólnych Warunkach Transakcyjnych stosowanych przez TÜV Rheinland Polska."]
[]
[]
[]
[]
[]
[]
[]
[]
[]
[]
[]
[]
[null,null,null,null,null,null,"inne:"]
[]
[]
[]
[]
[]
[]
[]
[]
[]
[]
[]
[null,null,null,null,null,null,null,null,null,null,null,null,null,null,null,null,null,null,{"$f":"CX5","v":"--"}]
[]
[]
[]
[]
[]
[null,null,null,null,null,null,null,null,null,null,null,null,null,null,null,null,null,null,". . . . . . . . . . . . . . . . . . . . . . . . . . . . . . . . . . . . . . . . . . . . . . . . . ",null,null,null,null,null,null,null,null,null,null,null,null,null,null,null,null,null,null,null,null,null,null,null,null,null,null,null,null,null,null,null,null,null,null,null,null,null,null,null,null,". . . . . . . . . . . . . . . . . . . . . . . . . . . . . . . . . . . . . . . . . . . . . . . . . "]
[null,null,null,null,null,null,null,null,null,null,null,null,null,null,null,null,null,null,"miejscowość, data",null,null,null,null,null,null,null,null,null,null,null,null,null,null,null,null,null,null,null,null,null,null,null,null,null,null,null,null,null,null,null,null,null,null,null,null,null,null,null,null,"podpis udzielającego pełnomocnictwa"]
[]
[]
[]
[]
[]
[]
[]
[]
[]
[]
[]
[]
[]
[]
[]
[]
[]
[]
[]
[]
[]
[null,null,"*Odwołanie pełnomocnictwa składa się poprzez odrębne oświadczenie"]